Body,Body name,Date,Transaction number,Amount,Non recoverable VAT included in amount,Supplier name,Supplier ID,Expense area,Fund type,Expense type,Category description,
http://statistics.data.gov.uk/search?search=E07000114,Thanet District Council,02/06/2017,432354,450.00,,Amenity Horticultural Serv Ltd,AME001,Operational Services,Revenue,"Equip, Furniture And Materials",Horticultural,
http://statistics.data.gov.uk/search?search=E07000114,Thanet District Council,02/06/2017,432251,240.00,,Canterbury City Council,CAN004,Community Services,Revenue,"Equip, Furniture And Materials",Various Cats - Public Sector,
http://statistics.data.gov.uk/search?search=E07000114,Thanet District Council,02/06/2017,432181,769.50,,Csl Power Systems Ltd,CSL002,Operational Services,Revenue,"Repairs,  Alter & Mtce - Build",Building Construction Material,
http://statistics.data.gov.uk/search?search=E07000114,Thanet District Council,02/06/2017,432182,769.50,,Csl Power Systems Ltd,CSL002,Operational Services,Revenue,"Repairs,  Alter & Mtce - Build",Building Construction Material,
http://statistics.data.gov.uk/search?search=E07000114,Thanet District Council,02/06/2017,431889,280.47,,D J Invicta Supplies Ltd,DJI001,Operational Services,Revenue,"Repairs,  Alter & Mtce - Build",Building Construction Material,
http://statistics.data.gov.uk/search?search=E07000114,Thanet District Council,02/06/2017,431945,32091.60,,Dcb (Kent) Ltd,DCB001,Corporate Resources and S151,Balance Sheet,Repairs And Mtce Holding A/C,Construction-Repair And Maint,
http://statistics.data.gov.uk/search?search=E07000114,Thanet District Council,02/06/2017,431946,2903.66,,Dcb (Kent) Ltd,DCB001,Corporate Resources and S151,Balance Sheet,Repairs And Mtce Holding A/C,Construction-Repair And Maint,
http://statistics.data.gov.uk/search?search=E07000114,Thanet District Council,02/06/2017,431924,483.00,,Dennis Eagle Ltd,DEN005,Operational Services,Revenue,Direct Transport Costs,Vehicle Management,
http://statistics.data.gov.uk/search?search=E07000114,Thanet District Council,02/06/2017,432160,695.00,,Distinctive Systems Ltd,DIS015,Operational Services,Revenue,Training,Vehicle Management,
http://statistics.data.gov.uk/search?search=E07000114,Thanet District Council,02/06/2017,432275,25728.21,,Downfast Demolition & Salvage Ltd,DOW001,Corporate Resources and S151,Balance Sheet,Council Dwellings,Building Construction Material,
http://statistics.data.gov.uk/search?search=E07000114,Thanet District Council,02/06/2017,432168,694.49,,Farrer Barnes Limited,FAR012,Corporate Resources and S151,Revenue,Agency Staff,Human Resources,
http://statistics.data.gov.uk/search?search=E07000114,Thanet District Council,02/06/2017,432169,453.15,,Farrer Barnes Limited,FAR012,Corporate Resources and S151,Revenue,Agency Staff,Human Resources,
http://statistics.data.gov.uk/search?search=E07000114,Thanet District Council,02/06/2017,432189,213.63,,G & G Forklifts,GGF001,Operational Services,Revenue,"Repairs,  Alter & Mtce - Build",Vehicle Management,
http://statistics.data.gov.uk/search?search=E07000114,Thanet District Council,02/06/2017,432265,49100.00,,Gartner Uk Limited,GAR023,East Kent Shared Services,Revenue,Services,ICT,
http://statistics.data.gov.uk/search?search=E07000114,Thanet District Council,02/06/2017,433027,350.00,,Gayle Ashley,ASH013,Corporate Governance,Revenue,Services,Legal Services,
http://statistics.data.gov.uk/search?search=E07000114,Thanet District Council,02/06/2017,432263,282.00,,Geze Uk Limited,GEZ001,Corporate Governance,Revenue,"Repairs,  Alter & Mtce - Build",Building Construction Material,
http://statistics.data.gov.uk/search?search=E07000114,Thanet District Council,02/06/2017,432260,7492.50,,Glasdon Uk Ltd,GLA001,Operational Services,Revenue,"Equip, Furniture And Materials",Environmental Services,
http://statistics.data.gov.uk/search?search=E07000114,Thanet District Council,02/06/2017,432360,2032.41,,Hays Specialist Recruitment Ltd,HAY020,Corporate Resources and S151,Revenue,Services,Human Resources,
http://statistics.data.gov.uk/search?search=E07000114,Thanet District Council,02/06/2017,432361,2709.88,,Hays Specialist Recruitment Ltd,HAY020,Corporate Resources and S151,Revenue,Services,Human Resources,
http://statistics.data.gov.uk/search?search=E07000114,Thanet District Council,02/06/2017,432362,2709.88,,Hays Specialist Recruitment Ltd,HAY020,Corporate Resources and S151,Revenue,Services,Human Resources,
http://statistics.data.gov.uk/search?search=E07000114,Thanet District Council,02/06/2017,432363,3387.35,,Hays Specialist Recruitment Ltd,HAY020,Corporate Resources and S151,Revenue,Services,Human Resources,
http://statistics.data.gov.uk/search?search=E07000114,Thanet District Council,02/06/2017,432261,799.25,,Heras Ready Fence Hire & Sales,HER018,Operational Services,Revenue,"Repairs,  Alter & Mtce - Build",Building Construction Material,
http://statistics.data.gov.uk/search?search=E07000114,Thanet District Council,02/06/2017,432194,1116.90,,Hi Way Services Ltd,HIW002,Operational Services,Revenue,"Repairs,  Alter & Mtce - Build",Highway Equipment And Material,
http://statistics.data.gov.uk/search?search=E07000114,Thanet District Council,02/06/2017,431892,1769.34,,Hr Go (Kent) Ltd,HRG001,Operational Services,Revenue,Agency Staff,Human Resources,
http://statistics.data.gov.uk/search?search=E07000114,Thanet District Council,02/06/2017,431893,1091.50,,Hr Go (Kent) Ltd,HRG001,Operational Services,Revenue,Agency Staff,Human Resources,
http://statistics.data.gov.uk/search?search=E07000114,Thanet District Council,02/06/2017,431894,1543.61,,Hr Go (Kent) Ltd,HRG001,Operational Services,Revenue,Agency Staff,Human Resources,
http://statistics.data.gov.uk/search?search=E07000114,Thanet District Council,02/06/2017,431895,1969.38,,Hr Go (Kent) Ltd,HRG001,Operational Services,Revenue,Agency Staff,Human Resources,
http://statistics.data.gov.uk/search?search=E07000114,Thanet District Council,02/06/2017,431896,394.50,,Hr Go (Kent) Ltd,HRG001,Operational Services,Revenue,Agency Staff,Human Resources,
http://statistics.data.gov.uk/search?search=E07000114,Thanet District Council,02/06/2017,431897,595.55,,Hr Go (Kent) Ltd,HRG001,Operational Services,Revenue,Agency Staff,Human Resources,
http://statistics.data.gov.uk/search?search=E07000114,Thanet District Council,02/06/2017,431991,1270.24,,Hr Go (Kent) Ltd,HRG001,Operational Services,Revenue,Agency Staff,Human Resources,
http://statistics.data.gov.uk/search?search=E07000114,Thanet District Council,02/06/2017,432156,17771.03,,J Toomey Motors Limited,TOO004,Corporate Resources and S151,Balance Sheet,Plant And Equipment,Vehicle Management,
http://statistics.data.gov.uk/search?search=E07000114,Thanet District Council,02/06/2017,432157,21349.53,,J Toomey Motors Limited,TOO004,Corporate Resources and S151,Balance Sheet,Plant And Equipment,Vehicle Management,
http://statistics.data.gov.uk/search?search=E07000114,Thanet District Council,02/06/2017,432158,21349.53,,J Toomey Motors Limited,TOO004,Corporate Resources and S151,Balance Sheet,Plant And Equipment,Vehicle Management,
http://statistics.data.gov.uk/search?search=E07000114,Thanet District Council,02/06/2017,432276,23905.68,,J Toomey Motors Limited,TOO004,Corporate Resources and S151,Balance Sheet,Plant And Equipment,Vehicle Management,
http://statistics.data.gov.uk/search?search=E07000114,Thanet District Council,02/06/2017,432277,23905.68,,J Toomey Motors Limited,TOO004,Corporate Resources and S151,Balance Sheet,Plant And Equipment,Vehicle Management,
http://statistics.data.gov.uk/search?search=E07000114,Thanet District Council,02/06/2017,432278,23905.68,,J Toomey Motors Limited,TOO004,Corporate Resources and S151,Balance Sheet,Plant And Equipment,Vehicle Management,
http://statistics.data.gov.uk/search?search=E07000114,Thanet District Council,02/06/2017,432405,2000.00,,Jessica Lumley,LUM003,Corporate Governance,Revenue,Services,Construction-Repair And Maint,
http://statistics.data.gov.uk/search?search=E07000114,Thanet District Council,02/06/2017,432253,623.92,,Lister Wilder Limited,LIS002,Operational Services,Revenue,"Equip, Furniture And Materials",Horticultural,
http://statistics.data.gov.uk/search?search=E07000114,Thanet District Council,02/06/2017,432364,604.95,,Loomis Uk Ltd,LOO002,Operational Services,Revenue,Services,Financial Services,
http://statistics.data.gov.uk/search?search=E07000114,Thanet District Council,02/06/2017,432344,440.00,,Lyreco Uk Limited,LYR001,Corporate Governance,Revenue,"Print, Stat And Gen Off Exps",Stationery,
http://statistics.data.gov.uk/search?search=E07000114,Thanet District Council,02/06/2017,432340,626.70,,Main Man Supplies Ltd,MAI001,Operational Services,Revenue,"Clothes, Uniforms & Laundry",Clothing,
http://statistics.data.gov.uk/search?search=E07000114,Thanet District Council,02/06/2017,431042,1622.79,,Mears Ltd,MEA003,Corporate Resources and S151,Balance Sheet,Repairs And Mtce Holding A/C,Construction-Repair And Maint,
http://statistics.data.gov.uk/search?search=E07000114,Thanet District Council,02/06/2017,432317,50.30,,Mears Ltd,MEA003,Community Services,Revenue,"Repairs,  Alter & Mtce - Build",Construction-Repair And Maint,
http://statistics.data.gov.uk/search?search=E07000114,Thanet District Council,02/06/2017,432317,1490.76,,Mears Ltd,MEA003,Corporate Governance,Revenue,"Repairs,  Alter & Mtce - Build",Construction-Repair And Maint,
http://statistics.data.gov.uk/search?search=E07000114,Thanet District Council,02/06/2017,432318,734.64,,Mears Ltd,MEA003,Community Services,Revenue,"Repairs,  Alter & Mtce - Build",Construction-Repair And Maint,
http://statistics.data.gov.uk/search?search=E07000114,Thanet District Council,02/06/2017,432318,4407.84,,Mears Ltd,MEA003,Corporate Governance,Revenue,"Repairs,  Alter & Mtce - Build",Construction-Repair And Maint,
http://statistics.data.gov.uk/search?search=E07000114,Thanet District Council,02/06/2017,432318,2938.56,,Mears Ltd,MEA003,Operational Services,Revenue,"Repairs,  Alter & Mtce - Build",Construction-Repair And Maint,
http://statistics.data.gov.uk/search?search=E07000114,Thanet District Council,02/06/2017,432319,1469.28,,Mears Ltd,MEA003,Community Services,Revenue,"Repairs,  Alter & Mtce - Build",Construction-Repair And Maint,
http://statistics.data.gov.uk/search?search=E07000114,Thanet District Council,02/06/2017,432319,2938.56,,Mears Ltd,MEA003,Corporate Governance,Revenue,"Repairs,  Alter & Mtce - Build",Construction-Repair And Maint,
http://statistics.data.gov.uk/search?search=E07000114,Thanet District Council,02/06/2017,432319,2938.56,,Mears Ltd,MEA003,Operational Services,Revenue,"Repairs,  Alter & Mtce - Build",Construction-Repair And Maint,
http://statistics.data.gov.uk/search?search=E07000114,Thanet District Council,02/06/2017,431492,37650.00,,Mr D M Littleboy,LIT007,Corporate Resources and S151,Balance Sheet,Heritage Assets,Arts And Leisure Services,
http://statistics.data.gov.uk/search?search=E07000114,Thanet District Council,02/06/2017,431493,6300.00,,Mr D M Littleboy,LIT007,Corporate Resources and S151,Balance Sheet,Heritage Assets,Arts And Leisure Services,
http://statistics.data.gov.uk/search?search=E07000114,Thanet District Council,02/06/2017,432218,980.00,,Nayland Rock Hotel Margate Ltd,NAY003,Community Services,Revenue,Services,Housing Management,
http://statistics.data.gov.uk/search?search=E07000114,Thanet District Council,02/06/2017,432302,735.00,,Nayland Rock Hotel Margate Ltd,NAY003,Community Services,Revenue,Services,Housing Management,
http://statistics.data.gov.uk/search?search=E07000114,Thanet District Council,02/06/2017,432262,31500.00,,Padstow Harbour Commissioners,PAD003,Operational Services,Revenue,"Repairs,  Alter & Mtce - Build",Maritime Services,
http://statistics.data.gov.uk/search?search=E07000114,Thanet District Council,02/06/2017,432161,350.00,,R J Broadley Tree Surgery,RJB002,Operational Services,Revenue,"Equip, Furniture And Materials",Horticultural,
http://statistics.data.gov.uk/search?search=E07000114,Thanet District Council,02/06/2017,431422,2475.00,,Robert Hardy,HAR077,Operational Services,Revenue,Services,Consultancy,
http://statistics.data.gov.uk/search?search=E07000114,Thanet District Council,02/06/2017,432604,1252.17,,Scottish Water Business Stream Ltd,SCO019,Operational Services,Revenue,Water Services,Utilities,
http://statistics.data.gov.uk/search?search=E07000114,Thanet District Council,02/06/2017,432578,-225.25,,Southern Electric,SEL007,Operational Services,Revenue,Energy Costs,Utilities,
http://statistics.data.gov.uk/search?search=E07000114,Thanet District Council,02/06/2017,432579,-285.18,,Southern Electric,SEL007,Operational Services,Revenue,Energy Costs,Utilities,
http://statistics.data.gov.uk/search?search=E07000114,Thanet District Council,02/06/2017,432580,-321.53,,Southern Electric,SEL007,Operational Services,Revenue,Energy Costs,Utilities,
http://statistics.data.gov.uk/search?search=E07000114,Thanet District Council,02/06/2017,432581,-233.75,,Southern Electric,SEL007,Operational Services,Revenue,Energy Costs,Utilities,
http://statistics.data.gov.uk/search?search=E07000114,Thanet District Council,02/06/2017,432582,-263.49,,Southern Electric,SEL007,Operational Services,Revenue,Energy Costs,Utilities,
http://statistics.data.gov.uk/search?search=E07000114,Thanet District Council,02/06/2017,432583,-514.35,,Southern Electric,SEL007,Operational Services,Revenue,Energy Costs,Utilities,
http://statistics.data.gov.uk/search?search=E07000114,Thanet District Council,02/06/2017,432584,-5.39,,Southern Electric,SEL007,Community Services,Revenue,Energy Costs,Utilities,
http://statistics.data.gov.uk/search?search=E07000114,Thanet District Council,02/06/2017,432584,-575.52,,Southern Electric,SEL007,Operational Services,Revenue,Energy Costs,Utilities,
http://statistics.data.gov.uk/search?search=E07000114,Thanet District Council,02/06/2017,432593,226.35,,Southern Electric,SEL007,Operational Services,Revenue,Energy Costs,Utilities,
http://statistics.data.gov.uk/search?search=E07000114,Thanet District Council,02/06/2017,432595,322.90,,Southern Electric,SEL007,Operational Services,Revenue,Energy Costs,Utilities,
http://statistics.data.gov.uk/search?search=E07000114,Thanet District Council,02/06/2017,432596,285.18,,Southern Electric,SEL007,Operational Services,Revenue,Energy Costs,Utilities,
http://statistics.data.gov.uk/search?search=E07000114,Thanet District Council,02/06/2017,432597,264.60,,Southern Electric,SEL007,Operational Services,Revenue,Energy Costs,Utilities,
http://statistics.data.gov.uk/search?search=E07000114,Thanet District Council,02/06/2017,432598,233.75,,Southern Electric,SEL007,Operational Services,Revenue,Energy Costs,Utilities,
http://statistics.data.gov.uk/search?search=E07000114,Thanet District Council,02/06/2017,432599,5.41,,Southern Electric,SEL007,Community Services,Revenue,Energy Costs,Utilities,
http://statistics.data.gov.uk/search?search=E07000114,Thanet District Council,02/06/2017,432599,578.17,,Southern Electric,SEL007,Operational Services,Revenue,Energy Costs,Utilities,
http://statistics.data.gov.uk/search?search=E07000114,Thanet District Council,02/06/2017,432607,514.35,,Southern Electric,SEL007,Operational Services,Revenue,Energy Costs,Utilities,
http://statistics.data.gov.uk/search?search=E07000114,Thanet District Council,02/06/2017,432177,935.80,,Swl Rope Lifting & Testing Limited,SWL001,Operational Services,Revenue,"Equip, Furniture And Materials",Maritime Services,
http://statistics.data.gov.uk/search?search=E07000114,Thanet District Council,02/06/2017,432177,90.00,,Swl Rope Lifting & Testing Limited,SWL001,Operational Services,Revenue,"Repairs,  Alter & Mtce - Build",Maritime Services,
http://statistics.data.gov.uk/search?search=E07000114,Thanet District Council,02/06/2017,432152,3000.00,,Tourism South East,TOU003,Community Services,Revenue,Grants & Subscriptions,Human Resources,
http://statistics.data.gov.uk/search?search=E07000114,Thanet District Council,02/06/2017,431805,261.72,,Veolia Es (Uk) Ltd,VEO001,Operational Services,Revenue,Cleaning & Domestic Supplies,Environmental Services,
http://statistics.data.gov.uk/search?search=E07000114,Thanet District Council,02/06/2017,431915,2610.00,,Victoria Flooring Ltd,VIC001,Operational Services,Revenue,"Repairs,  Alter & Mtce - Build",Furniture And Soft Furnishings,
http://statistics.data.gov.uk/search?search=E07000114,Thanet District Council,06/06/2017,432795,790.00,,A& C Pumps Ltd,ACP001,Operational Services,Revenue,"Repairs,  Alter & Mtce - Build",Building Construction Material,
http://statistics.data.gov.uk/search?search=E07000114,Thanet District Council,06/06/2017,432615,414.00,,Alans Hgv'S Driving School,ALA004,Operational Services,Revenue,Training,Human Resources,
http://statistics.data.gov.uk/search?search=E07000114,Thanet District Council,06/06/2017,432643,600.00,,All About Asbestos Limited,ALL044,Corporate Governance,Revenue,"Repairs,  Alter & Mtce - Build",Environmental Services,
http://statistics.data.gov.uk/search?search=E07000114,Thanet District Council,06/06/2017,432797,800.00,,Aquasentry,AQU006,Corporate Governance,Revenue,"Repairs,  Alter & Mtce - Build",Construction-Repair And Maint,
http://statistics.data.gov.uk/search?search=E07000114,Thanet District Council,06/06/2017,433050,8470.00,,Ascendit Lifts Ltd,ASC001,Corporate Resources and S151,Balance Sheet,Capital Exp-Non Council Assets,Grants,
http://statistics.data.gov.uk/search?search=E07000114,Thanet District Council,06/06/2017,432976,480.00,,Belinda Dixon Media Limited,DIX006,Community Services,Revenue,Services,ICT,
http://statistics.data.gov.uk/search?search=E07000114,Thanet District Council,06/06/2017,433189,5190.00,,Bramling Construction Ltd,BRA020,Corporate Resources and S151,Balance Sheet,Capital Exp-Non Council Assets,Grants,
http://statistics.data.gov.uk/search?search=E07000114,Thanet District Council,06/06/2017,432814,5000.00,,Brown Industrial Controls Limited,BRO088,Operational Services,Revenue,Services,ICT,
http://statistics.data.gov.uk/search?search=E07000114,Thanet District Council,06/06/2017,432916,2369.29,,Bt Payment Services Ltd,BTE003,Corporate Resources and S151,Balance Sheet,Telephone Holding Account,ICT,
http://statistics.data.gov.uk/search?search=E07000114,Thanet District Council,06/06/2017,432636,4173.28,,Burgess Marine Ltd,BUR017,Operational Services,Revenue,"Repairs,  Alter & Mtce - Build",Maritime Services,
http://statistics.data.gov.uk/search?search=E07000114,Thanet District Council,06/06/2017,432566,22159.45,,Canterbury City Council,CAN004,East Kent Shared Services,Revenue,Grants & Subscriptions,Various Cats - Public Sector,
http://statistics.data.gov.uk/search?search=E07000114,Thanet District Council,06/06/2017,432567,39756.70,,Canterbury City Council,CAN004,East Kent Shared Services,Revenue,Grants & Subscriptions,Various Cats - Public Sector,
http://statistics.data.gov.uk/search?search=E07000114,Thanet District Council,06/06/2017,432625,6553.85,,Caravan Park Elec Services Limited,CAR048,Operational Services,Revenue,"Equip, Furniture And Materials",Building Construction Material,
http://statistics.data.gov.uk/search?search=E07000114,Thanet District Council,06/06/2017,432390,270.00,,Civica Uk Ltd,CIV003,East Kent Shared Services,Revenue,Communications & Computing,ICT,
http://statistics.data.gov.uk/search?search=E07000114,Thanet District Council,06/06/2017,432538,225.10,,Civica Uk Ltd,CIV003,East Kent Shared Services,Revenue,Expenses,ICT,
http://statistics.data.gov.uk/search?search=E07000114,Thanet District Council,06/06/2017,432632,1443.60,,Civica Uk Ltd,CIV003,East Kent Shared Services,Revenue,Communications & Computing,ICT,
http://statistics.data.gov.uk/search?search=E07000114,Thanet District Council,06/06/2017,432638,14638.80,,Civica Uk Ltd,CIV003,East Kent Shared Services,Revenue,Communications & Computing,ICT,
http://statistics.data.gov.uk/search?search=E07000114,Thanet District Council,06/06/2017,429820,-4927.31,,Commercial Services Trading Ltd,COM048,Operational Services,Revenue,Cont Hire & Operating Lease,Various Cats - Public Sector,
http://statistics.data.gov.uk/search?search=E07000114,Thanet District Council,06/06/2017,430554,837.50,,Commercial Services Trading Ltd,COM048,Operational Services,Revenue,Cont Hire & Operating Lease,Various Cats - Public Sector,
http://statistics.data.gov.uk/search?search=E07000114,Thanet District Council,06/06/2017,430943,3854.64,,Commercial Services Trading Ltd,COM048,Operational Services,Revenue,Cont Hire & Operating Lease,Various Cats - Public Sector,
http://statistics.data.gov.uk/search?search=E07000114,Thanet District Council,06/06/2017,433060,4006.23,,Commercial Services Trading Ltd,COM048,Corporate Governance,Revenue,Cont Hire & Operating Lease,Various Cats - Public Sector,
http://statistics.data.gov.uk/search?search=E07000114,Thanet District Council,06/06/2017,433061,2675.00,,Commercial Services Trading Ltd,COM048,Operational Services,Revenue,Cont Hire & Operating Lease,Various Cats - Public Sector,
http://statistics.data.gov.uk/search?search=E07000114,Thanet District Council,06/06/2017,432397,312.40,,Dennis Eagle Ltd,DEN005,Operational Services,Revenue,Direct Transport Costs,Vehicle Management,
http://statistics.data.gov.uk/search?search=E07000114,Thanet District Council,06/06/2017,432247,267.00,,East Kent Hose,EKH004,Operational Services,Revenue,Direct Transport Costs,Vehicle Management,
http://statistics.data.gov.uk/search?search=E07000114,Thanet District Council,06/06/2017,432248,766.00,,East Kent Hose,EKH004,Operational Services,Revenue,Direct Transport Costs,Vehicle Management,
http://statistics.data.gov.uk/search?search=E07000114,Thanet District Council,06/06/2017,432249,239.90,,East Kent Hose,EKH004,Operational Services,Revenue,Direct Transport Costs,Vehicle Management,
http://statistics.data.gov.uk/search?search=E07000114,Thanet District Council,06/06/2017,433187,9061.00,,Evermech Services Ltd,EVE011,Corporate Resources and S151,Balance Sheet,Capital Exp-Non Council Assets,Grants,
http://statistics.data.gov.uk/search?search=E07000114,Thanet District Council,06/06/2017,433049,1639.25,,Family Mosaic Housing,FAM001,Corporate Resources and S151,Balance Sheet,Capital Exp-Non Council Assets,Housing Management,
http://statistics.data.gov.uk/search?search=E07000114,Thanet District Council,06/06/2017,433068,1850.86,,Family Mosaic Housing,FAM001,Corporate Resources and S151,Balance Sheet,Capital Exp-Non Council Assets,Housing Management,
http://statistics.data.gov.uk/search?search=E07000114,Thanet District Council,06/06/2017,433126,1005.53,,Family Mosaic Housing,FAM001,Corporate Resources and S151,Balance Sheet,Capital Exp-Non Council Assets,Housing Management,
http://statistics.data.gov.uk/search?search=E07000114,Thanet District Council,06/06/2017,433186,1087.32,,Family Mosaic Housing,FAM001,Corporate Resources and S151,Balance Sheet,Capital Exp-Non Council Assets,Housing Management,
http://statistics.data.gov.uk/search?search=E07000114,Thanet District Council,06/06/2017,433188,523.00,,Family Mosaic Housing,FAM001,Corporate Resources and S151,Balance Sheet,Capital Exp-Non Council Assets,Housing Management,
http://statistics.data.gov.uk/search?search=E07000114,Thanet District Council,06/06/2017,432830,694.49,,Farrer Barnes Limited,FAR012,Corporate Resources and S151,Revenue,Agency Staff,Human Resources,
http://statistics.data.gov.uk/search?search=E07000114,Thanet District Council,06/06/2017,432831,643.69,,Farrer Barnes Limited,FAR012,Corporate Resources and S151,Revenue,Agency Staff,Human Resources,
http://statistics.data.gov.uk/search?search=E07000114,Thanet District Council,06/06/2017,432256,1427.11,,Geesink Norba Ltd,GEE006,Operational Services,Revenue,Direct Transport Costs,Vehicle Management,
http://statistics.data.gov.uk/search?search=E07000114,Thanet District Council,06/06/2017,432855,420.00,,Gerlack & Thorne Ltd,GER001,Community Services,Revenue,"Repairs,  Alter & Mtce - Build",Construction-Repair And Maint,
http://statistics.data.gov.uk/search?search=E07000114,Thanet District Council,06/06/2017,432855,525.00,,Gerlack & Thorne Ltd,GER001,Corporate Governance,Revenue,"Repairs,  Alter & Mtce - Build",Construction-Repair And Maint,
http://statistics.data.gov.uk/search?search=E07000114,Thanet District Council,06/06/2017,432855,105.00,,Gerlack & Thorne Ltd,GER001,Operational Services,Revenue,"Repairs,  Alter & Mtce - Build",Construction-Repair And Maint,
http://statistics.data.gov.uk/search?search=E07000114,Thanet District Council,06/06/2017,432272,24225.00,,Gl Hearn Limited,GLH001,Corporate Resources and S151,Balance Sheet,Other Land And Buildings-Hra,Consultancy,
http://statistics.data.gov.uk/search?search=E07000114,Thanet District Council,06/06/2017,432849,2400.00,,Hays Specialist Recruitment Ltd,HAY020,Corporate Resources and S151,Revenue,Services,Human Resources,
http://statistics.data.gov.uk/search?search=E07000114,Thanet District Council,06/06/2017,432850,3000.00,,Hays Specialist Recruitment Ltd,HAY020,Corporate Resources and S151,Revenue,Services,Human Resources,
http://statistics.data.gov.uk/search?search=E07000114,Thanet District Council,06/06/2017,432851,3000.00,,Hays Specialist Recruitment Ltd,HAY020,Corporate Resources and S151,Revenue,Services,Human Resources,
http://statistics.data.gov.uk/search?search=E07000114,Thanet District Council,06/06/2017,433190,2144.05,,Heath Lambert Limited (Client Money),HEA011,Corporate Resources and S151,Balance Sheet,Insurance Holding Account,Financial Services,
http://statistics.data.gov.uk/search?search=E07000114,Thanet District Council,06/06/2017,432627,1537.80,,Hi Way Services Ltd,HIW002,Operational Services,Revenue,"Repairs,  Alter & Mtce - Build",Highway Equipment And Material,
http://statistics.data.gov.uk/search?search=E07000114,Thanet District Council,06/06/2017,432628,650.00,,Hi Way Services Ltd,HIW002,Operational Services,Revenue,"Repairs,  Alter & Mtce - Build",Highway Equipment And Material,
http://statistics.data.gov.uk/search?search=E07000114,Thanet District Council,06/06/2017,432186,559.64,,Hr Go (Kent) Ltd,HRG001,Operational Services,Revenue,Agency Staff,Human Resources,
http://statistics.data.gov.uk/search?search=E07000114,Thanet District Council,06/06/2017,432195,3834.62,,Hr Go (Kent) Ltd,HRG001,Operational Services,Revenue,Agency Staff,Human Resources,
http://statistics.data.gov.uk/search?search=E07000114,Thanet District Council,06/06/2017,432196,2592.78,,Hr Go (Kent) Ltd,HRG001,Operational Services,Revenue,Agency Staff,Human Resources,
http://statistics.data.gov.uk/search?search=E07000114,Thanet District Council,06/06/2017,432197,14510.19,,Hr Go (Kent) Ltd,HRG001,Operational Services,Revenue,Agency Staff,Human Resources,
http://statistics.data.gov.uk/search?search=E07000114,Thanet District Council,06/06/2017,432327,1091.50,,Hr Go (Kent) Ltd,HRG001,Operational Services,Revenue,Agency Staff,Human Resources,
http://statistics.data.gov.uk/search?search=E07000114,Thanet District Council,06/06/2017,432329,1969.38,,Hr Go (Kent) Ltd,HRG001,Operational Services,Revenue,Agency Staff,Human Resources,
http://statistics.data.gov.uk/search?search=E07000114,Thanet District Council,06/06/2017,432330,442.89,,Hr Go (Kent) Ltd,HRG001,Operational Services,Revenue,Agency Staff,Human Resources,
http://statistics.data.gov.uk/search?search=E07000114,Thanet District Council,06/06/2017,432332,1177.21,,Hr Go (Kent) Ltd,HRG001,Operational Services,Revenue,Agency Staff,Human Resources,
http://statistics.data.gov.uk/search?search=E07000114,Thanet District Council,06/06/2017,432333,424.38,,Hr Go (Kent) Ltd,HRG001,Community Services,Revenue,Agency Staff,Human Resources,
http://statistics.data.gov.uk/search?search=E07000114,Thanet District Council,06/06/2017,432345,1769.34,,Hr Go (Kent) Ltd,HRG001,Operational Services,Revenue,Agency Staff,Human Resources,
http://statistics.data.gov.uk/search?search=E07000114,Thanet District Council,06/06/2017,432412,1491.84,,Hr Go (Kent) Ltd,HRG001,Operational Services,Revenue,Agency Staff,Human Resources,
http://statistics.data.gov.uk/search?search=E07000114,Thanet District Council,06/06/2017,432570,3865.88,,Hr Go (Kent) Ltd,HRG001,Operational Services,Revenue,Agency Staff,Human Resources,
http://statistics.data.gov.uk/search?search=E07000114,Thanet District Council,06/06/2017,432571,2450.42,,Hr Go (Kent) Ltd,HRG001,Operational Services,Revenue,Agency Staff,Human Resources,
http://statistics.data.gov.uk/search?search=E07000114,Thanet District Council,06/06/2017,432642,420.99,,Insight Direct (Uk) Ltd,INS013,East Kent Shared Services,Revenue,Communications & Computing,ICT,
http://statistics.data.gov.uk/search?search=E07000114,Thanet District Council,06/06/2017,432702,23905.68,,J Toomey Motors Limited,TOO004,Corporate Resources and S151,Balance Sheet,Plant And Equipment,Vehicle Management,
http://statistics.data.gov.uk/search?search=E07000114,Thanet District Council,06/06/2017,432703,23905.68,,J Toomey Motors Limited,TOO004,Corporate Resources and S151,Balance Sheet,Plant And Equipment,Vehicle Management,
http://statistics.data.gov.uk/search?search=E07000114,Thanet District Council,06/06/2017,432704,23905.68,,J Toomey Motors Limited,TOO004,Corporate Resources and S151,Balance Sheet,Plant And Equipment,Vehicle Management,
http://statistics.data.gov.uk/search?search=E07000114,Thanet District Council,06/06/2017,433057,1433.40,,John Gale,GAL001,Corporate Resources and S151,Balance Sheet,Capital Exp-Non Council Assets,Grants,
http://statistics.data.gov.uk/search?search=E07000114,Thanet District Council,06/06/2017,433062,701.00,,John Gale,GAL001,Corporate Resources and S151,Balance Sheet,Capital Exp-Non Council Assets,Grants,
http://statistics.data.gov.uk/search?search=E07000114,Thanet District Council,06/06/2017,432243,1104.30,,Kenhire Limited,KEN042,Operational Services,Revenue,Cont Hire & Operating Lease,Vehicle Management,
http://statistics.data.gov.uk/search?search=E07000114,Thanet District Council,06/06/2017,432244,1104.30,,Kenhire Limited,KEN042,Operational Services,Revenue,Cont Hire & Operating Lease,Vehicle Management,
http://statistics.data.gov.uk/search?search=E07000114,Thanet District Council,06/06/2017,432304,32669.78,,Kent County Council (Kcs),KCC003,Operational Services,Revenue,Direct Transport Costs,Facilities And Management Serv,
http://statistics.data.gov.uk/search?search=E07000114,Thanet District Council,06/06/2017,432305,3732.33,,Kent County Council (Kcs),KCC003,Operational Services,Revenue,Direct Transport Costs,Facilities And Management Serv,
http://statistics.data.gov.uk/search?search=E07000114,Thanet District Council,06/06/2017,432306,12734.68,,Kent County Council (Kcs),KCC003,Operational Services,Revenue,Direct Transport Costs,Facilities And Management Serv,
http://statistics.data.gov.uk/search?search=E07000114,Thanet District Council,06/06/2017,432307,1861.64,,Kent County Council (Kcs),KCC003,Operational Services,Revenue,"Equip, Furniture And Materials",Facilities And Management Serv,
http://statistics.data.gov.uk/search?search=E07000114,Thanet District Council,06/06/2017,432569,700.64,,Kent County Council (Kcs),KCC003,Operational Services,Revenue,"Repairs,  Alter & Mtce - Build",Facilities And Management Serv,
http://statistics.data.gov.uk/search?search=E07000114,Thanet District Council,06/06/2017,432746,10962.71,,Kent County Council (Kcs),KCC003,Corporate Governance,Revenue,Energy Costs,Facilities And Management Serv,
http://statistics.data.gov.uk/search?search=E07000114,Thanet District Council,06/06/2017,432747,2793.66,,Kent County Council (Kcs),KCC003,Operational Services,Revenue,"Equip, Furniture And Materials",Facilities And Management Serv,
http://statistics.data.gov.uk/search?search=E07000114,Thanet District Council,06/06/2017,432748,213.00,,Kent County Council (Kcs),KCC003,Operational Services,Revenue,"Equip, Furniture And Materials",Facilities And Management Serv,
http://statistics.data.gov.uk/search?search=E07000114,Thanet District Council,06/06/2017,432810,720.00,,Lone Worker Solutions Limited,LON033,East Kent Shared Services,Revenue,Communications & Computing,ICT,
http://statistics.data.gov.uk/search?search=E07000114,Thanet District Council,06/06/2017,432308,17472.89,,Mears Ltd,MEA003,Corporate Resources and S151,Balance Sheet,Repairs And Mtce Holding A/C,Construction-Repair And Maint,
http://statistics.data.gov.uk/search?search=E07000114,Thanet District Council,06/06/2017,432309,16214.14,,Mears Ltd,MEA003,Corporate Resources and S151,Balance Sheet,Repairs And Mtce Holding A/C,Construction-Repair And Maint,
http://statistics.data.gov.uk/search?search=E07000114,Thanet District Council,06/06/2017,432310,18440.32,,Mears Ltd,MEA003,Corporate Resources and S151,Balance Sheet,Repairs And Mtce Holding A/C,Construction-Repair And Maint,
http://statistics.data.gov.uk/search?search=E07000114,Thanet District Council,06/06/2017,432311,24226.07,,Mears Ltd,MEA003,Corporate Resources and S151,Balance Sheet,Repairs And Mtce Holding A/C,Construction-Repair And Maint,
http://statistics.data.gov.uk/search?search=E07000114,Thanet District Council,06/06/2017,432346,574.45,,Mears Ltd,MEA003,Corporate Resources and S151,Balance Sheet,Repairs And Mtce Holding A/C,Construction-Repair And Maint,
http://statistics.data.gov.uk/search?search=E07000114,Thanet District Council,06/06/2017,432347,3005.10,,Mears Ltd,MEA003,Corporate Resources and S151,Balance Sheet,Repairs And Mtce Holding A/C,Construction-Repair And Maint,
http://statistics.data.gov.uk/search?search=E07000114,Thanet District Council,06/06/2017,432348,1429.75,,Mears Ltd,MEA003,Corporate Resources and S151,Balance Sheet,Repairs And Mtce Holding A/C,Construction-Repair And Maint,
http://statistics.data.gov.uk/search?search=E07000114,Thanet District Council,06/06/2017,432349,11254.59,,Mears Ltd,MEA003,Corporate Resources and S151,Balance Sheet,Repairs And Mtce Holding A/C,Construction-Repair And Maint,
http://statistics.data.gov.uk/search?search=E07000114,Thanet District Council,06/06/2017,432350,438.08,,Mears Ltd,MEA003,Corporate Resources and S151,Balance Sheet,Repairs And Mtce Holding A/C,Construction-Repair And Maint,
http://statistics.data.gov.uk/search?search=E07000114,Thanet District Council,06/06/2017,432351,5737.25,,Mears Ltd,MEA003,Corporate Resources and S151,Balance Sheet,Repairs And Mtce Holding A/C,Construction-Repair And Maint,
http://statistics.data.gov.uk/search?search=E07000114,Thanet District Council,06/06/2017,432352,9263.62,,Mears Ltd,MEA003,Corporate Resources and S151,Balance Sheet,Repairs And Mtce Holding A/C,Construction-Repair And Maint,
http://statistics.data.gov.uk/search?search=E07000114,Thanet District Council,06/06/2017,432353,11383.13,,Mears Ltd,MEA003,Corporate Resources and S151,Balance Sheet,Repairs And Mtce Holding A/C,Construction-Repair And Maint,
http://statistics.data.gov.uk/search?search=E07000114,Thanet District Council,06/06/2017,432790,1938.90,,Mears Ltd,MEA003,Corporate Resources and S151,Balance Sheet,Council Dwellings,Construction-Repair And Maint,
http://statistics.data.gov.uk/search?search=E07000114,Thanet District Council,06/06/2017,432819,368.33,,Med Clean South Ltd,MED015,Operational Services,Revenue,"Repairs,  Alter & Mtce - Build",Cleaning And Janitorial,
http://statistics.data.gov.uk/search?search=E07000114,Thanet District Council,06/06/2017,432734,750.00,,Michael Page Int Recruitment Ltd,PAG008,Corporate Resources and S151,Revenue,Services,Human Resources,
http://statistics.data.gov.uk/search?search=E07000114,Thanet District Council,06/06/2017,432965,1200.00,,Michael Page Int Recruitment Ltd,PAG008,Corporate Resources and S151,Revenue,Services,Human Resources,
http://statistics.data.gov.uk/search?search=E07000114,Thanet District Council,06/06/2017,432803,1525.13,,Midland Software Limited,MID013,East Kent Shared Services,Revenue,Communications & Computing,ICT,
http://statistics.data.gov.uk/search?search=E07000114,Thanet District Council,06/06/2017,432806,7625.89,,Midland Software Limited,MID013,East Kent Shared Services,Revenue,Communications & Computing,ICT,
http://statistics.data.gov.uk/search?search=E07000114,Thanet District Council,06/06/2017,432626,69.17,,Mr Darren Osborne,OSB008,Community Services,Revenue,Cleaning & Domestic Supplies,Cleaning And Janitorial,
http://statistics.data.gov.uk/search?search=E07000114,Thanet District Council,06/06/2017,432626,398.33,,Mr Darren Osborne,OSB008,Corporate Governance,Revenue,Cleaning & Domestic Supplies,Cleaning And Janitorial,
http://statistics.data.gov.uk/search?search=E07000114,Thanet District Council,06/06/2017,432626,40.00,,Mr Darren Osborne,OSB008,Operational Services,Revenue,Cleaning & Domestic Supplies,Cleaning And Janitorial,
http://statistics.data.gov.uk/search?search=E07000114,Thanet District Council,06/06/2017,433065,7010.00,,Northwood Builders,NOR002,Corporate Resources and S151,Balance Sheet,Capital Exp-Non Council Assets,Grants,
http://statistics.data.gov.uk/search?search=E07000114,Thanet District Council,06/06/2017,432314,2181.04,,Ohuk Limited,OHU001,Operational Services,Revenue,Agency Staff,Human Resources,
http://statistics.data.gov.uk/search?search=E07000114,Thanet District Council,06/06/2017,432802,1144.54,,Ohuk Limited,OHU001,Operational Services,Revenue,Agency Staff,Human Resources,
http://statistics.data.gov.uk/search?search=E07000114,Thanet District Council,06/06/2017,432802,517.84,,Ohuk Limited,OHU001,Operational Services,Revenue,"Repairs,  Alter & Mtce - Build",Human Resources,
http://statistics.data.gov.uk/search?search=E07000114,Thanet District Council,06/06/2017,432410,1692.59,,Ovenden Allworks Limited,OVE008,Operational Services,Revenue,"Repairs,  Alter & Mtce - Build",Construction-Repair And Maint,
http://statistics.data.gov.uk/search?search=E07000114,Thanet District Council,06/06/2017,433241,3452.91,,Ovenden Allworks Limited,OVE008,Operational Services,Revenue,"Repairs,  Alter & Mtce - Build",Construction-Repair And Maint,
http://statistics.data.gov.uk/search?search=E07000114,Thanet District Council,06/06/2017,432614,90.00,,Parkeon Limited,PAR063,Corporate Governance,Revenue,"Equip, Furniture And Materials",Street And Traffic Management,
http://statistics.data.gov.uk/search?search=E07000114,Thanet District Council,06/06/2017,432614,1422.00,,Parkeon Limited,PAR063,Operational Services,Revenue,"Equip, Furniture And Materials",Street And Traffic Management,
http://statistics.data.gov.uk/search?search=E07000114,Thanet District Council,06/06/2017,432701,250.00,,Pierremonts Car & Van Hire Ltd,PIE009,Operational Services,Revenue,Miscellaneous Expenses,Vehicle Management,
http://statistics.data.gov.uk/search?search=E07000114,Thanet District Council,06/06/2017,432557,95.00,,Premier Signs,PRE027,Corporate Governance,Revenue,Direct Transport Costs,Building Construction Material,
http://statistics.data.gov.uk/search?search=E07000114,Thanet District Council,06/06/2017,432557,95.00,,Premier Signs,PRE027,Operational Services,Revenue,Direct Transport Costs,Building Construction Material,
http://statistics.data.gov.uk/search?search=E07000114,Thanet District Council,06/06/2017,432557,95.00,,Premier Signs,PRE027,Operational Services,Revenue,"Equip, Furniture And Materials",Building Construction Material,
http://statistics.data.gov.uk/search?search=E07000114,Thanet District Council,06/06/2017,433237,15761.92,,REDACTED PERSONAL DATA,N/A,Corporate Resources and S151,Balance Sheet,Capital Exp-Non Council Assets,Grants,
http://statistics.data.gov.uk/search?search=E07000114,Thanet District Council,06/06/2017,432637,1682.00,,Reed Business Information Ltd,REE002,Corporate Governance,Revenue,Advertising Expenses,Facilities And Management Serv,
http://statistics.data.gov.uk/search?search=E07000114,Thanet District Council,06/06/2017,432254,610.46,,Rexel Uk Limited,REX003,Operational Services,Revenue,"Repairs,  Alter & Mtce - Build",Building Construction Material,
http://statistics.data.gov.uk/search?search=E07000114,Thanet District Council,06/06/2017,432617,739.37,,Rexel Uk Limited,REX003,Operational Services,Revenue,"Repairs,  Alter & Mtce - Build",Building Construction Material,
http://statistics.data.gov.uk/search?search=E07000114,Thanet District Council,06/06/2017,432619,231.25,,Rexel Uk Limited,REX003,Operational Services,Revenue,"Repairs,  Alter & Mtce - Build",Building Construction Material,
http://statistics.data.gov.uk/search?search=E07000114,Thanet District Council,06/06/2017,432388,276.81,,Seasafe Systems Ltd,SEA004,Operational Services,Revenue,"Clothes, Uniforms & Laundry",Clothing,
http://statistics.data.gov.uk/search?search=E07000114,Thanet District Council,06/06/2017,432322,1320.84,,Securitas Security Services (Uk) Ltd,SEC019,Community Services,Revenue,Services,Facilities And Management Serv,
http://statistics.data.gov.uk/search?search=E07000114,Thanet District Council,06/06/2017,432635,3037.50,,Securitas Security Services (Uk) Ltd,SEC019,Corporate Governance,Revenue,Services,Facilities And Management Serv,
http://statistics.data.gov.uk/search?search=E07000114,Thanet District Council,06/06/2017,432987,931.52,,Southern Electric,SEL007,Operational Services,Revenue,Energy Costs,Utilities,
http://statistics.data.gov.uk/search?search=E07000114,Thanet District Council,06/06/2017,432990,5361.61,,Southern Electric,SEL007,Community Services,Revenue,Energy Costs,Utilities,
http://statistics.data.gov.uk/search?search=E07000114,Thanet District Council,06/06/2017,432992,14255.95,,Southern Electric,SEL007,Community Services,Revenue,Energy Costs,Utilities,
http://statistics.data.gov.uk/search?search=E07000114,Thanet District Council,06/06/2017,432994,1488.04,,Southern Electric,SEL007,Community Services,Revenue,Energy Costs,Utilities,
http://statistics.data.gov.uk/search?search=E07000114,Thanet District Council,06/06/2017,432999,760.03,,Southern Electric,SEL007,Operational Services,Revenue,Energy Costs,Utilities,
http://statistics.data.gov.uk/search?search=E07000114,Thanet District Council,06/06/2017,433000,1154.13,,Southern Electric,SEL007,Operational Services,Revenue,Energy Costs,Utilities,
http://statistics.data.gov.uk/search?search=E07000114,Thanet District Council,06/06/2017,433001,1584.84,,Southern Electric,SEL007,Operational Services,Revenue,Energy Costs,Utilities,
http://statistics.data.gov.uk/search?search=E07000114,Thanet District Council,06/06/2017,433002,473.97,,Southern Electric,SEL007,Operational Services,Revenue,Energy Costs,Utilities,
http://statistics.data.gov.uk/search?search=E07000114,Thanet District Council,06/06/2017,433003,723.61,,Southern Electric,SEL007,Operational Services,Revenue,Energy Costs,Utilities,
http://statistics.data.gov.uk/search?search=E07000114,Thanet District Council,06/06/2017,433004,2446.05,,Southern Electric,SEL007,Operational Services,Revenue,Energy Costs,Utilities,
http://statistics.data.gov.uk/search?search=E07000114,Thanet District Council,06/06/2017,433017,253.56,,Southern Electric,SEL007,Community Services,Revenue,Energy Costs,Utilities,
http://statistics.data.gov.uk/search?search=E07000114,Thanet District Council,06/06/2017,433018,293.22,,Southern Electric,SEL007,Operational Services,Revenue,Energy Costs,Utilities,
http://statistics.data.gov.uk/search?search=E07000114,Thanet District Council,06/06/2017,433019,352.91,,Southern Electric,SEL007,Community Services,Revenue,Energy Costs,Utilities,
http://statistics.data.gov.uk/search?search=E07000114,Thanet District Council,06/06/2017,433030,865.76,,Southern Electric,SEL007,Community Services,Revenue,Energy Costs,Utilities,
http://statistics.data.gov.uk/search?search=E07000114,Thanet District Council,06/06/2017,433035,583.95,,Southern Electric,SEL007,Operational Services,Revenue,Energy Costs,Utilities,
http://statistics.data.gov.uk/search?search=E07000114,Thanet District Council,06/06/2017,433036,6277.63,,Southern Electric,SEL007,Community Services,Revenue,Energy Costs,Utilities,
http://statistics.data.gov.uk/search?search=E07000114,Thanet District Council,06/06/2017,433038,2123.54,,Southern Electric,SEL007,Community Services,Revenue,Energy Costs,Utilities,
http://statistics.data.gov.uk/search?search=E07000114,Thanet District Council,06/06/2017,433039,831.33,,Southern Electric,SEL007,Operational Services,Revenue,Energy Costs,Utilities,
http://statistics.data.gov.uk/search?search=E07000114,Thanet District Council,06/06/2017,433040,4019.77,,Southern Electric,SEL007,Operational Services,Revenue,Energy Costs,Utilities,
http://statistics.data.gov.uk/search?search=E07000114,Thanet District Council,06/06/2017,433041,3510.21,,Southern Electric,SEL007,Community Services,Revenue,Energy Costs,Utilities,
http://statistics.data.gov.uk/search?search=E07000114,Thanet District Council,06/06/2017,432286,10625.50,,Springfield Cars Limited,SPR006,Corporate Resources and S151,Balance Sheet,Plant And Equipment,Vehicle Management,
http://statistics.data.gov.uk/search?search=E07000114,Thanet District Council,06/06/2017,432287,10625.50,,Springfield Cars Limited,SPR006,Corporate Resources and S151,Balance Sheet,Plant And Equipment,Vehicle Management,
http://statistics.data.gov.uk/search?search=E07000114,Thanet District Council,06/06/2017,432288,10625.50,,Springfield Cars Limited,SPR006,Corporate Resources and S151,Balance Sheet,Plant And Equipment,Vehicle Management,
http://statistics.data.gov.uk/search?search=E07000114,Thanet District Council,06/06/2017,432289,10625.50,,Springfield Cars Limited,SPR006,Corporate Resources and S151,Balance Sheet,Plant And Equipment,Vehicle Management,
http://statistics.data.gov.uk/search?search=E07000114,Thanet District Council,06/06/2017,432953,5030.00,,Streetkleen Bio Limited,STR040,Operational Services,Revenue,Services,Environmental Services,
http://statistics.data.gov.uk/search?search=E07000114,Thanet District Council,06/06/2017,432733,471.29,,Templars Estates Ltd,TEM005,Corporate Resources and S151,Balance Sheet,Capital Exp-Non Council Assets,Grants,
http://statistics.data.gov.uk/search?search=E07000114,Thanet District Council,06/06/2017,432735,368.47,,Templars Estates Ltd,TEM005,Corporate Resources and S151,Balance Sheet,Capital Exp-Non Council Assets,Grants,
http://statistics.data.gov.uk/search?search=E07000114,Thanet District Council,06/06/2017,432736,384.40,,Templars Estates Ltd,TEM005,Corporate Resources and S151,Balance Sheet,Capital Exp-Non Council Assets,Grants,
http://statistics.data.gov.uk/search?search=E07000114,Thanet District Council,06/06/2017,432739,405.02,,Templars Estates Ltd,TEM005,Corporate Resources and S151,Balance Sheet,Capital Exp-Non Council Assets,Grants,
http://statistics.data.gov.uk/search?search=E07000114,Thanet District Council,06/06/2017,432740,466.43,,Templars Estates Ltd,TEM005,Corporate Resources and S151,Balance Sheet,Capital Exp-Non Council Assets,Grants,
http://statistics.data.gov.uk/search?search=E07000114,Thanet District Council,06/06/2017,432741,472.62,,Templars Estates Ltd,TEM005,Corporate Resources and S151,Balance Sheet,Capital Exp-Non Council Assets,Grants,
http://statistics.data.gov.uk/search?search=E07000114,Thanet District Council,06/06/2017,432270,35.10,,Tfa Fuel Services Ltd,TFA003,Operational Services,Revenue,Direct Transport Costs,Utilities,
http://statistics.data.gov.uk/search?search=E07000114,Thanet District Council,06/06/2017,432270,367.07,,Tfa Fuel Services Ltd,TFA003,Operational Services,Revenue,"Equip, Furniture And Materials",Utilities,
http://statistics.data.gov.uk/search?search=E07000114,Thanet District Council,06/06/2017,432585,3137.50,,The Glenwood Hotel,GLE007,Community Services,Revenue,Services,Housing Management,
http://statistics.data.gov.uk/search?search=E07000114,Thanet District Council,06/06/2017,432586,3004.18,,The Glenwood Hotel,GLE007,Community Services,Revenue,Services,Housing Management,
http://statistics.data.gov.uk/search?search=E07000114,Thanet District Council,06/06/2017,432587,3470.85,,The Glenwood Hotel,GLE007,Community Services,Revenue,Services,Housing Management,
http://statistics.data.gov.uk/search?search=E07000114,Thanet District Council,06/06/2017,432588,2354.17,,The Glenwood Hotel,GLE007,Community Services,Revenue,Services,Housing Management,
http://statistics.data.gov.uk/search?search=E07000114,Thanet District Council,06/06/2017,433052,14563.99,,Trueden Disability Adaptations Ltd,TRU012,Corporate Resources and S151,Balance Sheet,Capital Exp-Non Council Assets,Grants,
http://statistics.data.gov.uk/search?search=E07000114,Thanet District Council,06/06/2017,433059,13882.17,,Trueden Disability Adaptations Ltd,TRU012,Corporate Resources and S151,Balance Sheet,Capital Exp-Non Council Assets,Grants,
http://statistics.data.gov.uk/search?search=E07000114,Thanet District Council,06/06/2017,433185,8379.41,,Trueden Disability Adaptations Ltd,TRU012,Corporate Resources and S151,Balance Sheet,Capital Exp-Non Council Assets,Grants,
http://statistics.data.gov.uk/search?search=E07000114,Thanet District Council,06/06/2017,432325,250.00,,Uplands Engineering Ltd,UPL001,Operational Services,Revenue,"Repairs,  Alter & Mtce - Build",Maritime Services,
http://statistics.data.gov.uk/search?search=E07000114,Thanet District Council,06/06/2017,432387,380.00,,Uplands Engineering Ltd,UPL001,Corporate Resources and S151,Balance Sheet,Rechargeable Works,Maritime Services,
http://statistics.data.gov.uk/search?search=E07000114,Thanet District Council,06/06/2017,432765,320.00,,Uplands Engineering Ltd,UPL001,Operational Services,Revenue,"Repairs,  Alter & Mtce - Build",Maritime Services,
http://statistics.data.gov.uk/search?search=E07000114,Thanet District Council,06/06/2017,432313,1441.00,,Venn Group Limited,VEN004,Corporate Governance,Revenue,Services,Human Resources,
http://statistics.data.gov.uk/search?search=E07000114,Thanet District Council,06/06/2017,432299,348.96,,Veolia Es (Uk) Ltd,VEO001,Operational Services,Revenue,Cleaning & Domestic Supplies,Environmental Services,
http://statistics.data.gov.uk/search?search=E07000114,Thanet District Council,06/06/2017,432645,7709.35,,Vodafone Limited (Corporate),VOD001,Corporate Resources and S151,Balance Sheet,Mobile Phone Holding A/C,ICT,
http://statistics.data.gov.uk/search?search=E07000114,Thanet District Council,06/06/2017,432837,3627.56,,Westbrook Construction (Margate) Ltd,WES021,Operational Services,Revenue,"Repairs,  Alter & Mtce - Build",Various Categories,
http://statistics.data.gov.uk/search?search=E07000114,Thanet District Council,06/06/2017,432336,857.30,,Wise Handling Limited,WIS001,Operational Services,Revenue,"Repairs,  Alter & Mtce - Build",Maritime Services,
http://statistics.data.gov.uk/search?search=E07000114,Thanet District Council,08/06/2017,432258,5052.18,,Advanced Business Solutions,COA011,Corporate Resources and S151,Revenue,Communications & Computing,ICT,
http://statistics.data.gov.uk/search?search=E07000114,Thanet District Council,08/06/2017,432259,18953.27,,Advanced Business Solutions,COA011,Corporate Resources and S151,Revenue,Communications & Computing,ICT,
http://statistics.data.gov.uk/search?search=E07000114,Thanet District Council,08/06/2017,432389,604.16,,Andrews & Elliott Limited,AND001,Operational Services,Revenue,"Repairs,  Alter & Mtce - Build",Cemetery And Crematorium,
http://statistics.data.gov.uk/search?search=E07000114,Thanet District Council,08/06/2017,433506,622.22,,British Telecommunications Plc,BTE005,Operational Services,Revenue,Communications & Computing,ICT,
http://statistics.data.gov.uk/search?search=E07000114,Thanet District Council,08/06/2017,432337,732.25,,Carol Peters,PET003,Community Services,Revenue,Services,Agency Payments,
http://statistics.data.gov.uk/search?search=E07000114,Thanet District Council,08/06/2017,433414,503.00,,Carol Peters,PET003,Community Services,Revenue,Services,Agency Payments,
http://statistics.data.gov.uk/search?search=E07000114,Thanet District Council,08/06/2017,432146,5066.10,,Dennis Eagle Ltd,DEN005,Operational Services,Revenue,Direct Transport Costs,Vehicle Management,
http://statistics.data.gov.uk/search?search=E07000114,Thanet District Council,08/06/2017,432565,249.40,,Dunoon Ceramics Ltd,DUN014,Community Services,Revenue,"Equip, Furniture And Materials",Stationery,
http://statistics.data.gov.uk/search?search=E07000114,Thanet District Council,08/06/2017,432323,6251.50,,Electoral Reform Services,ELE010,Corporate Governance,Revenue,Communications & Computing,Facilities And Management Serv,
http://statistics.data.gov.uk/search?search=E07000114,Thanet District Council,08/06/2017,432323,5449.95,,Electoral Reform Services,ELE010,Corporate Governance,Revenue,"Print, Stat And Gen Off Exps",Facilities And Management Serv,
http://statistics.data.gov.uk/search?search=E07000114,Thanet District Council,08/06/2017,432324,5527.94,,Electoral Reform Services,ELE010,Corporate Governance,Revenue,"Print, Stat And Gen Off Exps",Facilities And Management Serv,
http://statistics.data.gov.uk/search?search=E07000114,Thanet District Council,08/06/2017,432572,471.86,,Emma Ball Ltd,BAL013,Community Services,Revenue,"Equip, Furniture And Materials",Stationery,
http://statistics.data.gov.uk/search?search=E07000114,Thanet District Council,08/06/2017,432722,1034.40,,Graffiti Removal Ltd,GRA039,Operational Services,Revenue,"Equip, Furniture And Materials",Cleaning And Janitorial,
http://statistics.data.gov.uk/search?search=E07000114,Thanet District Council,08/06/2017,429485,258.75,,Holbrook Revell Electrical Ltd,HOL015,Operational Services,Revenue,"Repairs,  Alter & Mtce - Build",Building Construction Material,
http://statistics.data.gov.uk/search?search=E07000114,Thanet District Council,08/06/2017,429485,3847.50,,Holbrook Revell Electrical Ltd,HOL015,Operational Services,Revenue,Services,Building Construction Material,
http://statistics.data.gov.uk/search?search=E07000114,Thanet District Council,08/06/2017,432328,394.50,,Hr Go (Kent) Ltd,HRG001,Operational Services,Revenue,Agency Staff,Human Resources,
http://statistics.data.gov.uk/search?search=E07000114,Thanet District Council,08/06/2017,432560,235.00,,Jewson Ltd,JEW001,Operational Services,Revenue,Cont Hire & Operating Lease,Building Construction Material,
http://statistics.data.gov.uk/search?search=E07000114,Thanet District Council,08/06/2017,433080,290.00,,Michelle Williams,WIL064,Community Services,Revenue,Services,Arts And Leisure Services,
http://statistics.data.gov.uk/search?search=E07000114,Thanet District Council,08/06/2017,430570,501.16,,Morgan Jones Ltd,MOR001,Corporate Governance,Revenue,Agency Staff,Human Resources,
http://statistics.data.gov.uk/search?search=E07000114,Thanet District Council,08/06/2017,431050,486.20,,Morgan Jones Ltd,MOR001,Corporate Governance,Revenue,Agency Staff,Human Resources,
http://statistics.data.gov.uk/search?search=E07000114,Thanet District Council,08/06/2017,431485,613.36,,Morgan Jones Ltd,MOR001,Corporate Governance,Revenue,Agency Staff,Human Resources,
http://statistics.data.gov.uk/search?search=E07000114,Thanet District Council,08/06/2017,431861,359.04,,Morgan Jones Ltd,MOR001,Corporate Governance,Revenue,Agency Staff,Human Resources,
http://statistics.data.gov.uk/search?search=E07000114,Thanet District Council,08/06/2017,432285,624.58,,Morgan Jones Ltd,MOR001,Corporate Governance,Revenue,Agency Staff,Human Resources,
http://statistics.data.gov.uk/search?search=E07000114,Thanet District Council,08/06/2017,432140,319.55,,Ntm-Gb Limited,NTM001,Operational Services,Revenue,Direct Transport Costs,Vehicle Management,
http://statistics.data.gov.uk/search?search=E07000114,Thanet District Council,08/06/2017,432279,1809.72,,Ntm-Gb Limited,NTM001,Operational Services,Revenue,Direct Transport Costs,Vehicle Management,
http://statistics.data.gov.uk/search?search=E07000114,Thanet District Council,08/06/2017,433269,294.67,,Southern Electric,SEL007,Operational Services,Revenue,Energy Costs,Utilities,
http://statistics.data.gov.uk/search?search=E07000114,Thanet District Council,08/06/2017,433270,241.48,,Southern Electric,SEL007,Operational Services,Revenue,Energy Costs,Utilities,
http://statistics.data.gov.uk/search?search=E07000114,Thanet District Council,08/06/2017,433280,1276.77,,Southern Electric,SEL007,Community Services,Revenue,Energy Costs,Utilities,
http://statistics.data.gov.uk/search?search=E07000114,Thanet District Council,08/06/2017,433288,280.90,,Southern Electric,SEL007,Operational Services,Revenue,Energy Costs,Utilities,
http://statistics.data.gov.uk/search?search=E07000114,Thanet District Council,08/06/2017,433290,4.92,,Southern Electric,SEL007,Community Services,Revenue,Energy Costs,Utilities,
http://statistics.data.gov.uk/search?search=E07000114,Thanet District Council,08/06/2017,433290,526.83,,Southern Electric,SEL007,Operational Services,Revenue,Energy Costs,Utilities,
http://statistics.data.gov.uk/search?search=E07000114,Thanet District Council,08/06/2017,432213,3295.84,,The Glenwood Hotel,GLE007,Community Services,Revenue,Services,Housing Management,
http://statistics.data.gov.uk/search?search=E07000114,Thanet District Council,08/06/2017,432214,2945.84,,The Glenwood Hotel,GLE007,Community Services,Revenue,Services,Housing Management,
http://statistics.data.gov.uk/search?search=E07000114,Thanet District Council,08/06/2017,432215,3733.36,,The Glenwood Hotel,GLE007,Community Services,Revenue,Services,Housing Management,
http://statistics.data.gov.uk/search?search=E07000114,Thanet District Council,08/06/2017,432216,1808.32,,The Glenwood Hotel,GLE007,Community Services,Revenue,Services,Housing Management,
http://statistics.data.gov.uk/search?search=E07000114,Thanet District Council,13/06/2017,433737,3850.00,,Access Intelligence Media & Comm Ltd,ALL036,Corporate Resources and S151,Revenue,Communications & Computing,ICT,
http://statistics.data.gov.uk/search?search=E07000114,Thanet District Council,13/06/2017,433123,5000.00,,Accordio Limited,ACC010,East Kent Shared Services,Revenue,Services,Consultancy,
http://statistics.data.gov.uk/search?search=E07000114,Thanet District Council,13/06/2017,432978,3586.75,,Albion Fencing&Construction Kent Ltd,ALB005,Operational Services,Revenue,"Repairs,  Alter & Mtce - Build",Building Construction Material,
http://statistics.data.gov.uk/search?search=E07000114,Thanet District Council,13/06/2017,433757,484.00,,All Access Ltd,ALL031,Community Services,Revenue,Services,Building Construction Material,
http://statistics.data.gov.uk/search?search=E07000114,Thanet District Council,13/06/2017,433424,1000.00,,Amicushorizon Ltd S.E. Consortium,AMI004,Community Services,Revenue,Grants & Subscriptions,Building Construction Material,
http://statistics.data.gov.uk/search?search=E07000114,Thanet District Council,13/06/2017,432928,946.00,,Aston Walker,AST008,Community Services,Revenue,Services,Cemetery And Crematorium,
http://statistics.data.gov.uk/search?search=E07000114,Thanet District Council,13/06/2017,432809,370.40,,Ate (Uk) Limited,ANG014,Operational Services,Revenue,Direct Transport Costs,Vehicle Management,
http://statistics.data.gov.uk/search?search=E07000114,Thanet District Council,13/06/2017,432939,67672.46,,Axis Europe Plc,AXI001,Corporate Resources and S151,Balance Sheet,Council Dwellings,Construction-Repair And Maint,
http://statistics.data.gov.uk/search?search=E07000114,Thanet District Council,13/06/2017,432971,428.63,,Bishop Sports & Leisure Ltd,BIS003,Community Services,Revenue,"Equip, Furniture And Materials",Sports Playground Equipment,
http://statistics.data.gov.uk/search?search=E07000114,Thanet District Council,13/06/2017,432979,500.00,,Bradstowe Chartered Surveyors,BRA027,Community Services,Revenue,Services,Facilities And Management Serv,
http://statistics.data.gov.uk/search?search=E07000114,Thanet District Council,13/06/2017,433740,10498.06,,Bramling Construction Ltd,BRA020,Corporate Resources and S151,Balance Sheet,Capital Exp-Non Council Assets,Grants,
http://statistics.data.gov.uk/search?search=E07000114,Thanet District Council,13/06/2017,433750,13693.54,,Bramling Construction Ltd,BRA020,Corporate Resources and S151,Balance Sheet,Capital Exp-Non Council Assets,Grants,
http://statistics.data.gov.uk/search?search=E07000114,Thanet District Council,13/06/2017,432633,680.00,,Broadstairs Metal Craft,BRO058,Operational Services,Revenue,"Repairs,  Alter & Mtce - Build",Construction-Repair And Maint,
http://statistics.data.gov.uk/search?search=E07000114,Thanet District Council,13/06/2017,432613,2000.00,,C A Traffic Ltd,CAT007,Community Services,Revenue,Services,Health And Safety,
http://statistics.data.gov.uk/search?search=E07000114,Thanet District Council,13/06/2017,433398,2817.85,,Canon (Uk) Ltd,CAN021,Corporate Governance,Revenue,"Equip, Furniture And Materials",Facilities And Management Serv,
http://statistics.data.gov.uk/search?search=E07000114,Thanet District Council,13/06/2017,432639,265.00,,Channel Commercials Plc,CCO001,Operational Services,Revenue,Direct Transport Costs,Vehicle Management,
http://statistics.data.gov.uk/search?search=E07000114,Thanet District Council,13/06/2017,433631,310.00,,Chapel Print Limited,CHA069,Community Services,Revenue,"Print, Stat And Gen Off Exps",Stationery,
http://statistics.data.gov.uk/search?search=E07000114,Thanet District Council,13/06/2017,433093,1710.00,,Cipfa Business Ltd,CIP008,Corporate Resources and S151,Revenue,Grants & Subscriptions,Financial Services,
http://statistics.data.gov.uk/search?search=E07000114,Thanet District Council,13/06/2017,433470,312.50,,Dat 1 Ltd,DAT009,Community Services,Revenue,"Equip, Furniture And Materials",Facilities And Management Serv,
http://statistics.data.gov.uk/search?search=E07000114,Thanet District Council,13/06/2017,432356,345.12,,Dennis Eagle Ltd,DEN005,Operational Services,Revenue,Direct Transport Costs,Vehicle Management,
http://statistics.data.gov.uk/search?search=E07000114,Thanet District Council,13/06/2017,432357,3779.39,,Dennis Eagle Ltd,DEN005,Operational Services,Revenue,Direct Transport Costs,Vehicle Management,
http://statistics.data.gov.uk/search?search=E07000114,Thanet District Council,13/06/2017,432358,398.32,,Dennis Eagle Ltd,DEN005,Operational Services,Revenue,Direct Transport Costs,Vehicle Management,
http://statistics.data.gov.uk/search?search=E07000114,Thanet District Council,13/06/2017,432359,499.48,,Dennis Eagle Ltd,DEN005,Operational Services,Revenue,Direct Transport Costs,Vehicle Management,
http://statistics.data.gov.uk/search?search=E07000114,Thanet District Council,13/06/2017,432834,599.84,,Dennis Eagle Ltd,DEN005,Operational Services,Revenue,Direct Transport Costs,Vehicle Management,
http://statistics.data.gov.uk/search?search=E07000114,Thanet District Council,13/06/2017,432836,672.56,,Dennis Eagle Ltd,DEN005,Operational Services,Revenue,Direct Transport Costs,Vehicle Management,
http://statistics.data.gov.uk/search?search=E07000114,Thanet District Council,13/06/2017,432558,441.34,,Eagle Envelopes Ltd,EAG001,East Kent Shared Services,Revenue,"Print, Stat And Gen Off Exps",Stationery,
http://statistics.data.gov.uk/search?search=E07000114,Thanet District Council,13/06/2017,433483,836.92,,Elec-Sec Ltd,ELE014,Corporate Governance,Revenue,"Repairs,  Alter & Mtce - Build",Building Construction Material,
http://statistics.data.gov.uk/search?search=E07000114,Thanet District Council,13/06/2017,433487,293.93,,Elec-Sec Ltd,ELE014,Corporate Governance,Revenue,"Repairs,  Alter & Mtce - Build",Building Construction Material,
http://statistics.data.gov.uk/search?search=E07000114,Thanet District Council,13/06/2017,432730,362.50,,Electrical Lighting Solutions Ltd,ELE013,Corporate Governance,Revenue,"Repairs,  Alter & Mtce - Build",Building Construction Material,
http://statistics.data.gov.uk/search?search=E07000114,Thanet District Council,13/06/2017,432828,237.50,,Electrical Lighting Solutions Ltd,ELE013,Operational Services,Revenue,"Repairs,  Alter & Mtce - Build",Building Construction Material,
http://statistics.data.gov.uk/search?search=E07000114,Thanet District Council,13/06/2017,432829,1711.22,,Electrical Lighting Solutions Ltd,ELE013,Corporate Governance,Revenue,"Repairs,  Alter & Mtce - Build",Building Construction Material,
http://statistics.data.gov.uk/search?search=E07000114,Thanet District Council,13/06/2017,433741,1242.18,,Family Mosaic Housing,FAM001,Corporate Resources and S151,Balance Sheet,Capital Exp-Non Council Assets,Housing Management,
http://statistics.data.gov.uk/search?search=E07000114,Thanet District Council,13/06/2017,433743,1191.19,,Family Mosaic Housing,FAM001,Corporate Resources and S151,Balance Sheet,Capital Exp-Non Council Assets,Housing Management,
http://statistics.data.gov.uk/search?search=E07000114,Thanet District Council,13/06/2017,433745,868.50,,Family Mosaic Housing,FAM001,Corporate Resources and S151,Balance Sheet,Capital Exp-Non Council Assets,Housing Management,
http://statistics.data.gov.uk/search?search=E07000114,Thanet District Council,13/06/2017,433747,742.02,,Family Mosaic Housing,FAM001,Corporate Resources and S151,Balance Sheet,Capital Exp-Non Council Assets,Housing Management,
http://statistics.data.gov.uk/search?search=E07000114,Thanet District Council,13/06/2017,433751,1579.11,,Family Mosaic Housing,FAM001,Corporate Resources and S151,Balance Sheet,Capital Exp-Non Council Assets,Housing Management,
http://statistics.data.gov.uk/search?search=E07000114,Thanet District Council,13/06/2017,433209,671.03,,Farrer Barnes Limited,FAR012,Corporate Resources and S151,Revenue,Agency Staff,Human Resources,
http://statistics.data.gov.uk/search?search=E07000114,Thanet District Council,13/06/2017,433210,643.69,,Farrer Barnes Limited,FAR012,Corporate Resources and S151,Revenue,Agency Staff,Human Resources,
http://statistics.data.gov.uk/search?search=E07000114,Thanet District Council,13/06/2017,433619,558.41,,Farrer Barnes Limited,FAR012,Corporate Resources and S151,Revenue,Agency Staff,Human Resources,
http://statistics.data.gov.uk/search?search=E07000114,Thanet District Council,13/06/2017,433620,521.70,,Farrer Barnes Limited,FAR012,Corporate Resources and S151,Revenue,Agency Staff,Human Resources,
http://statistics.data.gov.uk/search?search=E07000114,Thanet District Council,13/06/2017,433499,930.00,,Florence Court Hotel,FLO003,Community Services,Revenue,Services,Housing Management,
http://statistics.data.gov.uk/search?search=E07000114,Thanet District Council,13/06/2017,433507,1085.00,,Florence Court Hotel,FLO003,Community Services,Revenue,Services,Housing Management,
http://statistics.data.gov.uk/search?search=E07000114,Thanet District Council,13/06/2017,430752,6132.04,,Future-Tech Sci Ltd,FUT001,Corporate Governance,Revenue,"Repairs,  Alter & Mtce - Build",Facilities And Management Serv,
http://statistics.data.gov.uk/search?search=E07000114,Thanet District Council,13/06/2017,432801,2642.86,,Future-Tech Sci Ltd,FUT001,Corporate Governance,Revenue,"Repairs,  Alter & Mtce - Build",Facilities And Management Serv,
http://statistics.data.gov.uk/search?search=E07000114,Thanet District Council,13/06/2017,433097,4995.25,,Future-Tech Sci Ltd,FUT001,Corporate Governance,Revenue,"Repairs,  Alter & Mtce - Build",Facilities And Management Serv,
http://statistics.data.gov.uk/search?search=E07000114,Thanet District Council,13/06/2017,432941,852.44,,Getronics Services (Uk) Limited,GET007,East Kent Shared Services,Revenue,Communications & Computing,ICT,
http://statistics.data.gov.uk/search?search=E07000114,Thanet District Council,13/06/2017,433229,900.00,,Getty Images International,GET009,Corporate Governance,Revenue,Miscellaneous Expenses,Facilities And Management Serv,
http://statistics.data.gov.uk/search?search=E07000114,Thanet District Council,13/06/2017,433223,625.65,,Haynes Of Maidstone Ltd,HAY008,Operational Services,Revenue,Direct Transport Costs,Vehicle Management,
http://statistics.data.gov.uk/search?search=E07000114,Thanet District Council,13/06/2017,433224,2016.62,,Haynes Of Maidstone Ltd,HAY008,Operational Services,Revenue,Direct Transport Costs,Vehicle Management,
http://statistics.data.gov.uk/search?search=E07000114,Thanet District Council,13/06/2017,433444,3000.00,,Hays Specialist Recruitment Ltd,HAY020,Corporate Resources and S151,Revenue,Services,Human Resources,
http://statistics.data.gov.uk/search?search=E07000114,Thanet District Council,13/06/2017,433752,449.28,,Hfd Construction,HFD001,Corporate Resources and S151,Balance Sheet,Capital Exp-Non Council Assets,Grants,
http://statistics.data.gov.uk/search?search=E07000114,Thanet District Council,13/06/2017,432937,1110.52,,Hilton Cabinet Co Ltd,HIL002,Operational Services,Revenue,"Equip, Furniture And Materials",Furniture And Soft Furnishings,
http://statistics.data.gov.uk/search?search=E07000114,Thanet District Council,13/06/2017,433106,18852.33,,Hipperson Builders (M & E) Limited,HIP002,Corporate Resources and S151,Balance Sheet,Council Dwellings,Construction-Repair And Maint,
http://statistics.data.gov.uk/search?search=E07000114,Thanet District Council,13/06/2017,432942,1491.84,,Hr Go (Kent) Ltd,HRG001,Operational Services,Revenue,Agency Staff,Human Resources,
http://statistics.data.gov.uk/search?search=E07000114,Thanet District Council,13/06/2017,432943,1139.70,,Hr Go (Kent) Ltd,HRG001,Operational Services,Revenue,Agency Staff,Human Resources,
http://statistics.data.gov.uk/search?search=E07000114,Thanet District Council,13/06/2017,432944,1311.82,,Hr Go (Kent) Ltd,HRG001,Operational Services,Revenue,Agency Staff,Human Resources,
http://statistics.data.gov.uk/search?search=E07000114,Thanet District Council,13/06/2017,432946,486.55,,Hr Go (Kent) Ltd,HRG001,Operational Services,Revenue,Agency Staff,Human Resources,
http://statistics.data.gov.uk/search?search=E07000114,Thanet District Council,13/06/2017,432948,475.82,,Hr Go (Kent) Ltd,HRG001,Community Services,Revenue,Agency Staff,Human Resources,
http://statistics.data.gov.uk/search?search=E07000114,Thanet District Council,13/06/2017,432949,1769.34,,Hr Go (Kent) Ltd,HRG001,Operational Services,Revenue,Agency Staff,Human Resources,
http://statistics.data.gov.uk/search?search=E07000114,Thanet District Council,13/06/2017,432950,568.61,,Hr Go (Kent) Ltd,HRG001,Operational Services,Revenue,Agency Staff,Human Resources,
http://statistics.data.gov.uk/search?search=E07000114,Thanet District Council,13/06/2017,433409,520.32,,Hr Go (Kent) Ltd,HRG001,Community Services,Revenue,Agency Staff,Human Resources,
http://statistics.data.gov.uk/search?search=E07000114,Thanet District Council,13/06/2017,433742,10756.58,,Hubbard & Houghton Construction Ltd,HUB003,Corporate Resources and S151,Balance Sheet,Capital Exp-Non Council Assets,Grants,
http://statistics.data.gov.uk/search?search=E07000114,Thanet District Council,13/06/2017,433439,400.00,,Hutton Design Associates Limited,HUT002,Community Services,Revenue,"Print, Stat And Gen Off Exps",Facilities And Management Serv,
http://statistics.data.gov.uk/search?search=E07000114,Thanet District Council,13/06/2017,431153,4116.00,,Imperial Civil Enforcement Sols Ltd,IMP008,Operational Services,Revenue,"Equip, Furniture And Materials",Street And Traffic Management,
http://statistics.data.gov.uk/search?search=E07000114,Thanet District Council,13/06/2017,432922,420.99,,Insight Direct (Uk) Ltd,INS013,Community Services,Revenue,Communications & Computing,ICT,
http://statistics.data.gov.uk/search?search=E07000114,Thanet District Council,13/06/2017,433423,230.10,,Jessica Hogarth Designs,JES005,Community Services,Revenue,"Equip, Furniture And Materials",Stationery,
http://statistics.data.gov.uk/search?search=E07000114,Thanet District Council,13/06/2017,433749,628.50,,John Gale,GAL001,Corporate Resources and S151,Balance Sheet,Capital Exp-Non Council Assets,Grants,
http://statistics.data.gov.uk/search?search=E07000114,Thanet District Council,13/06/2017,433443,4280.00,,Judge Architects Ltd,JUD005,Corporate Resources and S151,Balance Sheet,Other Land And Buildings-Hra,Construction-Repair And Maint,
http://statistics.data.gov.uk/search?search=E07000114,Thanet District Council,13/06/2017,433417,40000.00,,Kent County Council,KCC002,Corporate Resources and S151,Balance Sheet,Capital Exp-Non Council Assets,Various Cats - Public Sector,
http://statistics.data.gov.uk/search?search=E07000114,Thanet District Council,13/06/2017,433492,3165.70,,Kent County Council,KCC002,Operational Services,Revenue,"Repairs,  Alter & Mtce - Build",Various Cats - Public Sector,
http://statistics.data.gov.uk/search?search=E07000114,Thanet District Council,13/06/2017,433069,1094.06,,Kent Police & Crime Commissioner,KPC002,Community Services,Revenue,Services,Facilities And Management Serv,
http://statistics.data.gov.uk/search?search=E07000114,Thanet District Council,13/06/2017,433756,430.00,,Llg Enterprises Limited,LLG001,Corporate Governance,Revenue,Expenses,Human Resources,
http://statistics.data.gov.uk/search?search=E07000114,Thanet District Council,13/06/2017,432742,800.00,,Lobster Van Hire Ltd,LOB001,Corporate Governance,Revenue,Cont Hire & Operating Lease,Vehicle Management,
http://statistics.data.gov.uk/search?search=E07000114,Thanet District Council,13/06/2017,432766,255.90,,Main Man Supplies Ltd,MAI001,Operational Services,Revenue,"Clothes, Uniforms & Laundry",Clothing,
http://statistics.data.gov.uk/search?search=E07000114,Thanet District Council,13/06/2017,432752,20569.92,,Mears Ltd,MEA003,Operational Services,Revenue,"Repairs,  Alter & Mtce - Build",Construction-Repair And Maint,
http://statistics.data.gov.uk/search?search=E07000114,Thanet District Council,13/06/2017,432935,1052.60,,Mears Ltd,MEA003,Corporate Governance,Revenue,Fixtures & Fittings,Construction-Repair And Maint,
http://statistics.data.gov.uk/search?search=E07000114,Thanet District Council,13/06/2017,433124,684.64,,Mears Ltd,MEA003,Corporate Resources and S151,Balance Sheet,Repairs And Mtce Holding A/C,Construction-Repair And Maint,
http://statistics.data.gov.uk/search?search=E07000114,Thanet District Council,13/06/2017,433191,4861.39,,Mears Ltd,MEA003,Corporate Resources and S151,Balance Sheet,Repairs And Mtce Holding A/C,Construction-Repair And Maint,
http://statistics.data.gov.uk/search?search=E07000114,Thanet District Council,13/06/2017,433203,2666.67,,Mears Ltd,MEA003,Corporate Governance,Revenue,"Repairs,  Alter & Mtce - Build",Construction-Repair And Maint,
http://statistics.data.gov.uk/search?search=E07000114,Thanet District Council,13/06/2017,433441,900.00,,Michael Page Int Recruitment Ltd,PAG008,Corporate Resources and S151,Revenue,Services,Human Resources,
http://statistics.data.gov.uk/search?search=E07000114,Thanet District Council,13/06/2017,433739,19541.50,,Mitchell & Co Uk Ltd,MIT008,Corporate Resources and S151,Balance Sheet,Capital Exp-Non Council Assets,Grants,
http://statistics.data.gov.uk/search?search=E07000114,Thanet District Council,13/06/2017,433108,975.00,,Modus Film Productions Limited,MOD005,Community Services,Revenue,Services,Facilities And Management Serv,
http://statistics.data.gov.uk/search?search=E07000114,Thanet District Council,13/06/2017,432799,51077.31,,Molyneux Rose Ltd Cl Acc-I/S M'Gate,MOL002,Operational Services,Revenue,Rents,Financial Services,
http://statistics.data.gov.uk/search?search=E07000114,Thanet District Council,13/06/2017,432800,50124.24,,Molyneux Rose Ltd Cl Acc-I/S R'Gate,MOL003,Operational Services,Revenue,Rents,Facilities And Management Serv,
http://statistics.data.gov.uk/search?search=E07000114,Thanet District Council,13/06/2017,432763,598.40,,Morgan Jones Ltd,MOR001,Corporate Governance,Revenue,Agency Staff,Human Resources,
http://statistics.data.gov.uk/search?search=E07000114,Thanet District Council,13/06/2017,433113,598.40,,Morgan Jones Ltd,MOR001,Corporate Governance,Revenue,Agency Staff,Human Resources,
http://statistics.data.gov.uk/search?search=E07000114,Thanet District Council,13/06/2017,432985,4375.00,,Moriyama Limited,MOR031,East Kent Shared Services,Revenue,Communications & Computing,Human Resources,
http://statistics.data.gov.uk/search?search=E07000114,Thanet District Council,13/06/2017,433498,2019.38,,National Express Ltd,NAT010,Community Services,Revenue,Services,Agency Payments,
http://statistics.data.gov.uk/search?search=E07000114,Thanet District Council,13/06/2017,433464,1225.00,,Nayland Rock Hotel Margate Ltd,NAY003,Community Services,Revenue,Services,Housing Management,
http://statistics.data.gov.uk/search?search=E07000114,Thanet District Council,13/06/2017,432857,486.48,,Neopost Ltd,NEO003,Corporate Governance,Revenue,"Equip, Furniture And Materials",Mail Services,
http://statistics.data.gov.uk/search?search=E07000114,Thanet District Council,13/06/2017,432858,267.29,,Neopost Ltd,NEO003,Corporate Governance,Revenue,"Print, Stat And Gen Off Exps",Mail Services,
http://statistics.data.gov.uk/search?search=E07000114,Thanet District Council,13/06/2017,433232,745.33,,New Tech Security Ltd,NEW027,Corporate Governance,Revenue,"Repairs,  Alter & Mtce - Build",Facilities And Management Serv,
http://statistics.data.gov.uk/search?search=E07000114,Thanet District Council,13/06/2017,433233,329.00,,New Tech Security Ltd,NEW027,Corporate Governance,Revenue,"Equip, Furniture And Materials",Facilities And Management Serv,
http://statistics.data.gov.uk/search?search=E07000114,Thanet District Council,13/06/2017,432958,18296.90,,Ocs Group Uk Ltd T/A Fountains,OCS005,Operational Services,Revenue,Cleaning & Domestic Supplies,Cleaning And Janitorial,
http://statistics.data.gov.uk/search?search=E07000114,Thanet District Council,13/06/2017,432959,886.71,,Ocs Group Uk Ltd T/A Fountains,OCS005,Corporate Governance,Revenue,Cleaning & Domestic Supplies,Cleaning And Janitorial,
http://statistics.data.gov.uk/search?search=E07000114,Thanet District Council,13/06/2017,432960,948.61,,Ocs Group Uk Ltd T/A Fountains,OCS005,Operational Services,Revenue,Fixtures & Fittings,Cleaning And Janitorial,
http://statistics.data.gov.uk/search?search=E07000114,Thanet District Council,13/06/2017,433395,26441.48,,P & R Installation Company Limited,PRI035,Corporate Resources and S151,Balance Sheet,Repairs And Mtce Holding A/C,Building Construction Material,
http://statistics.data.gov.uk/search?search=E07000114,Thanet District Council,13/06/2017,432929,1157.25,,Page Plan Prints,PAG009,Community Services,Revenue,"Print, Stat And Gen Off Exps",Facilities And Management Serv,
http://statistics.data.gov.uk/search?search=E07000114,Thanet District Council,13/06/2017,432930,509.00,,Phoenix Software Ltd,PHO002,Operational Services,Revenue,Communications & Computing,ICT,
http://statistics.data.gov.uk/search?search=E07000114,Thanet District Council,13/06/2017,432833,1615.00,,Premier Signs,PRE027,Operational Services,Revenue,"Equip, Furniture And Materials",Building Construction Material,
http://statistics.data.gov.uk/search?search=E07000114,Thanet District Council,13/06/2017,431082,4742.50,,Prodo Digital Marketing Ltd,PRO036,Community Services,Revenue,Communications & Computing,ICT,
http://statistics.data.gov.uk/search?search=E07000114,Thanet District Council,13/06/2017,433234,7800.00,,Re-Cog Limited,REC005,Corporate Governance,Revenue,Services,Building Construction Material,
http://statistics.data.gov.uk/search?search=E07000114,Thanet District Council,13/06/2017,432616,2152.32,,Rexel Uk Limited,REX003,Operational Services,Revenue,"Repairs,  Alter & Mtce - Build",Building Construction Material,
http://statistics.data.gov.uk/search?search=E07000114,Thanet District Council,13/06/2017,432620,7017.57,,Rexel Uk Limited,REX003,Operational Services,Revenue,"Repairs,  Alter & Mtce - Build",Building Construction Material,
http://statistics.data.gov.uk/search?search=E07000114,Thanet District Council,13/06/2017,432848,330.00,,Safety & Management Solutions Ltd,SAF013,Corporate Resources and S151,Revenue,Training,Health And Safety,
http://statistics.data.gov.uk/search?search=E07000114,Thanet District Council,13/06/2017,433091,292.85,,Shepway & Dover Mediation,SHE037,Community Services,Revenue,Services,Human Resources,
http://statistics.data.gov.uk/search?search=E07000114,Thanet District Council,13/06/2017,433092,286.65,,Shepway & Dover Mediation,SHE037,Community Services,Revenue,Services,Human Resources,
http://statistics.data.gov.uk/search?search=E07000114,Thanet District Council,13/06/2017,433094,286.70,,Shepway & Dover Mediation,SHE037,Community Services,Revenue,Services,Human Resources,
http://statistics.data.gov.uk/search?search=E07000114,Thanet District Council,13/06/2017,432273,5075.00,,Sophie Jeffrey,JEF003,Community Services,Revenue,Services,Consultancy,
http://statistics.data.gov.uk/search?search=E07000114,Thanet District Council,13/06/2017,433744,7237.55,,South East Building Company Limited,SEB001,Corporate Resources and S151,Balance Sheet,Capital Exp-Non Council Assets,Grants,
http://statistics.data.gov.uk/search?search=E07000114,Thanet District Council,13/06/2017,433746,7055.23,,South East Building Company Limited,SEB001,Corporate Resources and S151,Balance Sheet,Capital Exp-Non Council Assets,Grants,
http://statistics.data.gov.uk/search?search=E07000114,Thanet District Council,13/06/2017,433748,6285.00,,South East Building Company Limited,SEB001,Corporate Resources and S151,Balance Sheet,Capital Exp-Non Council Assets,Grants,
http://statistics.data.gov.uk/search?search=E07000114,Thanet District Council,13/06/2017,432624,2809.10,,Swale Borough Council,SWA008,Community Services,Revenue,Grants & Subscriptions,Various Cats - Public Sector,
http://statistics.data.gov.uk/search?search=E07000114,Thanet District Council,13/06/2017,433021,2416.67,,The Glenwood Hotel,GLE007,Community Services,Revenue,Services,Housing Management,
http://statistics.data.gov.uk/search?search=E07000114,Thanet District Council,13/06/2017,433022,3470.85,,The Glenwood Hotel,GLE007,Community Services,Revenue,Services,Housing Management,
http://statistics.data.gov.uk/search?search=E07000114,Thanet District Council,13/06/2017,433023,2608.35,,The Glenwood Hotel,GLE007,Community Services,Revenue,Services,Housing Management,
http://statistics.data.gov.uk/search?search=E07000114,Thanet District Council,13/06/2017,433024,3762.50,,The Glenwood Hotel,GLE007,Community Services,Revenue,Services,Housing Management,
http://statistics.data.gov.uk/search?search=E07000114,Thanet District Council,13/06/2017,432847,1040.00,,The Pipeline,PIP002,Community Services,Revenue,Services,Various Categories,
http://statistics.data.gov.uk/search?search=E07000114,Thanet District Council,13/06/2017,433625,1710.55,,Thorley Taverns Ltd,THO001,Community Services,Revenue,Rents,Facilities And Management Serv,
http://statistics.data.gov.uk/search?search=E07000114,Thanet District Council,13/06/2017,432559,600.00,,Timeplan Fuel Solutions Ltd,TIM007,Operational Services,Revenue,Direct Transport Costs,Vehicle Management,
http://statistics.data.gov.uk/search?search=E07000114,Thanet District Council,13/06/2017,432559,10.00,,Timeplan Fuel Solutions Ltd,TIM007,Operational Services,Revenue,"Equip, Furniture And Materials",Vehicle Management,
http://statistics.data.gov.uk/search?search=E07000114,Thanet District Council,13/06/2017,432974,390.00,,Tourism South East,TOU003,Community Services,Revenue,Miscellaneous Expenses,Human Resources,
http://statistics.data.gov.uk/search?search=E07000114,Thanet District Council,13/06/2017,432952,1404.50,,Venn Group Limited,VEN004,Corporate Governance,Revenue,Services,Human Resources,
http://statistics.data.gov.uk/search?search=E07000114,Thanet District Council,13/06/2017,433193,1420.50,,Venn Group Limited,VEN004,Corporate Governance,Revenue,Services,Human Resources,
http://statistics.data.gov.uk/search?search=E07000114,Thanet District Council,13/06/2017,432977,300.00,,Your Leisure Kent Limited,YOU016,Community Services,Revenue,Services,Arts And Leisure Services,
http://statistics.data.gov.uk/search?search=E07000114,Thanet District Council,15/06/2017,432753,674.95,,Aebi Schmidt Uk Limited,AEB002,Operational Services,Revenue,Direct Transport Costs,Vehicle Management,
http://statistics.data.gov.uk/search?search=E07000114,Thanet District Council,15/06/2017,432980,450.00,,Amenity Horticultural Serv Ltd,AME001,Operational Services,Revenue,"Equip, Furniture And Materials",Horticultural,
http://statistics.data.gov.uk/search?search=E07000114,Thanet District Council,15/06/2017,432751,326.40,,Arco Limited,ARC001,Operational Services,Revenue,"Clothes, Uniforms & Laundry",Clothing,
http://statistics.data.gov.uk/search?search=E07000114,Thanet District Council,15/06/2017,432972,208.70,,Brett Concrete Ltd,BRE016,Operational Services,Revenue,"Repairs,  Alter & Mtce - Build",Building Construction Material,
http://statistics.data.gov.uk/search?search=E07000114,Thanet District Council,15/06/2017,432940,3118.53,,Canterbury Christ Church University,CAN006,Corporate Governance,Revenue,Energy Costs,Various Categories,
http://statistics.data.gov.uk/search?search=E07000114,Thanet District Council,15/06/2017,434032,1692.35,,Canterbury Christ Church University,CAN006,Corporate Governance,Revenue,Energy Costs,Various Categories,
http://statistics.data.gov.uk/search?search=E07000114,Thanet District Council,15/06/2017,432539,3062.91,,Canterbury City Council,CAN004,East Kent Shared Services,Revenue,"Print, Stat And Gen Off Exps",Various Cats - Public Sector,
http://statistics.data.gov.uk/search?search=E07000114,Thanet District Council,15/06/2017,432789,980.00,,Connaught Hotel Dover Limited,CON046,Community Services,Revenue,Services,Housing Management,
http://statistics.data.gov.uk/search?search=E07000114,Thanet District Council,15/06/2017,433071,1659.00,,Decksafe Solutions Ltd,DEC004,Operational Services,Revenue,"Repairs,  Alter & Mtce - Build",Maritime Services,
http://statistics.data.gov.uk/search?search=E07000114,Thanet District Council,15/06/2017,433426,150.00,,Dover Counselling Centre,DOV014,Corporate Resources and S151,Revenue,Employee Related Schemes,Healthcare,
http://statistics.data.gov.uk/search?search=E07000114,Thanet District Council,15/06/2017,433426,210.00,,Dover Counselling Centre,DOV014,Operational Services,Revenue,Employee Related Schemes,Healthcare,
http://statistics.data.gov.uk/search?search=E07000114,Thanet District Council,15/06/2017,433081,1592.66,,Electrical Lighting Solutions Ltd,ELE013,Operational Services,Revenue,"Repairs,  Alter & Mtce - Build",Building Construction Material,
http://statistics.data.gov.uk/search?search=E07000114,Thanet District Council,15/06/2017,433082,213.60,,Electrical Lighting Solutions Ltd,ELE013,Operational Services,Revenue,"Repairs,  Alter & Mtce - Build",Building Construction Material,
http://statistics.data.gov.uk/search?search=E07000114,Thanet District Council,15/06/2017,433083,285.21,,Electrical Lighting Solutions Ltd,ELE013,Operational Services,Revenue,"Repairs,  Alter & Mtce - Build",Building Construction Material,
http://statistics.data.gov.uk/search?search=E07000114,Thanet District Council,15/06/2017,433085,225.00,,Electrical Lighting Solutions Ltd,ELE013,Operational Services,Revenue,"Repairs,  Alter & Mtce - Build",Building Construction Material,
http://statistics.data.gov.uk/search?search=E07000114,Thanet District Council,15/06/2017,432931,225.45,,G & G Forklifts,GGF001,Operational Services,Revenue,"Repairs,  Alter & Mtce - Build",Vehicle Management,
http://statistics.data.gov.uk/search?search=E07000114,Thanet District Council,15/06/2017,432331,230.37,,Hr Go (Kent) Ltd,HRG001,Corporate Governance,Revenue,Agency Staff,Human Resources,
http://statistics.data.gov.uk/search?search=E07000114,Thanet District Council,15/06/2017,432574,11515.54,,Hr Go (Kent) Ltd,HRG001,Operational Services,Revenue,Agency Staff,Human Resources,
http://statistics.data.gov.uk/search?search=E07000114,Thanet District Council,15/06/2017,432945,1854.76,,Hr Go (Kent) Ltd,HRG001,Operational Services,Revenue,Agency Staff,Human Resources,
http://statistics.data.gov.uk/search?search=E07000114,Thanet District Council,15/06/2017,432947,230.37,,Hr Go (Kent) Ltd,HRG001,Corporate Governance,Revenue,Agency Staff,Human Resources,
http://statistics.data.gov.uk/search?search=E07000114,Thanet District Council,15/06/2017,433912,445.00,,Institute Of Cemetery & Crem Mang,INS015,Operational Services,Revenue,Grants & Subscriptions,Cemetery And Crematorium,
http://statistics.data.gov.uk/search?search=E07000114,Thanet District Council,15/06/2017,432954,7250.00,,J C White Geomatics Ltd,WHI019,Operational Services,Revenue,Services,Consultancy,
http://statistics.data.gov.uk/search?search=E07000114,Thanet District Council,15/06/2017,433105,391.76,,John Parker & Son Ltd,PAR001,Operational Services,Revenue,"Repairs,  Alter & Mtce - Build",Building Construction Material,
http://statistics.data.gov.uk/search?search=E07000114,Thanet District Council,15/06/2017,432961,3168.34,,Kent County Council (Kcs),KCC003,Operational Services,Revenue,"Equip, Furniture And Materials",Facilities And Management Serv,
http://statistics.data.gov.uk/search?search=E07000114,Thanet District Council,15/06/2017,432966,48940.93,,Kent County Council Re Pension Fund,KCC001,Corporate Resources and S151,Revenue,Severance Payments,Financial Services,
http://statistics.data.gov.uk/search?search=E07000114,Thanet District Council,15/06/2017,432859,2473.94,,Lister Wilder Limited,LIS002,Operational Services,Revenue,"Equip, Furniture And Materials",Horticultural,
http://statistics.data.gov.uk/search?search=E07000114,Thanet District Council,15/06/2017,433215,545.00,,Local Government Association,LGA001,Chief Executive,Revenue,Expenses,Various Categories,
http://statistics.data.gov.uk/search?search=E07000114,Thanet District Council,15/06/2017,432750,8.00,,Lyreco Uk Limited,LYR001,Community Services,Revenue,"Print, Stat And Gen Off Exps",Stationery,
http://statistics.data.gov.uk/search?search=E07000114,Thanet District Council,15/06/2017,432750,169.85,,Lyreco Uk Limited,LYR001,Corporate Governance,Revenue,"Print, Stat And Gen Off Exps",Stationery,
http://statistics.data.gov.uk/search?search=E07000114,Thanet District Council,15/06/2017,432750,107.57,,Lyreco Uk Limited,LYR001,Operational Services,Revenue,"Print, Stat And Gen Off Exps",Stationery,
http://statistics.data.gov.uk/search?search=E07000114,Thanet District Council,15/06/2017,432951,334.00,,Main Man Supplies Ltd,MAI001,Operational Services,Revenue,"Clothes, Uniforms & Laundry",Clothing,
http://statistics.data.gov.uk/search?search=E07000114,Thanet District Council,15/06/2017,433121,1150.14,,Ohuk Limited,OHU001,Operational Services,Revenue,Agency Staff,Human Resources,
http://statistics.data.gov.uk/search?search=E07000114,Thanet District Council,15/06/2017,432969,650.00,,R J Broadley Tree Surgery,RJB002,Operational Services,Revenue,Grounds Mtce Costs,Horticultural,
http://statistics.data.gov.uk/search?search=E07000114,Thanet District Council,15/06/2017,432923,238.94,,Screwfix Direct Ltd,SCR001,Operational Services,Revenue,"Repairs,  Alter & Mtce - Build",Building Construction Material,
http://statistics.data.gov.uk/search?search=E07000114,Thanet District Council,15/06/2017,433115,383.32,,Seasafe Systems Ltd,SEA004,Operational Services,Revenue,"Clothes, Uniforms & Laundry",Clothing,
http://statistics.data.gov.uk/search?search=E07000114,Thanet District Council,15/06/2017,433072,242.50,,South East Netting Limited,SOU016,Operational Services,Revenue,"Repairs,  Alter & Mtce - Build",Building Construction Material,
http://statistics.data.gov.uk/search?search=E07000114,Thanet District Council,15/06/2017,433468,245.51,,Tchibo Coffee International Ltd,TCH007,Corporate Resources and S151,Balance Sheet,Stationery Stores,Catering,
http://statistics.data.gov.uk/search?search=E07000114,Thanet District Council,15/06/2017,433468,9.94,,Tchibo Coffee International Ltd,TCH007,Corporate Resources and S151,Balance Sheet,Stationery Stores,Catering,
http://statistics.data.gov.uk/search?search=E07000114,Thanet District Council,19/06/2017,N/A,390.04,,REDACTED PERSONAL DATA,N/A,East Kent Shared Services,Revenue,Car Allowances,Non Trade Payee,
http://statistics.data.gov.uk/search?search=E07000114,Thanet District Council,19/06/2017,N/A,578.69,,REDACTED PERSONAL DATA,N/A,East Kent Shared Services,Revenue,Car Allowances,Non Trade Payee,
http://statistics.data.gov.uk/search?search=E07000114,Thanet District Council,19/06/2017,N/A,22.26,,REDACTED PERSONAL DATA,N/A,East Kent Shared Services,Revenue,Car Allowances,Non Trade Payee,
http://statistics.data.gov.uk/search?search=E07000114,Thanet District Council,19/06/2017,N/A,503.90,,REDACTED PERSONAL DATA,N/A,East Kent Shared Services,Revenue,Public Transport,Non Trade Payee,
http://statistics.data.gov.uk/search?search=E07000114,Thanet District Council,19/06/2017,N/A,396.60,,REDACTED PERSONAL DATA,N/A,East Kent Shared Services,Revenue,Expenses,Non Trade Payee,
http://statistics.data.gov.uk/search?search=E07000114,Thanet District Council,19/06/2017,N/A,342.28,,REDACTED PERSONAL DATA,N/A,Community Services,Revenue,Car Allowances,Non Trade Payee,
http://statistics.data.gov.uk/search?search=E07000114,Thanet District Council,19/06/2017,N/A,253.13,,REDACTED PERSONAL DATA,N/A,Community Services,Revenue,Car Allowances,Non Trade Payee,
http://statistics.data.gov.uk/search?search=E07000114,Thanet District Council,19/06/2017,N/A,300.89,,REDACTED PERSONAL DATA,N/A,Community Services,Revenue,Car Allowances,Non Trade Payee,
http://statistics.data.gov.uk/search?search=E07000114,Thanet District Council,19/06/2017,N/A,325.56,,REDACTED PERSONAL DATA,N/A,Community Services,Revenue,Car Allowances,Non Trade Payee,
http://statistics.data.gov.uk/search?search=E07000114,Thanet District Council,19/06/2017,N/A,241.98,,REDACTED PERSONAL DATA,N/A,Community Services,Revenue,Car Allowances,Non Trade Payee,
http://statistics.data.gov.uk/search?search=E07000114,Thanet District Council,19/06/2017,N/A,82.50,,REDACTED PERSONAL DATA,N/A,Community Services,Revenue,Public Transport,Non Trade Payee,
http://statistics.data.gov.uk/search?search=E07000114,Thanet District Council,19/06/2017,N/A,335.91,,REDACTED PERSONAL DATA,N/A,Operational Services,Revenue,Car Allowances,Non Trade Payee,
http://statistics.data.gov.uk/search?search=E07000114,Thanet District Council,20/06/2017,433194,250.00,,A2b Technology (Uk) Ltd,A2B001,Corporate Governance,Revenue,Services,ICT,
http://statistics.data.gov.uk/search?search=E07000114,Thanet District Council,20/06/2017,433440,471.53,,Aebi Schmidt Uk Limited,AEB002,Operational Services,Revenue,Direct Transport Costs,Vehicle Management,
http://statistics.data.gov.uk/search?search=E07000114,Thanet District Council,20/06/2017,433477,219.04,,Aebi Schmidt Uk Limited,AEB002,Operational Services,Revenue,"Equip, Furniture And Materials",Vehicle Management,
http://statistics.data.gov.uk/search?search=E07000114,Thanet District Council,20/06/2017,433479,461.18,,Aebi Schmidt Uk Limited,AEB002,Operational Services,Revenue,"Equip, Furniture And Materials",Vehicle Management,
http://statistics.data.gov.uk/search?search=E07000114,Thanet District Council,20/06/2017,433481,461.18,,Aebi Schmidt Uk Limited,AEB002,Operational Services,Revenue,"Equip, Furniture And Materials",Vehicle Management,
http://statistics.data.gov.uk/search?search=E07000114,Thanet District Council,20/06/2017,433482,461.18,,Aebi Schmidt Uk Limited,AEB002,Operational Services,Revenue,"Equip, Furniture And Materials",Vehicle Management,
http://statistics.data.gov.uk/search?search=E07000114,Thanet District Council,20/06/2017,433486,555.18,,Aebi Schmidt Uk Limited,AEB002,Operational Services,Revenue,"Equip, Furniture And Materials",Vehicle Management,
http://statistics.data.gov.uk/search?search=E07000114,Thanet District Council,20/06/2017,433197,412.50,,Andy Morris,MOR028,Community Services,Revenue,Services,Arts And Leisure Services,
http://statistics.data.gov.uk/search?search=E07000114,Thanet District Council,20/06/2017,433617,4757.45,,Ats Euromaster Ltd,ATS002,Operational Services,Revenue,Direct Transport Costs,Vehicle Management,
http://statistics.data.gov.uk/search?search=E07000114,Thanet District Council,20/06/2017,433466,960.00,,Boxgreen Landscapes Ltd,BOX003,Corporate Governance,Revenue,"Repairs,  Alter & Mtce - Build",Construction-Repair And Maint,
http://statistics.data.gov.uk/search?search=E07000114,Thanet District Council,20/06/2017,434290,3060.00,,Broadstairs Gas Services Ltd,BRO083,Corporate Resources and S151,Balance Sheet,Capital Exp-Non Council Assets,Grants,
http://statistics.data.gov.uk/search?search=E07000114,Thanet District Council,20/06/2017,434277,107860.73,,Burgess Marine Ltd,BUR017,Corporate Resources and S151,Balance Sheet,Plant And Equipment,Maritime Services,
http://statistics.data.gov.uk/search?search=E07000114,Thanet District Council,20/06/2017,433626,640.92,,Business Computer Solutions Ltd,BUS002,Corporate Governance,Revenue,Communications & Computing,ICT,
http://statistics.data.gov.uk/search?search=E07000114,Thanet District Council,20/06/2017,433628,3000.00,,Business Computer Solutions Ltd,BUS002,Corporate Governance,Revenue,Services,ICT,
http://statistics.data.gov.uk/search?search=E07000114,Thanet District Council,20/06/2017,433225,398.68,,Canon (Uk) Ltd,CAN021,Corporate Governance,Revenue,"Print, Stat And Gen Off Exps",Facilities And Management Serv,
http://statistics.data.gov.uk/search?search=E07000114,Thanet District Council,20/06/2017,434118,369.70,,Casement Signs And Traffic,CAS001,Operational Services,Revenue,"Repairs,  Alter & Mtce - Build",Street And Traffic Management,
http://statistics.data.gov.uk/search?search=E07000114,Thanet District Council,20/06/2017,433112,1431.27,,Castle Automotive & Eng Supp Ltd,CAS024,Operational Services,Revenue,"Equip, Furniture And Materials",Vehicle Management,
http://statistics.data.gov.uk/search?search=E07000114,Thanet District Council,20/06/2017,433644,302.60,,Ccs Media Limited,CCS003,Community Services,Revenue,"Equip, Furniture And Materials",ICT,
http://statistics.data.gov.uk/search?search=E07000114,Thanet District Council,20/06/2017,433645,622.53,,Ccs Media Limited,CCS003,East Kent Shared Services,Revenue,Communications & Computing,ICT,
http://statistics.data.gov.uk/search?search=E07000114,Thanet District Council,20/06/2017,433556,610.88,,Cdw Limited,CDW002,East Kent Shared Services,Revenue,Communications & Computing,ICT,
http://statistics.data.gov.uk/search?search=E07000114,Thanet District Council,20/06/2017,433633,4392.90,,Cobalt Telephone Technologies Ltd,COB002,Operational Services,Revenue,Services,ICT,
http://statistics.data.gov.uk/search?search=E07000114,Thanet District Council,20/06/2017,433672,426.53,,Cobalt Telephone Technologies Ltd,COB002,Operational Services,Revenue,Services,ICT,
http://statistics.data.gov.uk/search?search=E07000114,Thanet District Council,20/06/2017,434137,1960.00,,Connaught Hotel Dover Limited,CON046,Community Services,Revenue,Services,Housing Management,
http://statistics.data.gov.uk/search?search=E07000114,Thanet District Council,20/06/2017,433664,680.00,,Daniels Healthcare Limited,DAN014,Operational Services,Revenue,"Equip, Furniture And Materials",Healthcare,
http://statistics.data.gov.uk/search?search=E07000114,Thanet District Council,20/06/2017,432394,245.00,,Dat 1 Ltd,DAT009,Community Services,Revenue,"Equip, Furniture And Materials",Facilities And Management Serv,
http://statistics.data.gov.uk/search?search=E07000114,Thanet District Council,20/06/2017,433708,12510.65,,Dcb (Kent) Ltd,DCB001,Corporate Resources and S151,Balance Sheet,Repairs And Mtce Holding A/C,Construction-Repair And Maint,
http://statistics.data.gov.uk/search?search=E07000114,Thanet District Council,20/06/2017,433709,1168.29,,Dcb (Kent) Ltd,DCB001,Corporate Resources and S151,Balance Sheet,Repairs And Mtce Holding A/C,Construction-Repair And Maint,
http://statistics.data.gov.uk/search?search=E07000114,Thanet District Council,20/06/2017,433710,462.00,,Dcb (Kent) Ltd,DCB001,Corporate Resources and S151,Balance Sheet,Repairs And Mtce Holding A/C,Construction-Repair And Maint,
http://statistics.data.gov.uk/search?search=E07000114,Thanet District Council,20/06/2017,434224,1616.25,,Dennis Eagle Limited,TER011,Operational Services,Revenue,Direct Transport Costs,Vehicle Management,
http://statistics.data.gov.uk/search?search=E07000114,Thanet District Council,20/06/2017,434225,395.75,,Dennis Eagle Limited,TER011,Operational Services,Revenue,Direct Transport Costs,Vehicle Management,
http://statistics.data.gov.uk/search?search=E07000114,Thanet District Council,20/06/2017,434226,224.51,,Dennis Eagle Limited,TER011,Operational Services,Revenue,Direct Transport Costs,Vehicle Management,
http://statistics.data.gov.uk/search?search=E07000114,Thanet District Council,20/06/2017,433643,262.76,,Dennis Eagle Ltd,DEN005,Operational Services,Revenue,Direct Transport Costs,Vehicle Management,
http://statistics.data.gov.uk/search?search=E07000114,Thanet District Council,20/06/2017,433480,572.00,,Disclosure And Barring Service,DIS017,Community Services,Revenue,"Equip, Furniture And Materials",Human Resources,
http://statistics.data.gov.uk/search?search=E07000114,Thanet District Council,20/06/2017,433569,900.00,,Distinctive Systems Ltd,DIS015,Operational Services,Revenue,Direct Transport Costs,Vehicle Management,
http://statistics.data.gov.uk/search?search=E07000114,Thanet District Council,20/06/2017,433580,25428.72,,Dover District Council,DOV001,East Kent Shared Services,Revenue,Grants & Subscriptions,Various Cats - Public Sector,
http://statistics.data.gov.uk/search?search=E07000114,Thanet District Council,20/06/2017,433732,4840.01,,Downfast Demolition & Salvage Ltd,DOW001,Corporate Resources and S151,Balance Sheet,Council Dwellings,Building Construction Material,
http://statistics.data.gov.uk/search?search=E07000114,Thanet District Council,20/06/2017,433593,389.41,,East Kent Components Ltd,EKC006,Operational Services,Revenue,Direct Transport Costs,Vehicle Management,
http://statistics.data.gov.uk/search?search=E07000114,Thanet District Council,20/06/2017,434276,6440.00,,Environment Agency,ENV001,Operational Services,Revenue,Grants & Subscriptions,Environmental Services,
http://statistics.data.gov.uk/search?search=E07000114,Thanet District Council,20/06/2017,434292,7021.81,,Evermech Services Ltd,EVE011,Corporate Resources and S151,Balance Sheet,Capital Exp-Non Council Assets,Grants,
http://statistics.data.gov.uk/search?search=E07000114,Thanet District Council,20/06/2017,434287,448.84,,Family Mosaic Housing,FAM001,Corporate Resources and S151,Balance Sheet,Capital Exp-Non Council Assets,Housing Management,
http://statistics.data.gov.uk/search?search=E07000114,Thanet District Council,20/06/2017,434289,310.00,,Family Mosaic Housing,FAM001,Corporate Resources and S151,Balance Sheet,Capital Exp-Non Council Assets,Housing Management,
http://statistics.data.gov.uk/search?search=E07000114,Thanet District Council,20/06/2017,434291,444.59,,Family Mosaic Housing,FAM001,Corporate Resources and S151,Balance Sheet,Capital Exp-Non Council Assets,Housing Management,
http://statistics.data.gov.uk/search?search=E07000114,Thanet District Council,20/06/2017,434170,624.10,,Farrer Barnes Limited,FAR012,Corporate Resources and S151,Revenue,Agency Staff,Human Resources,
http://statistics.data.gov.uk/search?search=E07000114,Thanet District Council,20/06/2017,434171,643.69,,Farrer Barnes Limited,FAR012,Corporate Resources and S151,Revenue,Agency Staff,Human Resources,
http://statistics.data.gov.uk/search?search=E07000114,Thanet District Council,20/06/2017,433508,1085.00,,Florence Court Hotel,FLO003,Community Services,Revenue,Services,Housing Management,
http://statistics.data.gov.uk/search?search=E07000114,Thanet District Council,20/06/2017,433509,930.00,,Florence Court Hotel,FLO003,Community Services,Revenue,Services,Housing Management,
http://statistics.data.gov.uk/search?search=E07000114,Thanet District Council,20/06/2017,433510,1550.00,,Florence Court Hotel,FLO003,Community Services,Revenue,Services,Housing Management,
http://statistics.data.gov.uk/search?search=E07000114,Thanet District Council,20/06/2017,433511,1085.00,,Florence Court Hotel,FLO003,Community Services,Revenue,Services,Housing Management,
http://statistics.data.gov.uk/search?search=E07000114,Thanet District Council,20/06/2017,433512,930.00,,Florence Court Hotel,FLO003,Community Services,Revenue,Services,Housing Management,
http://statistics.data.gov.uk/search?search=E07000114,Thanet District Council,20/06/2017,433513,930.00,,Florence Court Hotel,FLO003,Community Services,Revenue,Services,Housing Management,
http://statistics.data.gov.uk/search?search=E07000114,Thanet District Council,20/06/2017,433453,264.94,,Geesink Norba Ltd,GEE006,Operational Services,Revenue,Direct Transport Costs,Vehicle Management,
http://statistics.data.gov.uk/search?search=E07000114,Thanet District Council,20/06/2017,434281,1650.00,,Heath Lambert Limited (Client Money),HEA011,Corporate Resources and S151,Balance Sheet,Insurance Holding Account,Financial Services,
http://statistics.data.gov.uk/search?search=E07000114,Thanet District Council,20/06/2017,433911,650.00,,Hi Way Services Ltd,HIW002,Operational Services,Revenue,"Repairs,  Alter & Mtce - Build",Highway Equipment And Material,
http://statistics.data.gov.uk/search?search=E07000114,Thanet District Council,20/06/2017,433913,650.00,,Hi Way Services Ltd,HIW002,Operational Services,Revenue,"Repairs,  Alter & Mtce - Build",Highway Equipment And Material,
http://statistics.data.gov.uk/search?search=E07000114,Thanet District Council,20/06/2017,434286,2144.40,,Howe Heating & Plumbing,HOW019,Corporate Resources and S151,Balance Sheet,Capital Exp-Non Council Assets,Grants,
http://statistics.data.gov.uk/search?search=E07000114,Thanet District Council,20/06/2017,434288,2384.40,,Howe Heating & Plumbing,HOW019,Corporate Resources and S151,Balance Sheet,Capital Exp-Non Council Assets,Grants,
http://statistics.data.gov.uk/search?search=E07000114,Thanet District Council,20/06/2017,433073,2081.82,,Hr Go (Kent) Ltd,HRG001,Operational Services,Revenue,Agency Staff,Human Resources,
http://statistics.data.gov.uk/search?search=E07000114,Thanet District Council,20/06/2017,433074,3991.69,,Hr Go (Kent) Ltd,HRG001,Operational Services,Revenue,Agency Staff,Human Resources,
http://statistics.data.gov.uk/search?search=E07000114,Thanet District Council,20/06/2017,433075,11646.98,,Hr Go (Kent) Ltd,HRG001,Operational Services,Revenue,Agency Staff,Human Resources,
http://statistics.data.gov.uk/search?search=E07000114,Thanet District Council,20/06/2017,433192,614.55,,Hr Go (Kent) Ltd,HRG001,Operational Services,Revenue,Agency Staff,Human Resources,
http://statistics.data.gov.uk/search?search=E07000114,Thanet District Council,20/06/2017,433404,586.57,,Hr Go (Kent) Ltd,HRG001,Operational Services,Revenue,Agency Staff,Human Resources,
http://statistics.data.gov.uk/search?search=E07000114,Thanet District Council,20/06/2017,433405,1295.69,,Hr Go (Kent) Ltd,HRG001,Operational Services,Revenue,Agency Staff,Human Resources,
http://statistics.data.gov.uk/search?search=E07000114,Thanet District Council,20/06/2017,433407,1491.84,,Hr Go (Kent) Ltd,HRG001,Operational Services,Revenue,Agency Staff,Human Resources,
http://statistics.data.gov.uk/search?search=E07000114,Thanet District Council,20/06/2017,433408,1091.50,,Hr Go (Kent) Ltd,HRG001,Operational Services,Revenue,Agency Staff,Human Resources,
http://statistics.data.gov.uk/search?search=E07000114,Thanet District Council,20/06/2017,433410,486.55,,Hr Go (Kent) Ltd,HRG001,Operational Services,Revenue,Agency Staff,Human Resources,
http://statistics.data.gov.uk/search?search=E07000114,Thanet District Council,20/06/2017,433411,1075.95,,Hr Go (Kent) Ltd,HRG001,Operational Services,Revenue,Agency Staff,Human Resources,
http://statistics.data.gov.uk/search?search=E07000114,Thanet District Council,20/06/2017,433412,230.37,,Hr Go (Kent) Ltd,HRG001,Corporate Governance,Revenue,Agency Staff,Human Resources,
http://statistics.data.gov.uk/search?search=E07000114,Thanet District Council,20/06/2017,433570,5001.12,,Hr Go (Kent) Ltd,HRG001,Operational Services,Revenue,Agency Staff,Human Resources,
http://statistics.data.gov.uk/search?search=E07000114,Thanet District Council,20/06/2017,433576,4201.47,,Hr Go (Kent) Ltd,HRG001,Operational Services,Revenue,Agency Staff,Human Resources,
http://statistics.data.gov.uk/search?search=E07000114,Thanet District Council,20/06/2017,433623,1328.60,,Hr Go (Kent) Ltd,HRG001,Operational Services,Revenue,Agency Staff,Human Resources,
http://statistics.data.gov.uk/search?search=E07000114,Thanet District Council,20/06/2017,433624,12638.18,,Hr Go (Kent) Ltd,HRG001,Operational Services,Revenue,Agency Staff,Human Resources,
http://statistics.data.gov.uk/search?search=E07000114,Thanet District Council,20/06/2017,433686,1969.38,,Hr Go (Kent) Ltd,HRG001,Operational Services,Revenue,Agency Staff,Human Resources,
http://statistics.data.gov.uk/search?search=E07000114,Thanet District Council,20/06/2017,433687,1491.84,,Hr Go (Kent) Ltd,HRG001,Operational Services,Revenue,Agency Staff,Human Resources,
http://statistics.data.gov.uk/search?search=E07000114,Thanet District Council,20/06/2017,433689,1623.36,,Hr Go (Kent) Ltd,HRG001,Operational Services,Revenue,Agency Staff,Human Resources,
http://statistics.data.gov.uk/search?search=E07000114,Thanet District Council,20/06/2017,433690,885.00,,Hr Go (Kent) Ltd,HRG001,Operational Services,Revenue,Agency Staff,Human Resources,
http://statistics.data.gov.uk/search?search=E07000114,Thanet District Council,20/06/2017,433691,1769.34,,Hr Go (Kent) Ltd,HRG001,Operational Services,Revenue,Agency Staff,Human Resources,
http://statistics.data.gov.uk/search?search=E07000114,Thanet District Council,20/06/2017,433697,427.38,,Hr Go (Kent) Ltd,HRG001,Operational Services,Revenue,Agency Staff,Human Resources,
http://statistics.data.gov.uk/search?search=E07000114,Thanet District Council,20/06/2017,433701,586.57,,Hr Go (Kent) Ltd,HRG001,Operational Services,Revenue,Agency Staff,Human Resources,
http://statistics.data.gov.uk/search?search=E07000114,Thanet District Council,20/06/2017,433735,7950.00,,J C White Geomatics Ltd,WHI019,Operational Services,Revenue,Services,Consultancy,
http://statistics.data.gov.uk/search?search=E07000114,Thanet District Council,20/06/2017,433673,21349.53,,J Toomey Motors Limited,TOO004,Corporate Resources and S151,Balance Sheet,Plant And Equipment,Vehicle Management,
http://statistics.data.gov.uk/search?search=E07000114,Thanet District Council,20/06/2017,433674,21349.53,,J Toomey Motors Limited,TOO004,Corporate Resources and S151,Balance Sheet,Plant And Equipment,Vehicle Management,
http://statistics.data.gov.uk/search?search=E07000114,Thanet District Council,20/06/2017,433675,23905.68,,J Toomey Motors Limited,TOO004,Corporate Resources and S151,Balance Sheet,Plant And Equipment,Vehicle Management,
http://statistics.data.gov.uk/search?search=E07000114,Thanet District Council,20/06/2017,433676,23905.68,,J Toomey Motors Limited,TOO004,Corporate Resources and S151,Balance Sheet,Plant And Equipment,Vehicle Management,
http://statistics.data.gov.uk/search?search=E07000114,Thanet District Council,20/06/2017,433558,1267.90,,Kenhire Limited,KEN042,Operational Services,Revenue,Cont Hire & Operating Lease,Vehicle Management,
http://statistics.data.gov.uk/search?search=E07000114,Thanet District Council,20/06/2017,433559,1267.90,,Kenhire Limited,KEN042,Operational Services,Revenue,Cont Hire & Operating Lease,Vehicle Management,
http://statistics.data.gov.uk/search?search=E07000114,Thanet District Council,20/06/2017,434294,267237.00,,Kent & Medway Towns Fire Authority,KMT001,Corporate Resources and S151,Balance Sheet,Collection Fund - Preceptors,Various Cats - Public Sector,
http://statistics.data.gov.uk/search?search=E07000114,Thanet District Council,20/06/2017,433416,60000.00,,Kent County Council,KCC002,East Kent Shared Services,Revenue,Communications & Computing,Various Cats - Public Sector,
http://statistics.data.gov.uk/search?search=E07000114,Thanet District Council,20/06/2017,433693,19675.26,,Kent County Council,KCC002,Operational Services,Revenue,Cleaning & Domestic Supplies,Various Cats - Public Sector,
http://statistics.data.gov.uk/search?search=E07000114,Thanet District Council,20/06/2017,434282,71344.04,,Kent County Council,KCC002,Corporate Resources and S151,Balance Sheet,Insurance Holding Account,Various Cats - Public Sector,
http://statistics.data.gov.uk/search?search=E07000114,Thanet District Council,20/06/2017,434284,43669.18,,Kent County Council,KCC002,Corporate Resources and S151,Balance Sheet,Capital Exp-Non Council Assets,Various Cats - Public Sector,
http://statistics.data.gov.uk/search?search=E07000114,Thanet District Council,20/06/2017,434285,18583.40,,Kent County Council,KCC002,Corporate Resources and S151,Balance Sheet,Capital Exp-Non Council Assets,Various Cats - Public Sector,
http://statistics.data.gov.uk/search?search=E07000114,Thanet District Council,20/06/2017,434293,4273992.00,,Kent County Council,KCC022,Corporate Resources and S151,Balance Sheet,Collection Fund - Preceptors,Various Cats - Public Sector,
http://statistics.data.gov.uk/search?search=E07000114,Thanet District Council,20/06/2017,433636,3285.04,,Kent County Council (Kcs),KCC003,Operational Services,Revenue,Direct Transport Costs,Facilities And Management Serv,
http://statistics.data.gov.uk/search?search=E07000114,Thanet District Council,20/06/2017,433637,3294.49,,Kent County Council (Kcs),KCC003,Operational Services,Revenue,Direct Transport Costs,Facilities And Management Serv,
http://statistics.data.gov.uk/search?search=E07000114,Thanet District Council,20/06/2017,433662,2370.33,,Kent County Council (Kcs),KCC003,Operational Services,Revenue,"Equip, Furniture And Materials",Facilities And Management Serv,
http://statistics.data.gov.uk/search?search=E07000114,Thanet District Council,20/06/2017,433683,1904.44,,Kent County Council (Kcs),KCC003,Operational Services,Revenue,"Equip, Furniture And Materials",Facilities And Management Serv,
http://statistics.data.gov.uk/search?search=E07000114,Thanet District Council,20/06/2017,433927,1287.41,,Kent Police & Crime Commissioner,KPC002,Community Services,Revenue,Services,Facilities And Management Serv,
http://statistics.data.gov.uk/search?search=E07000114,Thanet District Council,20/06/2017,434295,566761.00,,Kent Police & Crime Commissioner,KPA003,Corporate Resources and S151,Balance Sheet,Collection Fund - Preceptors,Various Cats - Public Sector,
http://statistics.data.gov.uk/search?search=E07000114,Thanet District Council,20/06/2017,433660,6691.60,,Kingdom Security Limited,KIN039,Operational Services,Revenue,Services,Street And Traffic Management,
http://statistics.data.gov.uk/search?search=E07000114,Thanet District Council,20/06/2017,433700,1350.00,,Kingsdown Compressed Air Systems Ltd,KIN042,Operational Services,Revenue,"Equip, Furniture And Materials",Vehicle Management,
http://statistics.data.gov.uk/search?search=E07000114,Thanet District Council,20/06/2017,433490,500.00,,Knowlton Project Support Ltd,KNO008,Community Services,Revenue,Services,Human Resources,
http://statistics.data.gov.uk/search?search=E07000114,Thanet District Council,20/06/2017,433871,954.00,,Lanes (South East) Ltd,LAN033,Corporate Governance,Revenue,Services,Facilities And Management Serv,
http://statistics.data.gov.uk/search?search=E07000114,Thanet District Council,20/06/2017,433872,1119.00,,Lanes (South East) Ltd,LAN033,Corporate Governance,Revenue,Services,Facilities And Management Serv,
http://statistics.data.gov.uk/search?search=E07000114,Thanet District Council,20/06/2017,433694,504.80,,Lyreco Uk Limited,LYR001,Corporate Governance,Revenue,"Print, Stat And Gen Off Exps",Stationery,
http://statistics.data.gov.uk/search?search=E07000114,Thanet District Council,20/06/2017,433449,17494.72,,Mears Ltd,MEA003,Corporate Resources and S151,Balance Sheet,Repairs And Mtce Holding A/C,Construction-Repair And Maint,
http://statistics.data.gov.uk/search?search=E07000114,Thanet District Council,20/06/2017,433451,4934.22,,Mears Ltd,MEA003,Corporate Resources and S151,Balance Sheet,Repairs And Mtce Holding A/C,Construction-Repair And Maint,
http://statistics.data.gov.uk/search?search=E07000114,Thanet District Council,20/06/2017,433452,2132.48,,Mears Ltd,MEA003,Corporate Resources and S151,Balance Sheet,Repairs And Mtce Holding A/C,Construction-Repair And Maint,
http://statistics.data.gov.uk/search?search=E07000114,Thanet District Council,20/06/2017,433454,29074.67,,Mears Ltd,MEA003,Corporate Resources and S151,Balance Sheet,Repairs And Mtce Holding A/C,Construction-Repair And Maint,
http://statistics.data.gov.uk/search?search=E07000114,Thanet District Council,20/06/2017,433455,490.65,,Mears Ltd,MEA003,Corporate Resources and S151,Balance Sheet,Repairs And Mtce Holding A/C,Construction-Repair And Maint,
http://statistics.data.gov.uk/search?search=E07000114,Thanet District Council,20/06/2017,433456,660.66,,Mears Ltd,MEA003,Corporate Resources and S151,Balance Sheet,Repairs And Mtce Holding A/C,Construction-Repair And Maint,
http://statistics.data.gov.uk/search?search=E07000114,Thanet District Council,20/06/2017,433648,272.13,,Mears Ltd,MEA003,Operational Services,Revenue,"Repairs,  Alter & Mtce - Build",Construction-Repair And Maint,
http://statistics.data.gov.uk/search?search=E07000114,Thanet District Council,20/06/2017,433649,2294.46,,Mears Ltd,MEA003,Operational Services,Revenue,"Repairs,  Alter & Mtce - Build",Construction-Repair And Maint,
http://statistics.data.gov.uk/search?search=E07000114,Thanet District Council,20/06/2017,433650,3954.44,,Mears Ltd,MEA003,Operational Services,Revenue,"Repairs,  Alter & Mtce - Build",Construction-Repair And Maint,
http://statistics.data.gov.uk/search?search=E07000114,Thanet District Council,20/06/2017,433652,522.61,,Mears Ltd,MEA003,Operational Services,Revenue,"Repairs,  Alter & Mtce - Build",Construction-Repair And Maint,
http://statistics.data.gov.uk/search?search=E07000114,Thanet District Council,20/06/2017,433653,316.54,,Mears Ltd,MEA003,Operational Services,Revenue,"Repairs,  Alter & Mtce - Build",Construction-Repair And Maint,
http://statistics.data.gov.uk/search?search=E07000114,Thanet District Council,20/06/2017,433655,2864.88,,Mears Ltd,MEA003,Operational Services,Revenue,"Repairs,  Alter & Mtce - Build",Construction-Repair And Maint,
http://statistics.data.gov.uk/search?search=E07000114,Thanet District Council,20/06/2017,433695,1817.45,,Mears Ltd,MEA003,Community Services,Revenue,"Repairs,  Alter & Mtce - Build",Construction-Repair And Maint,
http://statistics.data.gov.uk/search?search=E07000114,Thanet District Council,20/06/2017,433696,2784.31,,Mears Ltd,MEA003,Community Services,Revenue,"Repairs,  Alter & Mtce - Build",Construction-Repair And Maint,
http://statistics.data.gov.uk/search?search=E07000114,Thanet District Council,20/06/2017,433698,98240.85,,Mears Ltd,MEA003,Community Services,Revenue,"Repairs,  Alter & Mtce - Build",Construction-Repair And Maint,
http://statistics.data.gov.uk/search?search=E07000114,Thanet District Council,20/06/2017,433699,427.74,,Mears Ltd,MEA003,Corporate Governance,Revenue,"Repairs,  Alter & Mtce - Build",Construction-Repair And Maint,
http://statistics.data.gov.uk/search?search=E07000114,Thanet District Council,20/06/2017,433699,927.36,,Mears Ltd,MEA003,Operational Services,Revenue,"Repairs,  Alter & Mtce - Build",Construction-Repair And Maint,
http://statistics.data.gov.uk/search?search=E07000114,Thanet District Council,20/06/2017,433629,628.26,,Metric Group Ltd,MET001,Operational Services,Revenue,Communications & Computing,Street And Traffic Management,
http://statistics.data.gov.uk/search?search=E07000114,Thanet District Council,20/06/2017,433630,2205.00,,Metric Group Ltd,MET001,Operational Services,Revenue,"Equip, Furniture And Materials",Street And Traffic Management,
http://statistics.data.gov.uk/search?search=E07000114,Thanet District Council,20/06/2017,433712,1200.00,,Michael Page Int Recruitment Ltd,PAG008,Corporate Resources and S151,Revenue,Services,Human Resources,
http://statistics.data.gov.uk/search?search=E07000114,Thanet District Council,20/06/2017,434296,805.00,,Nayland Rock Hotel Margate Ltd,NAY003,Community Services,Revenue,Services,Housing Management,
http://statistics.data.gov.uk/search?search=E07000114,Thanet District Council,20/06/2017,434031,30000.00,,Neopost Limited Neofunds,NEO004,Corporate Governance,Revenue,Communications & Computing,Mail Services,
http://statistics.data.gov.uk/search?search=E07000114,Thanet District Council,20/06/2017,433438,483.40,,Neopost Ltd,NEO003,Corporate Governance,Revenue,"Equip, Furniture And Materials",Mail Services,
http://statistics.data.gov.uk/search?search=E07000114,Thanet District Council,20/06/2017,433733,1239.03,,Ntm-Gb Limited,NTM001,Operational Services,Revenue,Direct Transport Costs,Vehicle Management,
http://statistics.data.gov.uk/search?search=E07000114,Thanet District Council,20/06/2017,433666,1855.68,,Ohuk Limited,OHU001,Operational Services,Revenue,Agency Staff,Human Resources,
http://statistics.data.gov.uk/search?search=E07000114,Thanet District Council,20/06/2017,433736,676.55,,Ohuk Limited,OHU001,Operational Services,Revenue,Agency Staff,Human Resources,
http://statistics.data.gov.uk/search?search=E07000114,Thanet District Council,20/06/2017,433206,95667.00,,Paramount Ind Property Services Llp,PAR074,Community Services,Revenue,Services,Housing Management,
http://statistics.data.gov.uk/search?search=E07000114,Thanet District Council,20/06/2017,433437,2262.50,,Parkeon Limited,PAR063,Operational Services,Revenue,"Equip, Furniture And Materials",Street And Traffic Management,
http://statistics.data.gov.uk/search?search=E07000114,Thanet District Council,20/06/2017,433557,415.79,,Parkeon Limited,PAR063,Operational Services,Revenue,"Equip, Furniture And Materials",Street And Traffic Management,
http://statistics.data.gov.uk/search?search=E07000114,Thanet District Council,20/06/2017,433651,1117.00,,Peer 1 (Uk) Limited,PEE003,East Kent Shared Services,Revenue,Communications & Computing,ICT,
http://statistics.data.gov.uk/search?search=E07000114,Thanet District Council,20/06/2017,433890,1085.00,,R Cannon,CAN007,Operational Services,Revenue,Services,Maritime Services,
http://statistics.data.gov.uk/search?search=E07000114,Thanet District Council,20/06/2017,433545,659.52,,Rexel Uk Limited,REX003,Operational Services,Revenue,"Repairs,  Alter & Mtce - Build",Building Construction Material,
http://statistics.data.gov.uk/search?search=E07000114,Thanet District Council,20/06/2017,433547,654.63,,Rexel Uk Limited,REX003,Operational Services,Revenue,"Repairs,  Alter & Mtce - Build",Building Construction Material,
http://statistics.data.gov.uk/search?search=E07000114,Thanet District Council,20/06/2017,433548,971.05,,Rexel Uk Limited,REX003,Operational Services,Revenue,"Repairs,  Alter & Mtce - Build",Building Construction Material,
http://statistics.data.gov.uk/search?search=E07000114,Thanet District Council,20/06/2017,433597,213.10,,Rexel Uk Limited,REX003,Operational Services,Revenue,"Repairs,  Alter & Mtce - Build",Building Construction Material,
http://statistics.data.gov.uk/search?search=E07000114,Thanet District Council,20/06/2017,433598,1601.28,,Rexel Uk Limited,REX003,Operational Services,Revenue,"Repairs,  Alter & Mtce - Build",Building Construction Material,
http://statistics.data.gov.uk/search?search=E07000114,Thanet District Council,20/06/2017,433599,290.53,,Rexel Uk Limited,REX003,Operational Services,Revenue,"Repairs,  Alter & Mtce - Build",Building Construction Material,
http://statistics.data.gov.uk/search?search=E07000114,Thanet District Council,20/06/2017,433600,368.52,,Rexel Uk Limited,REX003,Operational Services,Revenue,"Repairs,  Alter & Mtce - Build",Building Construction Material,
http://statistics.data.gov.uk/search?search=E07000114,Thanet District Council,20/06/2017,433603,456.48,,Rexel Uk Limited,REX003,Operational Services,Revenue,"Repairs,  Alter & Mtce - Build",Building Construction Material,
http://statistics.data.gov.uk/search?search=E07000114,Thanet District Council,20/06/2017,433604,456.48,,Rexel Uk Limited,REX003,Operational Services,Revenue,"Repairs,  Alter & Mtce - Build",Building Construction Material,
http://statistics.data.gov.uk/search?search=E07000114,Thanet District Council,20/06/2017,433605,1189.23,,Rexel Uk Limited,REX003,Operational Services,Revenue,"Repairs,  Alter & Mtce - Build",Building Construction Material,
http://statistics.data.gov.uk/search?search=E07000114,Thanet District Council,20/06/2017,433606,1621.40,,Rexel Uk Limited,REX003,Operational Services,Revenue,"Repairs,  Alter & Mtce - Build",Building Construction Material,
http://statistics.data.gov.uk/search?search=E07000114,Thanet District Council,20/06/2017,433609,1047.76,,Rexel Uk Limited,REX003,Operational Services,Revenue,"Repairs,  Alter & Mtce - Build",Building Construction Material,
http://statistics.data.gov.uk/search?search=E07000114,Thanet District Council,20/06/2017,433472,4140.00,,Riverside Truck Rental Limited,RIV005,Operational Services,Revenue,Cont Hire & Operating Lease,Vehicle Management,
http://statistics.data.gov.uk/search?search=E07000114,Thanet District Council,20/06/2017,433474,1460.00,,Riverside Truck Rental Limited,RIV005,Operational Services,Revenue,Cont Hire & Operating Lease,Vehicle Management,
http://statistics.data.gov.uk/search?search=E07000114,Thanet District Council,20/06/2017,433661,734.80,,Rolec Services Limited,ROL001,Operational Services,Revenue,"Equip, Furniture And Materials",Building Construction Material,
http://statistics.data.gov.uk/search?search=E07000114,Thanet District Council,20/06/2017,433682,400.00,,Sands Heritage Ltd (In Admin),SAN030,Corporate Governance,Revenue,Miscellaneous Expenses,Various Categories,
http://statistics.data.gov.uk/search?search=E07000114,Thanet District Council,20/06/2017,434130,1971.24,,Signway Supplies (Datchet) Limited,SIG013,Operational Services,Revenue,"Repairs,  Alter & Mtce - Build",Highway Equipment And Material,
http://statistics.data.gov.uk/search?search=E07000114,Thanet District Council,20/06/2017,433086,1454.18,,Silgo Lubricants Ltd,SIL007,Operational Services,Revenue,Direct Transport Costs,Vehicle Management,
http://statistics.data.gov.uk/search?search=E07000114,Thanet District Council,20/06/2017,433088,821.60,,Silgo Lubricants Ltd,SIL007,Operational Services,Revenue,Direct Transport Costs,Vehicle Management,
http://statistics.data.gov.uk/search?search=E07000114,Thanet District Council,20/06/2017,433681,399.75,,Silgo Lubricants Ltd,SIL007,Operational Services,Revenue,Direct Transport Costs,Vehicle Management,
http://statistics.data.gov.uk/search?search=E07000114,Thanet District Council,20/06/2017,433907,2600.00,,Thanet Nursery Project Limited,TNU001,Corporate Governance,Revenue,Rents,Facilities And Management Serv,
http://statistics.data.gov.uk/search?search=E07000114,Thanet District Council,20/06/2017,433540,3004.18,,The Glenwood Hotel,GLE007,Community Services,Revenue,Services,Housing Management,
http://statistics.data.gov.uk/search?search=E07000114,Thanet District Council,20/06/2017,433541,3387.50,,The Glenwood Hotel,GLE007,Community Services,Revenue,Services,Housing Management,
http://statistics.data.gov.uk/search?search=E07000114,Thanet District Council,20/06/2017,433542,2590.01,,The Glenwood Hotel,GLE007,Community Services,Revenue,Services,Housing Management,
http://statistics.data.gov.uk/search?search=E07000114,Thanet District Council,20/06/2017,433543,2970.84,,The Glenwood Hotel,GLE007,Community Services,Revenue,Services,Housing Management,
http://statistics.data.gov.uk/search?search=E07000114,Thanet District Council,20/06/2017,433952,3616.67,,The Glenwood Hotel,GLE007,Community Services,Revenue,Services,Housing Management,
http://statistics.data.gov.uk/search?search=E07000114,Thanet District Council,20/06/2017,433953,2900.02,,The Glenwood Hotel,GLE007,Community Services,Revenue,Services,Housing Management,
http://statistics.data.gov.uk/search?search=E07000114,Thanet District Council,20/06/2017,433954,3558.34,,The Glenwood Hotel,GLE007,Community Services,Revenue,Services,Housing Management,
http://statistics.data.gov.uk/search?search=E07000114,Thanet District Council,20/06/2017,433955,2337.50,,The Glenwood Hotel,GLE007,Community Services,Revenue,Services,Housing Management,
http://statistics.data.gov.uk/search?search=E07000114,Thanet District Council,20/06/2017,433641,841.50,,Topdesk Uk Limited,TOP011,East Kent Shared Services,Revenue,Communications & Computing,ICT,
http://statistics.data.gov.uk/search?search=E07000114,Thanet District Council,20/06/2017,433458,11317.03,,Town & Country Cleaners Ltd,TOW002,Corporate Resources and S151,Balance Sheet,Repairs And Mtce Holding A/C,Cleaning And Janitorial,
http://statistics.data.gov.uk/search?search=E07000114,Thanet District Council,20/06/2017,433567,330.94,,Viridor Waste Management Ltd,VIR003,Corporate Governance,Revenue,Cleaning & Domestic Supplies,Environmental Services,
http://statistics.data.gov.uk/search?search=E07000114,Thanet District Council,20/06/2017,433421,310.00,,Wallace Print Limited,WAL034,Operational Services,Revenue,"Equip, Furniture And Materials",Facilities And Management Serv,
http://statistics.data.gov.uk/search?search=E07000114,Thanet District Council,20/06/2017,433100,5918.66,,Wybone Limited,WYB004,Operational Services,Revenue,"Equip, Furniture And Materials",Environmental Services,
http://statistics.data.gov.uk/search?search=E07000114,Thanet District Council,20/06/2017,433473,1946.78,,Wybone Limited,WYB004,Operational Services,Revenue,"Equip, Furniture And Materials",Environmental Services,
http://statistics.data.gov.uk/search?search=E07000114,Thanet District Council,20/06/2017,434117,1000.00,,Your Leisure Kent Limited,YOU016,Community Services,Revenue,Rents,Arts And Leisure Services,
http://statistics.data.gov.uk/search?search=E07000114,Thanet District Council,22/06/2017,433707,3031.50,,Albion Fencing&Construction Kent Ltd,ALB005,Operational Services,Revenue,"Equip, Furniture And Materials",Building Construction Material,
http://statistics.data.gov.uk/search?search=E07000114,Thanet District Council,22/06/2017,433051,437.40,,All Access Ltd,ALL031,Corporate Resources and S151,Balance Sheet,Rechargeable Works,Building Construction Material,
http://statistics.data.gov.uk/search?search=E07000114,Thanet District Council,22/06/2017,433465,14556.75,,Als Civil Engineers Ltd,ALS002,Operational Services,Revenue,"Repairs,  Alter & Mtce - Build",Construction-Repair And Maint,
http://statistics.data.gov.uk/search?search=E07000114,Thanet District Council,22/06/2017,433427,270.00,,Birchington Village Centre Association,BIR008,Corporate Governance,Revenue,Rents,Facilities And Management Serv,
http://statistics.data.gov.uk/search?search=E07000114,Thanet District Council,22/06/2017,433491,632.00,,Bowman Maintenance Contracting,BMC001,Operational Services,Revenue,"Repairs,  Alter & Mtce - Build",Building Construction Material,
http://statistics.data.gov.uk/search?search=E07000114,Thanet District Council,22/06/2017,433476,1186.80,,Civica Uk Ltd,CIV003,East Kent Shared Services,Revenue,Communications & Computing,ICT,
http://statistics.data.gov.uk/search?search=E07000114,Thanet District Council,22/06/2017,433503,350.00,,Cliftonville Community Centre,CLI035,Corporate Governance,Revenue,Rents,Facilities And Management Serv,
http://statistics.data.gov.uk/search?search=E07000114,Thanet District Council,22/06/2017,433493,606.21,,G & G Forklifts,GGF001,Operational Services,Revenue,"Repairs,  Alter & Mtce - Build",Vehicle Management,
http://statistics.data.gov.uk/search?search=E07000114,Thanet District Council,22/06/2017,433448,612.57,,Haynes Of Maidstone Ltd,HAY008,Operational Services,Revenue,"Equip, Furniture And Materials",Vehicle Management,
http://statistics.data.gov.uk/search?search=E07000114,Thanet District Council,22/06/2017,433495,1336.34,,Haynes Of Maidstone Ltd,HAY008,Operational Services,Revenue,"Equip, Furniture And Materials",Vehicle Management,
http://statistics.data.gov.uk/search?search=E07000114,Thanet District Council,22/06/2017,433406,1969.38,,Hr Go (Kent) Ltd,HRG001,Operational Services,Revenue,Agency Staff,Human Resources,
http://statistics.data.gov.uk/search?search=E07000114,Thanet District Council,22/06/2017,433099,7802.00,,Kent County Council,KCC002,Community Services,Revenue,Grants & Subscriptions,Various Cats - Public Sector,
http://statistics.data.gov.uk/search?search=E07000114,Thanet District Council,22/06/2017,433402,370.00,,Kpr Midlink Ltd,KPR004,Corporate Resources and S151,Revenue,Communications & Computing,ICT,
http://statistics.data.gov.uk/search?search=E07000114,Thanet District Council,22/06/2017,433611,2190.22,,Kpr Midlink Ltd,KPR004,East Kent Shared Services,Revenue,Communications & Computing,ICT,
http://statistics.data.gov.uk/search?search=E07000114,Thanet District Council,22/06/2017,433616,480.00,,New Tech Security Ltd,NEW027,Corporate Governance,Revenue,"Repairs,  Alter & Mtce - Build",Facilities And Management Serv,
http://statistics.data.gov.uk/search?search=E07000114,Thanet District Council,22/06/2017,433418,300.00,,Office Of Communications,OFF006,Operational Services,Revenue,Services,ICT,
http://statistics.data.gov.uk/search?search=E07000114,Thanet District Council,22/06/2017,429684,2385.00,,Oscar Associates (Uk) Limited,OSC001,East Kent Shared Services,Revenue,Agency Staff,ICT,
http://statistics.data.gov.uk/search?search=E07000114,Thanet District Council,22/06/2017,433213,802.33,,Pier Rigging And Testing Limited,PIE008,Operational Services,Revenue,"Repairs,  Alter & Mtce - Build",Maritime Services,
http://statistics.data.gov.uk/search?search=E07000114,Thanet District Council,22/06/2017,434486,3428.94,,Royal Mail,ROY004,Corporate Governance,Revenue,Communications & Computing,Mail Services,
http://statistics.data.gov.uk/search?search=E07000114,Thanet District Council,22/06/2017,434487,766.36,,Royal Mail,ROY004,Corporate Governance,Revenue,Communications & Computing,Mail Services,
http://statistics.data.gov.uk/search?search=E07000114,Thanet District Council,26/06/2017,PC9656,1.46,,Amazon Uk Marketplace,N/A,Corporate Resources and S151,Revenue,"Print, Stat And Gen Off Exps",Stationery,
http://statistics.data.gov.uk/search?search=E07000114,Thanet District Council,26/06/2017,PC9657,11.66,,Amazon Uk Marketplace,N/A,Corporate Governance,Revenue,"Print, Stat And Gen Off Exps",Stationery,
http://statistics.data.gov.uk/search?search=E07000114,Thanet District Council,26/06/2017,PC9780,5.56,,Amazon Uk Marketplace,N/A,Corporate Governance,Revenue,"Print, Stat And Gen Off Exps",Stationery,
http://statistics.data.gov.uk/search?search=E07000114,Thanet District Council,26/06/2017,PC9781,2.77,,Amazon Uk Marketplace,N/A,Corporate Resources and S151,Revenue,"Print, Stat And Gen Off Exps",Stationery,
http://statistics.data.gov.uk/search?search=E07000114,Thanet District Council,26/06/2017,PC9664,20.83,,Argos,N/A,Operational Services,Revenue,"Equip, Furniture And Materials",Facilities And Management Serv,
http://statistics.data.gov.uk/search?search=E07000114,Thanet District Council,26/06/2017,PC9687,20.82,,Argos ,N/A,Operational Services,Revenue,"Equip, Furniture And Materials",Facilities And Management Serv,
http://statistics.data.gov.uk/search?search=E07000114,Thanet District Council,26/06/2017,PC9700,29.61,,Asda Superstore,N/A,Corporate Governance,Revenue,Catering,Catering,
http://statistics.data.gov.uk/search?search=E07000114,Thanet District Council,26/06/2017,PC9655,26.53,,B & Q,N/A,Operational Services,Revenue,"Equip, Furniture And Materials",Building Construction Material,
http://statistics.data.gov.uk/search?search=E07000114,Thanet District Council,26/06/2017,PC9609,897.32,,Barriers Direct,N/A,Corporate Governance,Revenue,"Repairs,  Alter & Mtce - Build",Building Construction Material,
http://statistics.data.gov.uk/search?search=E07000114,Thanet District Council,26/06/2017,PC9730,16.15,,BC Basecamp,N/A,Community Services,Revenue,Grants & Subscriptions,Financial Services,
http://statistics.data.gov.uk/search?search=E07000114,Thanet District Council,26/06/2017,PC9644,23.98,,Booker Litd,N/A,Corporate Governance,Revenue,Catering,Catering,
http://statistics.data.gov.uk/search?search=E07000114,Thanet District Council,26/06/2017,PC9658,24.28,,Booker Litd,N/A,Community Services,Revenue,Catering,Catering,
http://statistics.data.gov.uk/search?search=E07000114,Thanet District Council,26/06/2017,PC9659,11.97,,Booker Litd,N/A,Community Services,Revenue,Catering,Catering,
http://statistics.data.gov.uk/search?search=E07000114,Thanet District Council,26/06/2017,PC9683,59.35,,Booker Litd,N/A,Corporate Governance,Revenue,Catering,Catering,
http://statistics.data.gov.uk/search?search=E07000114,Thanet District Council,26/06/2017,PC9685,37.49,,Booker Litd,N/A,Corporate Governance,Revenue,Catering,Catering,
http://statistics.data.gov.uk/search?search=E07000114,Thanet District Council,26/06/2017,PC9754,6.78,,Boots,N/A,Chief Executive,Revenue,Catering,Catering,
http://statistics.data.gov.uk/search?search=E07000114,Thanet District Council,26/06/2017,PC9756,20.39,,Boots,N/A,Chief Executive,Revenue,Catering,Catering,
http://statistics.data.gov.uk/search?search=E07000114,Thanet District Council,26/06/2017,PC9751,24.00,,British Chauffeurs Guild Ltd,N/A,Chief Executive,Revenue,Expenses,Human Resources,
http://statistics.data.gov.uk/search?search=E07000114,Thanet District Council,26/06/2017,PC9702,228.00,,Care.Citrixonline.com,N/A,East Kent Shared Services,Revenue,Communications & Computing,ICT,
http://statistics.data.gov.uk/search?search=E07000114,Thanet District Council,26/06/2017,PC9620,722.49,,Cartridge Save,N/A,Operational Services,Revenue,"Equip, Furniture And Materials",Stationery,
http://statistics.data.gov.uk/search?search=E07000114,Thanet District Council,26/06/2017,PC9704,121.00,,County Court Canterbury,N/A,Community Services,Revenue,Services,Various Cats - Public Sector,
http://statistics.data.gov.uk/search?search=E07000114,Thanet District Council,26/06/2017,PC9680,355.00,,County Court Thanet,N/A,Community Services,Revenue,Services,Various Cats - Public Sector,
http://statistics.data.gov.uk/search?search=E07000114,Thanet District Council,26/06/2017,PC9681,355.00,,County Court Thanet,N/A,Community Services,Revenue,Services,Various Cats - Public Sector,
http://statistics.data.gov.uk/search?search=E07000114,Thanet District Council,26/06/2017,PC9642,83.31,,Currys,N/A,Operational Services,Revenue,"Equip, Furniture And Materials",Facilities And Management Serv,
http://statistics.data.gov.uk/search?search=E07000114,Thanet District Council,26/06/2017,PC9679,25.00,,DVLA Dup Reg Doc,N/A,Operational Services,Revenue,Direct Transport Costs,Various Cats - Public Sector,
http://statistics.data.gov.uk/search?search=E07000114,Thanet District Council,26/06/2017,PC9647,167.50,,DVLA Vehicle Tax,N/A,Operational Services,Revenue,Direct Transport Costs,Various Cats - Public Sector,
http://statistics.data.gov.uk/search?search=E07000114,Thanet District Council,26/06/2017,PC9648,242.50,,DVLA Vehicle Tax,N/A,Operational Services,Revenue,Direct Transport Costs,Various Cats - Public Sector,
http://statistics.data.gov.uk/search?search=E07000114,Thanet District Council,26/06/2017,PC9622,179.95,,EB *Seminar Giving EFF,N/A,Corporate Governance,Revenue,Expenses,Human Resources,
http://statistics.data.gov.uk/search?search=E07000114,Thanet District Council,26/06/2017,PC9778,6.00,,EV Charging Elektromotive UK,N/A,Operational Services,Revenue,Car Allowances,Vehicle Management,
http://statistics.data.gov.uk/search?search=E07000114,Thanet District Council,26/06/2017,PC9779,20.00,,EV Charging Elektromotive UK,N/A,Corporate Governance,Revenue,Cont Hire & Operating Lease,Vehicle Management,
http://statistics.data.gov.uk/search?search=E07000114,Thanet District Council,26/06/2017,PC9732,23.86,,Facebook,N/A,Community Services,Revenue,Miscellaneous Expenses,Facilities And Management Serv,
http://statistics.data.gov.uk/search?search=E07000114,Thanet District Council,26/06/2017,PC9733,17.86,,Facebook,N/A,Community Services,Revenue,Miscellaneous Expenses,Facilities And Management Serv,
http://statistics.data.gov.uk/search?search=E07000114,Thanet District Council,26/06/2017,PC9653,92.70,,Ground-Gas Solutions,N/A,Community Services,Revenue,Training,Human Resources,
http://statistics.data.gov.uk/search?search=E07000114,Thanet District Council,26/06/2017,PC9705,3717.00,,HMCTS-Kent099,N/A,East Kent Shared Services,Revenue,Services,Various Cats - Public Sector,
http://statistics.data.gov.uk/search?search=E07000114,Thanet District Council,26/06/2017,PC9706,2520.00,,HMCTS-Kent099,N/A,East Kent Shared Services,Revenue,Services,Various Cats - Public Sector,
http://statistics.data.gov.uk/search?search=E07000114,Thanet District Council,26/06/2017,PC9707,5349.00,,HMCTS-Kent099,N/A,East Kent Shared Services,Revenue,Services,Various Cats - Public Sector,
http://statistics.data.gov.uk/search?search=E07000114,Thanet District Council,26/06/2017,PC9708,117.00,,HMCTS-Kent099,N/A,East Kent Shared Services,Revenue,Services,Various Cats - Public Sector,
http://statistics.data.gov.uk/search?search=E07000114,Thanet District Council,26/06/2017,PC9709,330.00,,HMCTS-Kent099,N/A,East Kent Shared Services,Revenue,Services,Various Cats - Public Sector,
http://statistics.data.gov.uk/search?search=E07000114,Thanet District Council,26/06/2017,PC9710,279.00,,HMCTS-Kent099,N/A,East Kent Shared Services,Revenue,Services,Various Cats - Public Sector,
http://statistics.data.gov.uk/search?search=E07000114,Thanet District Council,26/06/2017,PC9711,447.00,,HMCTS-Kent099,N/A,East Kent Shared Services,Revenue,Services,Various Cats - Public Sector,
http://statistics.data.gov.uk/search?search=E07000114,Thanet District Council,26/06/2017,PC9712,735.00,,HMCTS-Kent099,N/A,East Kent Shared Services,Revenue,Services,Various Cats - Public Sector,
http://statistics.data.gov.uk/search?search=E07000114,Thanet District Council,26/06/2017,PC9646,519.18,,Hyva.co.uk,N/A,Operational Services,Revenue,Direct Transport Costs,Vehicle Management,
http://statistics.data.gov.uk/search?search=E07000114,Thanet District Council,26/06/2017,PC9674,325.00,,IPF,N/A,Operational Services,Revenue,Miscellaneous Expenses,Stationery,
http://statistics.data.gov.uk/search?search=E07000114,Thanet District Council,26/06/2017,PC9666,109.98,,Jacksons Fencing,N/A,Operational Services,Revenue,"Equip, Furniture And Materials",Building Construction Material,
http://statistics.data.gov.uk/search?search=E07000114,Thanet District Council,26/06/2017,PC9676,800.00,,JG Pest Control,N/A,Operational Services,Revenue,"Repairs,  Alter & Mtce - Build",Environmental Services,
http://statistics.data.gov.uk/search?search=E07000114,Thanet District Council,26/06/2017,PC9686,66.20,,London & South Eastern,N/A,Operational Services,Revenue,Public Transport,Human Resources,
http://statistics.data.gov.uk/search?search=E07000114,Thanet District Council,26/06/2017,PC9692,41.50,,London & South Eastern,N/A,Operational Services,Revenue,Public Transport,Human Resources,
http://statistics.data.gov.uk/search?search=E07000114,Thanet District Council,26/06/2017,PC9693,68.10,,London & South Eastern,N/A,Operational Services,Revenue,Public Transport,Human Resources,
http://statistics.data.gov.uk/search?search=E07000114,Thanet District Council,26/06/2017,PC9696,33.30,,London & South Eastern,N/A,Community Services,Revenue,Public Transport,Human Resources,
http://statistics.data.gov.uk/search?search=E07000114,Thanet District Council,26/06/2017,PC9731,9.80,,LUL Ticket Machine,N/A,Community Services,Revenue,Public Transport,Human Resources,
http://statistics.data.gov.uk/search?search=E07000114,Thanet District Council,26/06/2017,PC9701,4.99,,Maplin,N/A,Corporate Governance,Revenue,"Equip, Furniture And Materials",Building Construction Material,
http://statistics.data.gov.uk/search?search=E07000114,Thanet District Council,26/06/2017,PC9654,83.33,,Maplin ,N/A,Operational Services,Revenue,Communications & Computing,Building Construction Material,
http://statistics.data.gov.uk/search?search=E07000114,Thanet District Council,26/06/2017,PC9698,88.13,,Noted In Style Ltd,N/A,Community Services,Revenue,"Equip, Furniture And Materials",Stationery,
http://statistics.data.gov.uk/search?search=E07000114,Thanet District Council,26/06/2017,PC9746,-10.47,,Npower,N/A,Community Services,Revenue,Grants & Subscriptions,Utilities,
http://statistics.data.gov.uk/search?search=E07000114,Thanet District Council,26/06/2017,PC9661,201.00,,Officefurnitureonline,N/A,Operational Services,Revenue,"Print, Stat And Gen Off Exps",Furniture And Soft Furnishings,
http://statistics.data.gov.uk/search?search=E07000114,Thanet District Council,26/06/2017,PC9755,75.00,,P & O Ferries Limited,N/A,Operational Services,Revenue,Expenses,Human Resources,
http://statistics.data.gov.uk/search?search=E07000114,Thanet District Council,26/06/2017,PC9758,24.78,4.13,P&O Ferries Limited,N/A,Operational Services,Revenue,Expenses,Human Resources,
http://statistics.data.gov.uk/search?search=E07000114,Thanet District Council,26/06/2017,PC9759,11.50,1.92,P&O Ferries Limited,N/A,Operational Services,Revenue,Expenses,Human Resources,
http://statistics.data.gov.uk/search?search=E07000114,Thanet District Council,26/06/2017,PC9690,75.05,,Parcel Force Worldwide,N/A,Operational Services,Revenue,"Equip, Furniture And Materials",Mail Services,
http://statistics.data.gov.uk/search?search=E07000114,Thanet District Council,26/06/2017,PC9715,60.90,,Parkingeye Ltd,N/A,Operational Services,Revenue,Direct Transport Costs,Street And Traffic Management,
http://statistics.data.gov.uk/search?search=E07000114,Thanet District Council,26/06/2017,PC9618,325.00,,Possessionclaim.Gov,N/A,Community Services,Revenue,Services,Various Cats - Public Sector,
http://statistics.data.gov.uk/search?search=E07000114,Thanet District Council,26/06/2017,PC9626,325.00,,Possessionclaim.Gov,N/A,Community Services,Revenue,Services,Various Cats - Public Sector,
http://statistics.data.gov.uk/search?search=E07000114,Thanet District Council,26/06/2017,PC9627,325.00,,Possessionclaim.Gov,N/A,Community Services,Revenue,Services,Various Cats - Public Sector,
http://statistics.data.gov.uk/search?search=E07000114,Thanet District Council,26/06/2017,PC9645,325.00,,Possessionclaim.Gov,N/A,Community Services,Revenue,Services,Various Cats - Public Sector,
http://statistics.data.gov.uk/search?search=E07000114,Thanet District Council,26/06/2017,PC9662,325.00,,Possessionclaim.Gov,N/A,Community Services,Revenue,Services,Various Cats - Public Sector,
http://statistics.data.gov.uk/search?search=E07000114,Thanet District Council,26/06/2017,PC9663,-325.00,,Possessionclaim.Gov,N/A,Community Services,Revenue,Services,Various Cats - Public Sector,
http://statistics.data.gov.uk/search?search=E07000114,Thanet District Council,26/06/2017,PC9667,325.00,,Possessionclaim.Gov,N/A,Community Services,Revenue,Services,Various Cats - Public Sector,
http://statistics.data.gov.uk/search?search=E07000114,Thanet District Council,26/06/2017,PC9668,325.00,,Possessionclaim.Gov,N/A,Community Services,Revenue,Services,Various Cats - Public Sector,
http://statistics.data.gov.uk/search?search=E07000114,Thanet District Council,26/06/2017,PC9669,325.00,,Possessionclaim.Gov,N/A,Community Services,Revenue,Services,Various Cats - Public Sector,
http://statistics.data.gov.uk/search?search=E07000114,Thanet District Council,26/06/2017,PC9673,325.00,,Possessionclaim.Gov,N/A,Community Services,Revenue,Services,Various Cats - Public Sector,
http://statistics.data.gov.uk/search?search=E07000114,Thanet District Council,26/06/2017,PC9678,325.00,,Possessionclaim.Gov,N/A,Community Services,Revenue,Services,Various Cats - Public Sector,
http://statistics.data.gov.uk/search?search=E07000114,Thanet District Council,26/06/2017,PC9682,325.00,,Possessionclaim.Gov,N/A,Community Services,Revenue,Services,Various Cats - Public Sector,
http://statistics.data.gov.uk/search?search=E07000114,Thanet District Council,26/06/2017,PC9694,121.00,,Possessionclaim.Gov,N/A,Community Services,Revenue,Services,Various Cats - Public Sector,
http://statistics.data.gov.uk/search?search=E07000114,Thanet District Council,26/06/2017,PC9729,121.00,,Possessionclaim.Gov,N/A,Community Services,Revenue,Services,Various Cats - Public Sector,
http://statistics.data.gov.uk/search?search=E07000114,Thanet District Council,26/06/2017,PC9713,161.67,,Premier Inn,N/A,East Kent Shared Services,Revenue,Catering,Human Resources,
http://statistics.data.gov.uk/search?search=E07000114,Thanet District Council,26/06/2017,PC9691,63.19,,RIBA Enterprises Ltd.,N/A,Community Services,Revenue,Services,Stationery,
http://statistics.data.gov.uk/search?search=E07000114,Thanet District Council,26/06/2017,PC9695,364.00,,Royal Mail,N/A,Community Services,Revenue,"Equip, Furniture And Materials",Mail Services,
http://statistics.data.gov.uk/search?search=E07000114,Thanet District Council,26/06/2017,PC9625,2.84,,RS Components,N/A,Operational Services,Revenue,"Equip, Furniture And Materials",Building Construction Material,
http://statistics.data.gov.uk/search?search=E07000114,Thanet District Council,26/06/2017,PC9677,51.67,,Shell ,N/A,Corporate Governance,Revenue,Direct Transport Costs,Vehicle Management,
http://statistics.data.gov.uk/search?search=E07000114,Thanet District Council,26/06/2017,PC9760,50.00,8.34,Shell ,N/A,Operational Services,Revenue,Expenses,Vehicle Management,
http://statistics.data.gov.uk/search?search=E07000114,Thanet District Council,26/06/2017,PC9628,69.80,,Southeastern Web,N/A,Corporate Governance,Revenue,Expenses,Human Resources,
http://statistics.data.gov.uk/search?search=E07000114,Thanet District Council,26/06/2017,PC9672,69.90,,Southeastern Web,N/A,Corporate Resources and S151,Revenue,Public Transport,Human Resources,
http://statistics.data.gov.uk/search?search=E07000114,Thanet District Council,26/06/2017,PC9688,62.20,,Southeastern Web,N/A,Community Services,Revenue,Public Transport,Human Resources,
http://statistics.data.gov.uk/search?search=E07000114,Thanet District Council,26/06/2017,PC9752,21.60,,Southeastern Web,N/A,Community Services,Revenue,Public Transport,Human Resources,
http://statistics.data.gov.uk/search?search=E07000114,Thanet District Council,26/06/2017,PC9753,41.70,,Southeastern Web,N/A,Community Services,Revenue,Public Transport,Human Resources,
http://statistics.data.gov.uk/search?search=E07000114,Thanet District Council,26/06/2017,PC9718,135.00,,SP Cardworks,N/A,Community Services,Revenue,"Equip, Furniture And Materials",Stationery,
http://statistics.data.gov.uk/search?search=E07000114,Thanet District Council,26/06/2017,PC9734,244.50,,SP Cardworks,N/A,Community Services,Revenue,"Equip, Furniture And Materials",Stationery,
http://statistics.data.gov.uk/search?search=E07000114,Thanet District Council,26/06/2017,PC9608,69.05,11.51,Tesco,N/A,Operational Services,Revenue,Catering,Catering,
http://statistics.data.gov.uk/search?search=E07000114,Thanet District Council,26/06/2017,PC9643,52.83,,Tesco,N/A,Operational Services,Revenue,"Equip, Furniture And Materials",Catering,
http://statistics.data.gov.uk/search?search=E07000114,Thanet District Council,26/06/2017,PC9716,8.16,,Tesco,N/A,Operational Services,Revenue,"Equip, Furniture And Materials",Catering,
http://statistics.data.gov.uk/search?search=E07000114,Thanet District Council,26/06/2017,PC9670,29.34,,Tesco PFS,N/A,Corporate Governance,Revenue,Direct Transport Costs,Vehicle Management,
http://statistics.data.gov.uk/search?search=E07000114,Thanet District Council,26/06/2017,PC9665,232.00,,Tetrasoc.com,N/A,Operational Services,Revenue,"Equip, Furniture And Materials",Stationery,
http://statistics.data.gov.uk/search?search=E07000114,Thanet District Council,26/06/2017,PC9757,11.50,,TFL Road Charge,N/A,Chief Executive,Revenue,Public Transport,Human Resources,
http://statistics.data.gov.uk/search?search=E07000114,Thanet District Council,26/06/2017,PC9640,10.05,,The Botany Bay Hotel,N/A,Operational Services,Revenue,Catering,Catering,
http://statistics.data.gov.uk/search?search=E07000114,Thanet District Council,26/06/2017,PC9641,45.00,,The Happy Dolphin,N/A,Community Services,Revenue,Grants & Subscriptions,Human Resources,
http://statistics.data.gov.uk/search?search=E07000114,Thanet District Council,26/06/2017,PC9714,66.66,,The Range,N/A,East Kent Shared Services,Revenue,"Equip, Furniture And Materials",Facilities And Management Serv,
http://statistics.data.gov.uk/search?search=E07000114,Thanet District Council,26/06/2017,PC9621,57.35,,Thompsons Packaging,N/A,Corporate Governance,Revenue,"Print, Stat And Gen Off Exps",Stationery,
http://statistics.data.gov.uk/search?search=E07000114,Thanet District Council,26/06/2017,PC9689,124.72,,Toolstation,N/A,Operational Services,Revenue,"Equip, Furniture And Materials",Building Construction Material,
http://statistics.data.gov.uk/search?search=E07000114,Thanet District Council,26/06/2017,PC9591,147.00,,TV Licensing,N/A,East Kent Shared Services,Revenue,Services,Various Cats - Public Sector,
http://statistics.data.gov.uk/search?search=E07000114,Thanet District Council,26/06/2017,PC9617,159.00,,Vimeo Pro,N/A,Community Services,Revenue,Communications & Computing,Facilities And Management Serv,
http://statistics.data.gov.uk/search?search=E07000114,Thanet District Council,26/06/2017,PC9776,299.99,,Waste Carriers Licence,N/A,Operational Services,Revenue,Services,Environmental Services,
http://statistics.data.gov.uk/search?search=E07000114,Thanet District Council,26/06/2017,PC9703,12.49,,WH Smith,N/A,Corporate Resources and S151,Revenue,"Print, Stat And Gen Off Exps",Stationery,
http://statistics.data.gov.uk/search?search=E07000114,Thanet District Council,26/06/2017,PC9699,15.00,,Wilco.Com,N/A,Community Services,Revenue,"Equip, Furniture And Materials",Facilities And Management Serv,
http://statistics.data.gov.uk/search?search=E07000114,Thanet District Council,26/06/2017,PC9660,26.21,,Wilko Retail Ltd,N/A,Operational Services,Revenue,"Print, Stat And Gen Off Exps",Facilities And Management Serv,
http://statistics.data.gov.uk/search?search=E07000114,Thanet District Council,26/06/2017,PC9717,15.00,,Wilko Retail Ltd,N/A,Operational Services,Revenue,"Equip, Furniture And Materials",Facilities And Management Serv,
http://statistics.data.gov.uk/search?search=E07000114,Thanet District Council,26/06/2017,PC9671,14.14,,WM Morrison PLC,N/A,Corporate Resources and S151,Revenue,Expenses,Catering,
http://statistics.data.gov.uk/search?search=E07000114,Thanet District Council,26/06/2017,PC9782,2.70,,WM Morrison PLC,N/A,Corporate Resources and S151,Revenue,Expenses,Catering,
http://statistics.data.gov.uk/search?search=E07000114,Thanet District Council,27/06/2017,434621,300.00,,1st Margate St Johns Scout Group,1ST005,Corporate Governance,Revenue,Rents,Grants,
http://statistics.data.gov.uk/search?search=E07000114,Thanet District Council,27/06/2017,434622,300.00,,1st Margate St Johns Scout Group,1ST005,Corporate Governance,Revenue,Rents,Grants,
http://statistics.data.gov.uk/search?search=E07000114,Thanet District Council,27/06/2017,425086,1231.00,,Amenity Horticultural Serv Ltd,AME001,Operational Services,Revenue,"Equip, Furniture And Materials",Horticultural,
http://statistics.data.gov.uk/search?search=E07000114,Thanet District Council,27/06/2017,434676,16840.00,,Ascendit Lifts Ltd,ASC001,Corporate Resources and S151,Balance Sheet,Capital Exp-Non Council Assets,Grants,
http://statistics.data.gov.uk/search?search=E07000114,Thanet District Council,27/06/2017,434686,390.00,,B & B 63,BB6001,Community Services,Revenue,Services,Housing Management,
http://statistics.data.gov.uk/search?search=E07000114,Thanet District Council,27/06/2017,434670,1500.00,,Birchington Parish Council,BIR001,Operational Services,Revenue,Services,Various Cats - Public Sector,
http://statistics.data.gov.uk/search?search=E07000114,Thanet District Council,27/06/2017,434665,3000.00,,Broadstairs & St Peters Town Council,BRO005,Operational Services,Revenue,Services,Various Cats - Public Sector,
http://statistics.data.gov.uk/search?search=E07000114,Thanet District Council,27/06/2017,433897,1924.40,,Canon (Uk) Ltd,CAN021,Corporate Governance,Revenue,"Equip, Furniture And Materials",Facilities And Management Serv,
http://statistics.data.gov.uk/search?search=E07000114,Thanet District Council,27/06/2017,434086,19878.33,,Canterbury City Council,CAN004,East Kent Shared Services,Revenue,Grants & Subscriptions,Various Cats - Public Sector,
http://statistics.data.gov.uk/search?search=E07000114,Thanet District Council,27/06/2017,434302,187.50,,Capita Treasury Solutions Limited,CAP012,Corporate Resources and S151,Revenue,Expenses,Financial Services,
http://statistics.data.gov.uk/search?search=E07000114,Thanet District Council,27/06/2017,434302,187.50,,Capita Treasury Solutions Limited,CAP012,Community Services,Revenue,Expenses,Financial Services,
http://statistics.data.gov.uk/search?search=E07000114,Thanet District Council,27/06/2017,434421,650.00,,Cieh,CIE001,Community Services,Revenue,Advertising Expenses,Human Resources,
http://statistics.data.gov.uk/search?search=E07000114,Thanet District Council,27/06/2017,434628,333.75,,Cliffsend Village Hall,CLI011,Corporate Governance,Revenue,Rents,Facilities And Management Serv,
http://statistics.data.gov.uk/search?search=E07000114,Thanet District Council,27/06/2017,434669,1500.00,,Cliftonville Partnership,CLI019,Operational Services,Revenue,Services,Grants,
http://statistics.data.gov.uk/search?search=E07000114,Thanet District Council,27/06/2017,433939,350.00,,Countrystyle Recycling Limited,COU019,Operational Services,Revenue,Cont Hire & Operating Lease,Environmental Services,
http://statistics.data.gov.uk/search?search=E07000114,Thanet District Council,27/06/2017,434001,148535.00,,Dennis Eagle Ltd,DEN005,Corporate Resources and S151,Balance Sheet,Plant And Equipment,Vehicle Management,
http://statistics.data.gov.uk/search?search=E07000114,Thanet District Council,27/06/2017,434673,1810.50,,Dolphin Lifts Kent,DOL003,Corporate Resources and S151,Balance Sheet,Capital Exp-Non Council Assets,Grants,
http://statistics.data.gov.uk/search?search=E07000114,Thanet District Council,27/06/2017,434661,475.00,,Dr Alexander Marshall,MAR100,Operational Services,Revenue,Services,Cemetery And Crematorium,
http://statistics.data.gov.uk/search?search=E07000114,Thanet District Council,27/06/2017,434587,397.20,,Eagle Envelopes Ltd,EAG001,East Kent Shared Services,Revenue,"Print, Stat And Gen Off Exps",Stationery,
http://statistics.data.gov.uk/search?search=E07000114,Thanet District Council,27/06/2017,434127,950.00,,Eagle Security Alarms Ltd,EAG005,Operational Services,Revenue,"Repairs,  Alter & Mtce - Build",Facilities And Management Serv,
http://statistics.data.gov.uk/search?search=E07000114,Thanet District Council,27/06/2017,434674,508.00,,Family Mosaic Housing,FAM001,Corporate Resources and S151,Balance Sheet,Capital Exp-Non Council Assets,Housing Management,
http://statistics.data.gov.uk/search?search=E07000114,Thanet District Council,27/06/2017,434451,643.69,,Farrer Barnes Limited,FAR012,Corporate Resources and S151,Revenue,Agency Staff,Human Resources,
http://statistics.data.gov.uk/search?search=E07000114,Thanet District Council,27/06/2017,434452,685.11,,Farrer Barnes Limited,FAR012,Corporate Resources and S151,Revenue,Agency Staff,Human Resources,
http://statistics.data.gov.uk/search?search=E07000114,Thanet District Council,27/06/2017,434113,827.00,,G & W Gardner Building Cont Ltd,GAR001,Corporate Resources and S151,Balance Sheet,Other Land And Buildings-Hra,Construction-Repair And Maint,
http://statistics.data.gov.uk/search?search=E07000114,Thanet District Council,27/06/2017,431057,-1000.00,,Grant Thornton Uk Llp,GRA048,Corporate Resources and S151,Revenue,Services,Financial Services,
http://statistics.data.gov.uk/search?search=E07000114,Thanet District Council,27/06/2017,434420,16574.00,,Grant Thornton Uk Llp,GRA048,Corporate Resources and S151,Revenue,Services,Financial Services,
http://statistics.data.gov.uk/search?search=E07000114,Thanet District Council,27/06/2017,434524,11066.00,,Grant Thornton Uk Llp,GRA048,Corporate Resources and S151,Revenue,Services,Financial Services,
http://statistics.data.gov.uk/search?search=E07000114,Thanet District Council,27/06/2017,433459,1730.55,,Hands On Suppliers Ltd,HAN007,Operational Services,Revenue,"Equip, Furniture And Materials",Clothing,
http://statistics.data.gov.uk/search?search=E07000114,Thanet District Council,27/06/2017,434259,401.46,,Hands On Suppliers Ltd,HAN007,Operational Services,Revenue,"Equip, Furniture And Materials",Clothing,
http://statistics.data.gov.uk/search?search=E07000114,Thanet District Council,27/06/2017,433726,1760.00,,Harmer & Sons Grounds Maiint Ltd,HAR074,Operational Services,Revenue,"Equip, Furniture And Materials",Vehicle Management,
http://statistics.data.gov.uk/search?search=E07000114,Thanet District Council,27/06/2017,433667,2400.00,,Hays Specialist Recruitment Ltd,HAY020,Corporate Resources and S151,Revenue,Services,Human Resources,
http://statistics.data.gov.uk/search?search=E07000114,Thanet District Council,27/06/2017,434139,3000.00,,Hays Specialist Recruitment Ltd,HAY020,Corporate Resources and S151,Revenue,Services,Human Resources,
http://statistics.data.gov.uk/search?search=E07000114,Thanet District Council,27/06/2017,434535,3000.00,,Hays Specialist Recruitment Ltd,HAY020,Corporate Resources and S151,Revenue,Services,Human Resources,
http://statistics.data.gov.uk/search?search=E07000114,Thanet District Council,27/06/2017,433706,767.25,,Hiddleston Ltd,HID003,Corporate Governance,Revenue,Services,Legal Services,
http://statistics.data.gov.uk/search?search=E07000114,Thanet District Council,27/06/2017,434671,1528.80,,Howe Heating & Plumbing,HOW019,Corporate Resources and S151,Balance Sheet,Capital Exp-Non Council Assets,Grants,
http://statistics.data.gov.uk/search?search=E07000114,Thanet District Council,27/06/2017,434683,2096.40,,Howe Heating & Plumbing,HOW019,Corporate Resources and S151,Balance Sheet,Capital Exp-Non Council Assets,Grants,
http://statistics.data.gov.uk/search?search=E07000114,Thanet District Council,27/06/2017,433692,479.67,,Hr Go (Kent) Ltd,HRG001,Community Services,Revenue,Agency Staff,Human Resources,
http://statistics.data.gov.uk/search?search=E07000114,Thanet District Council,27/06/2017,433995,770.10,,Hr Go (Kent) Ltd,HRG001,Operational Services,Revenue,Agency Staff,Human Resources,
http://statistics.data.gov.uk/search?search=E07000114,Thanet District Council,27/06/2017,433997,9056.73,,Hr Go (Kent) Ltd,HRG001,Operational Services,Revenue,Agency Staff,Human Resources,
http://statistics.data.gov.uk/search?search=E07000114,Thanet District Council,27/06/2017,433998,13828.28,,Hr Go (Kent) Ltd,HRG001,Operational Services,Revenue,Agency Staff,Human Resources,
http://statistics.data.gov.uk/search?search=E07000114,Thanet District Council,27/06/2017,433999,352.11,,Hr Go (Kent) Ltd,HRG001,Operational Services,Revenue,Agency Staff,Human Resources,
http://statistics.data.gov.uk/search?search=E07000114,Thanet District Council,27/06/2017,434155,487.80,,Hr Go (Kent) Ltd,HRG001,Community Services,Revenue,Agency Staff,Human Resources,
http://statistics.data.gov.uk/search?search=E07000114,Thanet District Council,27/06/2017,434156,486.55,,Hr Go (Kent) Ltd,HRG001,Operational Services,Revenue,Agency Staff,Human Resources,
http://statistics.data.gov.uk/search?search=E07000114,Thanet District Council,27/06/2017,434301,12000.00,,Jadu Limited,JAD003,East Kent Shared Services,Revenue,Communications & Computing,ICT,
http://statistics.data.gov.uk/search?search=E07000114,Thanet District Council,27/06/2017,434675,2500.00,,John Gale,GAL001,Corporate Resources and S151,Balance Sheet,Capital Exp-Non Council Assets,Grants,
http://statistics.data.gov.uk/search?search=E07000114,Thanet District Council,27/06/2017,434678,858.50,,John Gale,GAL001,Corporate Resources and S151,Balance Sheet,Capital Exp-Non Council Assets,Grants,
http://statistics.data.gov.uk/search?search=E07000114,Thanet District Council,27/06/2017,434680,1187.00,,John Gale,GAL001,Corporate Resources and S151,Balance Sheet,Capital Exp-Non Council Assets,Grants,
http://statistics.data.gov.uk/search?search=E07000114,Thanet District Council,27/06/2017,433972,550.00,,Keith Tait,TAI001,Operational Services,Revenue,Grounds Mtce Costs,Horticultural,
http://statistics.data.gov.uk/search?search=E07000114,Thanet District Council,27/06/2017,433974,400.00,,Keith Tait,TAI001,Operational Services,Revenue,Grounds Mtce Costs,Horticultural,
http://statistics.data.gov.uk/search?search=E07000114,Thanet District Council,27/06/2017,433975,1055.00,,Keith Tait,TAI001,Operational Services,Revenue,Grounds Mtce Costs,Horticultural,
http://statistics.data.gov.uk/search?search=E07000114,Thanet District Council,27/06/2017,433976,395.00,,Keith Tait,TAI001,Operational Services,Revenue,Grounds Mtce Costs,Horticultural,
http://statistics.data.gov.uk/search?search=E07000114,Thanet District Council,27/06/2017,433977,260.00,,Keith Tait,TAI001,Operational Services,Revenue,Grounds Mtce Costs,Horticultural,
http://statistics.data.gov.uk/search?search=E07000114,Thanet District Council,27/06/2017,434194,295.00,,Keith Tait,TAI001,Operational Services,Revenue,Grounds Mtce Costs,Horticultural,
http://statistics.data.gov.uk/search?search=E07000114,Thanet District Council,27/06/2017,434195,295.00,,Keith Tait,TAI001,Operational Services,Revenue,Grounds Mtce Costs,Horticultural,
http://statistics.data.gov.uk/search?search=E07000114,Thanet District Council,27/06/2017,433714,3500.00,,Kent County Council,KCC002,Chief Executive,Revenue,Grants & Subscriptions,Various Cats - Public Sector,
http://statistics.data.gov.uk/search?search=E07000114,Thanet District Council,27/06/2017,434205,6500.00,,Kent County Council,KCC002,Community Services,Revenue,Rents,Various Cats - Public Sector,
http://statistics.data.gov.uk/search?search=E07000114,Thanet District Council,27/06/2017,433678,1373.29,,Kent County Council (Kcs),KCC003,Operational Services,Revenue,Energy Costs,Facilities And Management Serv,
http://statistics.data.gov.uk/search?search=E07000114,Thanet District Council,27/06/2017,433679,334.35,,Kent County Council (Kcs),KCC003,Operational Services,Revenue,Energy Costs,Facilities And Management Serv,
http://statistics.data.gov.uk/search?search=E07000114,Thanet District Council,27/06/2017,433680,1760.70,,Kent County Council (Kcs),KCC003,Operational Services,Revenue,Energy Costs,Facilities And Management Serv,
http://statistics.data.gov.uk/search?search=E07000114,Thanet District Council,27/06/2017,433702,1145.64,,Kent County Council (Kcs),KCC003,Operational Services,Revenue,Energy Costs,Facilities And Management Serv,
http://statistics.data.gov.uk/search?search=E07000114,Thanet District Council,27/06/2017,433703,877.05,,Kent County Council (Kcs),KCC003,Operational Services,Revenue,Energy Costs,Facilities And Management Serv,
http://statistics.data.gov.uk/search?search=E07000114,Thanet District Council,27/06/2017,433704,1264.11,,Kent County Council (Kcs),KCC003,Operational Services,Revenue,Energy Costs,Facilities And Management Serv,
http://statistics.data.gov.uk/search?search=E07000114,Thanet District Council,27/06/2017,434091,593.20,,Kent County Council (Kcs),KCC003,Community Services,Revenue,Energy Costs,Facilities And Management Serv,
http://statistics.data.gov.uk/search?search=E07000114,Thanet District Council,27/06/2017,434105,970.29,,Kent County Council (Kcs),KCC003,Corporate Governance,Revenue,Energy Costs,Facilities And Management Serv,
http://statistics.data.gov.uk/search?search=E07000114,Thanet District Council,27/06/2017,434108,323.32,,Kent County Council (Kcs),KCC003,Operational Services,Revenue,Energy Costs,Facilities And Management Serv,
http://statistics.data.gov.uk/search?search=E07000114,Thanet District Council,27/06/2017,434111,1857.65,,Kent County Council (Kcs),KCC003,Operational Services,Revenue,Energy Costs,Facilities And Management Serv,
http://statistics.data.gov.uk/search?search=E07000114,Thanet District Council,27/06/2017,434112,262.44,,Kent County Council (Kcs),KCC003,Operational Services,Revenue,Energy Costs,Facilities And Management Serv,
http://statistics.data.gov.uk/search?search=E07000114,Thanet District Council,27/06/2017,434143,1682.79,,Kent County Council (Kcs),KCC003,Operational Services,Revenue,Energy Costs,Facilities And Management Serv,
http://statistics.data.gov.uk/search?search=E07000114,Thanet District Council,27/06/2017,434163,6637.20,,Kent County Council (Kcs),KCC003,Corporate Governance,Revenue,Energy Costs,Facilities And Management Serv,
http://statistics.data.gov.uk/search?search=E07000114,Thanet District Council,27/06/2017,434165,5913.28,,Kent County Council (Kcs),KCC003,Operational Services,Revenue,Energy Costs,Facilities And Management Serv,
http://statistics.data.gov.uk/search?search=E07000114,Thanet District Council,27/06/2017,434166,2836.03,,Kent County Council (Kcs),KCC003,Operational Services,Revenue,Energy Costs,Facilities And Management Serv,
http://statistics.data.gov.uk/search?search=E07000114,Thanet District Council,27/06/2017,434527,1824.48,,Kent County Council (Kcs),KCC003,Operational Services,Revenue,"Equip, Furniture And Materials",Facilities And Management Serv,
http://statistics.data.gov.uk/search?search=E07000114,Thanet District Council,27/06/2017,434528,2662.58,,Kent County Council (Kcs),KCC003,Operational Services,Revenue,"Equip, Furniture And Materials",Facilities And Management Serv,
http://statistics.data.gov.uk/search?search=E07000114,Thanet District Council,27/06/2017,434581,1870.82,,Kent County Council (Kcs),KCC003,Operational Services,Revenue,Direct Transport Costs,Facilities And Management Serv,
http://statistics.data.gov.uk/search?search=E07000114,Thanet District Council,27/06/2017,433874,4216.60,,Level 3 Communications (Uk) Ltd,LEV005,Corporate Resources and S151,Balance Sheet,Telephone Holding Account,ICT,
http://statistics.data.gov.uk/search?search=E07000114,Thanet District Council,27/06/2017,433488,538.22,,Lister Wilder Limited,LIS002,Operational Services,Revenue,"Equip, Furniture And Materials",Horticultural,
http://statistics.data.gov.uk/search?search=E07000114,Thanet District Council,27/06/2017,433489,735.29,,Lister Wilder Limited,LIS002,Operational Services,Revenue,"Equip, Furniture And Materials",Horticultural,
http://statistics.data.gov.uk/search?search=E07000114,Thanet District Council,27/06/2017,433924,959.00,,Lister Wilder Limited,LIS002,Operational Services,Revenue,"Equip, Furniture And Materials",Horticultural,
http://statistics.data.gov.uk/search?search=E07000114,Thanet District Council,27/06/2017,434221,1035.67,,Lobster Van Hire Ltd,LOB001,Operational Services,Revenue,"Equip, Furniture And Materials",Vehicle Management,
http://statistics.data.gov.uk/search?search=E07000114,Thanet District Council,27/06/2017,434255,530.00,,Lobster Van Hire Ltd,LOB001,Operational Services,Revenue,"Equip, Furniture And Materials",Vehicle Management,
http://statistics.data.gov.uk/search?search=E07000114,Thanet District Council,27/06/2017,434123,411.84,,Lyreco Uk Limited,LYR001,Operational Services,Revenue,"Print, Stat And Gen Off Exps",Stationery,
http://statistics.data.gov.uk/search?search=E07000114,Thanet District Council,27/06/2017,434125,285.36,,Lyreco Uk Limited,LYR001,Corporate Resources and S151,Balance Sheet,Stationery Stores,Stationery,
http://statistics.data.gov.uk/search?search=E07000114,Thanet District Council,27/06/2017,434125,2.26,,Lyreco Uk Limited,LYR001,Corporate Resources and S151,Balance Sheet,Stationery Stores,Stationery,
http://statistics.data.gov.uk/search?search=E07000114,Thanet District Council,27/06/2017,434250,318.00,,Main Man Supplies Ltd,MAI001,Operational Services,Revenue,"Clothes, Uniforms & Laundry",Clothing,
http://statistics.data.gov.uk/search?search=E07000114,Thanet District Council,27/06/2017,433715,490.00,,Margate Bowling Club,MBO001,Corporate Governance,Revenue,Rents,Facilities And Management Serv,
http://statistics.data.gov.uk/search?search=E07000114,Thanet District Council,27/06/2017,434666,3000.00,,Margate Town Team Cic,MTO001,Operational Services,Revenue,Services,Grants,
http://statistics.data.gov.uk/search?search=E07000114,Thanet District Council,27/06/2017,433738,600.00,,Matt Hutchings,HUT003,Corporate Governance,Revenue,Services,Legal Services,
http://statistics.data.gov.uk/search?search=E07000114,Thanet District Council,27/06/2017,433647,251.59,,Mears Ltd,MEA003,Corporate Governance,Revenue,"Repairs,  Alter & Mtce - Build",Construction-Repair And Maint,
http://statistics.data.gov.uk/search?search=E07000114,Thanet District Council,27/06/2017,434269,3556.67,,Mears Ltd,MEA003,Corporate Governance,Revenue,"Repairs,  Alter & Mtce - Build",Construction-Repair And Maint,
http://statistics.data.gov.uk/search?search=E07000114,Thanet District Council,27/06/2017,434243,900.00,,Michael Page Int Recruitment Ltd,PAG008,Corporate Resources and S151,Revenue,Services,Human Resources,
http://statistics.data.gov.uk/search?search=E07000114,Thanet District Council,27/06/2017,433936,225.00,,Mike Beer Transport Ltd,BEE006,Operational Services,Revenue,"Equip, Furniture And Materials",Vehicle Management,
http://statistics.data.gov.uk/search?search=E07000114,Thanet District Council,27/06/2017,431862,314.16,,Morgan Jones Ltd,MOR001,Corporate Governance,Revenue,Agency Staff,Human Resources,
http://statistics.data.gov.uk/search?search=E07000114,Thanet District Council,27/06/2017,432284,314.16,,Morgan Jones Ltd,MOR001,Corporate Governance,Revenue,Agency Staff,Human Resources,
http://statistics.data.gov.uk/search?search=E07000114,Thanet District Council,27/06/2017,432762,314.16,,Morgan Jones Ltd,MOR001,Corporate Governance,Revenue,Agency Staff,Human Resources,
http://statistics.data.gov.uk/search?search=E07000114,Thanet District Council,27/06/2017,433114,209.44,,Morgan Jones Ltd,MOR001,Corporate Governance,Revenue,Agency Staff,Human Resources,
http://statistics.data.gov.uk/search?search=E07000114,Thanet District Council,27/06/2017,434114,209.44,,Morgan Jones Ltd,MOR001,Corporate Governance,Revenue,Agency Staff,Human Resources,
http://statistics.data.gov.uk/search?search=E07000114,Thanet District Council,27/06/2017,434240,69.17,,Mr Darren Osborne,OSB008,Community Services,Revenue,Cleaning & Domestic Supplies,Cleaning And Janitorial,
http://statistics.data.gov.uk/search?search=E07000114,Thanet District Council,27/06/2017,434240,398.33,,Mr Darren Osborne,OSB008,Corporate Governance,Revenue,Cleaning & Domestic Supplies,Cleaning And Janitorial,
http://statistics.data.gov.uk/search?search=E07000114,Thanet District Council,27/06/2017,434240,40.00,,Mr Darren Osborne,OSB008,Operational Services,Revenue,Cleaning & Domestic Supplies,Cleaning And Janitorial,
http://statistics.data.gov.uk/search?search=E07000114,Thanet District Council,27/06/2017,434548,490.00,,Nayland Rock Hotel Margate Ltd,NAY003,Community Services,Revenue,Services,Housing Management,
http://statistics.data.gov.uk/search?search=E07000114,Thanet District Council,27/06/2017,434681,12815.00,,Northwood Builders,NOR002,Corporate Resources and S151,Balance Sheet,Capital Exp-Non Council Assets,Grants,
http://statistics.data.gov.uk/search?search=E07000114,Thanet District Council,27/06/2017,434002,8960.00,,One 51 Es Plastics (Uk) Limited,ONE006,Operational Services,Revenue,"Equip, Furniture And Materials",Environmental Services,
http://statistics.data.gov.uk/search?search=E07000114,Thanet District Council,27/06/2017,434089,6250.00,,Otterham Consulting Limited,OTT004,Corporate Governance,Revenue,Services,Consultancy,
http://statistics.data.gov.uk/search?search=E07000114,Thanet District Council,27/06/2017,433979,267.06,,Preservation Equipment Ltd,PRE031,Community Services,Revenue,"Equip, Furniture And Materials",Stationery,
http://statistics.data.gov.uk/search?search=E07000114,Thanet District Council,27/06/2017,434234,420.00,,R J Broadley Tree Surgery,RJB002,Operational Services,Revenue,Grounds Mtce Costs,Horticultural,
http://statistics.data.gov.uk/search?search=E07000114,Thanet District Council,27/06/2017,434460,250.00,,R J Broadley Tree Surgery,RJB002,Operational Services,Revenue,Grounds Mtce Costs,Horticultural,
http://statistics.data.gov.uk/search?search=E07000114,Thanet District Council,27/06/2017,434664,3000.00,,Ramsgate Town Council,RAM031,Operational Services,Revenue,Services,Various Cats - Public Sector,
http://statistics.data.gov.uk/search?search=E07000114,Thanet District Council,27/06/2017,434232,380.00,,Rigby Taylor Ltd,RIG002,Operational Services,Revenue,"Equip, Furniture And Materials",Horticultural,
http://statistics.data.gov.uk/search?search=E07000114,Thanet District Council,27/06/2017,434624,3846.08,,Royal Mail,ROY004,Corporate Governance,Revenue,Communications & Computing,Mail Services,
http://statistics.data.gov.uk/search?search=E07000114,Thanet District Council,27/06/2017,434620,412.50,,Salmestone Grange Ltd,SAL007,Corporate Governance,Revenue,Rents,Facilities And Management Serv,
http://statistics.data.gov.uk/search?search=E07000114,Thanet District Council,27/06/2017,433289,-500.15,,Scottish Water Business Stream Ltd,SCO019,Operational Services,Revenue,Water Services,Utilities,
http://statistics.data.gov.uk/search?search=E07000114,Thanet District Council,27/06/2017,434447,1618.12,,Scottish Water Business Stream Ltd,SCO019,Operational Services,Revenue,Water Services,Utilities,
http://statistics.data.gov.uk/search?search=E07000114,Thanet District Council,27/06/2017,434448,1237.19,,Scottish Water Business Stream Ltd,SCO019,Operational Services,Revenue,Water Services,Utilities,
http://statistics.data.gov.uk/search?search=E07000114,Thanet District Council,27/06/2017,434603,334.20,,Scottish Water Business Stream Ltd,SCO019,Operational Services,Revenue,Water Services,Utilities,
http://statistics.data.gov.uk/search?search=E07000114,Thanet District Council,27/06/2017,434604,334.58,,Scottish Water Business Stream Ltd,SCO019,Operational Services,Revenue,Water Services,Utilities,
http://statistics.data.gov.uk/search?search=E07000114,Thanet District Council,27/06/2017,434606,1194.56,,Scottish Water Business Stream Ltd,SCO019,Operational Services,Revenue,Water Services,Utilities,
http://statistics.data.gov.uk/search?search=E07000114,Thanet District Council,27/06/2017,434545,3037.50,,Securitas Security Services (Uk) Ltd,SEC019,Corporate Governance,Revenue,Services,Facilities And Management Serv,
http://statistics.data.gov.uk/search?search=E07000114,Thanet District Council,27/06/2017,434025,1610.00,,Sharpe Pritchard Llp,SHA030,Corporate Resources and S151,Balance Sheet,Other Land And Buildings-Hra,Legal Services,
http://statistics.data.gov.uk/search?search=E07000114,Thanet District Council,27/06/2017,424991,4760.00,,Shepway District Council,SHE001,Corporate Resources and S151,Revenue,Training,Various Cats - Public Sector,
http://statistics.data.gov.uk/search?search=E07000114,Thanet District Council,27/06/2017,434481,675.00,,Smith Of Derby Ltd,SMI001,Corporate Governance,Revenue,"Repairs,  Alter & Mtce - Build",Facilities And Management Serv,
http://statistics.data.gov.uk/search?search=E07000114,Thanet District Council,27/06/2017,434679,8585.00,,South East Building Company Limited,SEB001,Corporate Resources and S151,Balance Sheet,Capital Exp-Non Council Assets,Grants,
http://statistics.data.gov.uk/search?search=E07000114,Thanet District Council,27/06/2017,433246,2881.10,,Southern Electric,SEL007,Corporate Governance,Revenue,Energy Costs,Utilities,
http://statistics.data.gov.uk/search?search=E07000114,Thanet District Council,27/06/2017,433946,257.46,,Southern Electric,SEL007,Operational Services,Revenue,Energy Costs,Utilities,
http://statistics.data.gov.uk/search?search=E07000114,Thanet District Council,27/06/2017,433951,985.06,,Southern Electric,SEL007,Corporate Governance,Revenue,Energy Costs,Utilities,
http://statistics.data.gov.uk/search?search=E07000114,Thanet District Council,27/06/2017,433981,-2881.10,,Southern Electric,SEL007,Corporate Governance,Revenue,Energy Costs,Utilities,
http://statistics.data.gov.uk/search?search=E07000114,Thanet District Council,27/06/2017,433994,1418.30,,Southern Electric,SEL007,Corporate Governance,Revenue,Energy Costs,Utilities,
http://statistics.data.gov.uk/search?search=E07000114,Thanet District Council,27/06/2017,433566,907.20,,Thanet Waste Services Ltd,TWA001,Operational Services,Revenue,Cleaning & Domestic Supplies,Environmental Services,
http://statistics.data.gov.uk/search?search=E07000114,Thanet District Council,27/06/2017,434592,223.96,,Thanet Waste Services Ltd,TWA001,Operational Services,Revenue,"Repairs,  Alter & Mtce - Build",Environmental Services,
http://statistics.data.gov.uk/search?search=E07000114,Thanet District Council,27/06/2017,434431,3762.50,,The Glenwood Hotel,GLE007,Community Services,Revenue,Services,Housing Management,
http://statistics.data.gov.uk/search?search=E07000114,Thanet District Council,27/06/2017,434432,2883.34,,The Glenwood Hotel,GLE007,Community Services,Revenue,Services,Housing Management,
http://statistics.data.gov.uk/search?search=E07000114,Thanet District Council,27/06/2017,434433,3395.84,,The Glenwood Hotel,GLE007,Community Services,Revenue,Services,Housing Management,
http://statistics.data.gov.uk/search?search=E07000114,Thanet District Council,27/06/2017,434434,2250.01,,The Glenwood Hotel,GLE007,Community Services,Revenue,Services,Housing Management,
http://statistics.data.gov.uk/search?search=E07000114,Thanet District Council,27/06/2017,434435,400.00,,The Glenwood Hotel,GLE007,Community Services,Revenue,Services,Housing Management,
http://statistics.data.gov.uk/search?search=E07000114,Thanet District Council,27/06/2017,434136,270.00,,The Orb Public House,ORB012,Corporate Governance,Revenue,Rents,Facilities And Management Serv,
http://statistics.data.gov.uk/search?search=E07000114,Thanet District Council,27/06/2017,434101,275.00,,The Parish Of St Laurence In Thanet,STL004,Corporate Governance,Revenue,Rents,Facilities And Management Serv,
http://statistics.data.gov.uk/search?search=E07000114,Thanet District Council,27/06/2017,434093,1830.00,,Thintech Ltd,THI009,East Kent Shared Services,Revenue,Communications & Computing,ICT,
http://statistics.data.gov.uk/search?search=E07000114,Thanet District Council,27/06/2017,433929,356.00,,Trinity Resource Centre Limited,TRI018,Corporate Governance,Revenue,Rents,Facilities And Management Serv,
http://statistics.data.gov.uk/search?search=E07000114,Thanet District Council,27/06/2017,433930,356.00,,Trinity Resource Centre Limited,TRI018,Corporate Governance,Revenue,Rents,Facilities And Management Serv,
http://statistics.data.gov.uk/search?search=E07000114,Thanet District Council,27/06/2017,433665,1066.50,,Venn Group Limited,VEN004,Corporate Governance,Revenue,Services,Human Resources,
http://statistics.data.gov.uk/search?search=E07000114,Thanet District Council,27/06/2017,434134,1533.50,,Venn Group Limited,VEN004,Corporate Governance,Revenue,Services,Human Resources,
http://statistics.data.gov.uk/search?search=E07000114,Thanet District Council,27/06/2017,433575,317.40,,Viridor Waste Management Ltd,VIR003,Corporate Governance,Revenue,Private Contractors,Environmental Services,
http://statistics.data.gov.uk/search?search=E07000114,Thanet District Council,27/06/2017,433910,642.77,,Viridor Waste Management Ltd,VIR003,Corporate Governance,Revenue,Private Contractors,Environmental Services,
http://statistics.data.gov.uk/search?search=E07000114,Thanet District Council,27/06/2017,434568,320.00,,W Brazil & Bros,BRA001,Operational Services,Revenue,Grounds Mtce Costs,Environmental Services,
http://statistics.data.gov.uk/search?search=E07000114,Thanet District Council,27/06/2017,434573,400.00,,W Brazil & Bros,BRA001,Operational Services,Revenue,Grounds Mtce Costs,Environmental Services,
http://statistics.data.gov.uk/search?search=E07000114,Thanet District Council,27/06/2017,434576,570.00,,W Brazil & Bros,BRA001,Operational Services,Revenue,Grounds Mtce Costs,Environmental Services,
http://statistics.data.gov.uk/search?search=E07000114,Thanet District Council,27/06/2017,434579,220.00,,W Brazil & Bros,BRA001,Operational Services,Revenue,Grounds Mtce Costs,Environmental Services,
http://statistics.data.gov.uk/search?search=E07000114,Thanet District Council,27/06/2017,434667,1500.00,,Westbrook Traders Association,WTA001,Operational Services,Revenue,Services,Horticultural,
http://statistics.data.gov.uk/search?search=E07000114,Thanet District Council,27/06/2017,434668,1500.00,,Westgate & Westbrook Residents Ass,WES011,Operational Services,Revenue,Services,Horticultural,
http://statistics.data.gov.uk/search?search=E07000114,Thanet District Council,28/06/2017,434116,240.00,,Astra Uk (Contracts) Ltd,AST003,Operational Services,Revenue,Cleaning & Domestic Supplies,Environmental Services,
http://statistics.data.gov.uk/search?search=E07000114,Thanet District Council,28/06/2017,434129,2545.00,,British Marine Federation,BRI002,Operational Services,Revenue,Grants & Subscriptions,Human Resources,
http://statistics.data.gov.uk/search?search=E07000114,Thanet District Council,28/06/2017,433888,16653.34,,Burgess Marine Ltd,BUR017,Operational Services,Revenue,"Repairs,  Alter & Mtce - Build",Maritime Services,
http://statistics.data.gov.uk/search?search=E07000114,Thanet District Council,28/06/2017,434024,575.00,,C J Doors & Shutters Limited,CJD002,Operational Services,Revenue,"Repairs,  Alter & Mtce - Build",Building Construction Material,
http://statistics.data.gov.uk/search?search=E07000114,Thanet District Council,28/06/2017,434523,339.09,,Canon (Uk) Ltd,CAN021,Community Services,Revenue,"Equip, Furniture And Materials",Facilities And Management Serv,
http://statistics.data.gov.uk/search?search=E07000114,Thanet District Council,28/06/2017,434144,445.00,,Certsure Llp,CER004,Operational Services,Revenue,Services,Financial Services,
http://statistics.data.gov.uk/search?search=E07000114,Thanet District Council,28/06/2017,434185,326.48,,Channel Commercials Plc,CCO001,Operational Services,Revenue,Direct Transport Costs,Vehicle Management,
http://statistics.data.gov.uk/search?search=E07000114,Thanet District Council,28/06/2017,433504,1015.00,,Civica Uk Ltd,CIV003,Corporate Resources and S151,Balance Sheet,Intangible Assets,ICT,
http://statistics.data.gov.uk/search?search=E07000114,Thanet District Council,28/06/2017,434023,5030.00,,Clear Skies Software Ltd,CLE004,Operational Services,Revenue,Communications & Computing,ICT,
http://statistics.data.gov.uk/search?search=E07000114,Thanet District Council,28/06/2017,434653,1534.16,,Co-Operative Bank Paypoint,COO018,Corporate Resources and S151,Revenue,Services,Financial Services,
http://statistics.data.gov.uk/search?search=E07000114,Thanet District Council,28/06/2017,434653,511.39,,Co-Operative Bank Paypoint,COO018,Community Services,Revenue,Services,Financial Services,
http://statistics.data.gov.uk/search?search=E07000114,Thanet District Council,28/06/2017,434228,1175.78,,Dennis Eagle Limited,TER011,Operational Services,Revenue,Direct Transport Costs,Vehicle Management,
http://statistics.data.gov.uk/search?search=E07000114,Thanet District Council,28/06/2017,434229,1637.16,,Dennis Eagle Limited,TER011,Operational Services,Revenue,Direct Transport Costs,Vehicle Management,
http://statistics.data.gov.uk/search?search=E07000114,Thanet District Council,28/06/2017,434138,553.63,,Dennis Eagle Ltd,DEN005,Operational Services,Revenue,Direct Transport Costs,Vehicle Management,
http://statistics.data.gov.uk/search?search=E07000114,Thanet District Council,28/06/2017,434164,214.99,,Dennis Eagle Ltd,DEN005,Operational Services,Revenue,Direct Transport Costs,Vehicle Management,
http://statistics.data.gov.uk/search?search=E07000114,Thanet District Council,28/06/2017,434172,1049.94,,Dennis Eagle Ltd,DEN005,Operational Services,Revenue,Direct Transport Costs,Vehicle Management,
http://statistics.data.gov.uk/search?search=E07000114,Thanet District Council,28/06/2017,434173,255.35,,Dennis Eagle Ltd,DEN005,Operational Services,Revenue,Direct Transport Costs,Vehicle Management,
http://statistics.data.gov.uk/search?search=E07000114,Thanet District Council,28/06/2017,434641,94016.71,,Dexia Public Finance Bank,DEX001,Corporate Resources and S151,Balance Sheet,Debit Interest And Expenses,Investments And Loans,
http://statistics.data.gov.uk/search?search=E07000114,Thanet District Council,28/06/2017,433632,2750.00,,Dixon Searle Partnership Limited,DIX007,Community Services,Revenue,Services,Consultancy,
http://statistics.data.gov.uk/search?search=E07000114,Thanet District Council,28/06/2017,434100,5333.02,,Edge Enviro Services Ltd,EDG001,Corporate Resources and S151,Balance Sheet,Rechargeable Works,Human Resources,
http://statistics.data.gov.uk/search?search=E07000114,Thanet District Council,28/06/2017,433915,2160.00,,First Choice Marshalls Limited,FIR016,Operational Services,Revenue,"Repairs,  Alter & Mtce - Build",Furniture And Soft Furnishings,
http://statistics.data.gov.uk/search?search=E07000114,Thanet District Council,28/06/2017,433914,756.70,,Hi Way Services Ltd,HIW002,Operational Services,Revenue,"Repairs,  Alter & Mtce - Build",Highway Equipment And Material,
http://statistics.data.gov.uk/search?search=E07000114,Thanet District Council,28/06/2017,434157,1491.84,,Hr Go (Kent) Ltd,HRG001,Operational Services,Revenue,Agency Staff,Human Resources,
http://statistics.data.gov.uk/search?search=E07000114,Thanet District Council,28/06/2017,434160,741.44,,Hr Go (Kent) Ltd,HRG001,Operational Services,Revenue,Agency Staff,Human Resources,
http://statistics.data.gov.uk/search?search=E07000114,Thanet District Council,28/06/2017,434537,9946.44,,Intermarine Ltd,INT008,Corporate Resources and S151,Balance Sheet,Rechargeable Works,Maritime Services,
http://statistics.data.gov.uk/search?search=E07000114,Thanet District Council,28/06/2017,434102,22340.63,,J Toomey Motors Limited,TOO004,Corporate Resources and S151,Balance Sheet,Plant And Equipment,Vehicle Management,
http://statistics.data.gov.uk/search?search=E07000114,Thanet District Council,28/06/2017,434222,1079.72,,Lobster Van Hire Ltd,LOB001,Operational Services,Revenue,Cont Hire & Operating Lease,Vehicle Management,
http://statistics.data.gov.uk/search?search=E07000114,Thanet District Council,28/06/2017,434119,1444.25,,M.T.S. Cleansing Services Ltd,MTS001,Operational Services,Revenue,"Repairs,  Alter & Mtce - Build",Environmental Services,
http://statistics.data.gov.uk/search?search=E07000114,Thanet District Council,28/06/2017,434637,718293.00,,Maidstone Borough Council,MAI002,Corporate Resources and S151,Revenue,Revenue Financing,Various Cats - Public Sector,
http://statistics.data.gov.uk/search?search=E07000114,Thanet District Council,28/06/2017,434637,281444.00,,Maidstone Borough Council,MAI002,Corporate Resources and S151,Balance Sheet,Collection Fund,Various Cats - Public Sector,
http://statistics.data.gov.uk/search?search=E07000114,Thanet District Council,28/06/2017,434020,983.00,,Maltings Partnership,MAL014,Community Services,Revenue,"Print, Stat And Gen Off Exps",Facilities And Management Serv,
http://statistics.data.gov.uk/search?search=E07000114,Thanet District Council,28/06/2017,432844,2500.00,,Matt Hutchings,HUT003,Corporate Resources and S151,Balance Sheet,Other Land And Buildings-Hra,Legal Services,
http://statistics.data.gov.uk/search?search=E07000114,Thanet District Council,28/06/2017,434474,637.71,,Mears Ltd,MEA003,Corporate Resources and S151,Balance Sheet,Repairs And Mtce Holding A/C,Construction-Repair And Maint,
http://statistics.data.gov.uk/search?search=E07000114,Thanet District Council,28/06/2017,434475,7393.27,,Mears Ltd,MEA003,Corporate Resources and S151,Balance Sheet,Repairs And Mtce Holding A/C,Construction-Repair And Maint,
http://statistics.data.gov.uk/search?search=E07000114,Thanet District Council,28/06/2017,434480,1883.54,,Mears Ltd,MEA003,Corporate Resources and S151,Balance Sheet,Repairs And Mtce Holding A/C,Construction-Repair And Maint,
http://statistics.data.gov.uk/search?search=E07000114,Thanet District Council,28/06/2017,434482,1970.06,,Mears Ltd,MEA003,Corporate Resources and S151,Balance Sheet,Repairs And Mtce Holding A/C,Construction-Repair And Maint,
http://statistics.data.gov.uk/search?search=E07000114,Thanet District Council,28/06/2017,434483,3654.15,,Mears Ltd,MEA003,Corporate Resources and S151,Balance Sheet,Repairs And Mtce Holding A/C,Construction-Repair And Maint,
http://statistics.data.gov.uk/search?search=E07000114,Thanet District Council,28/06/2017,434484,26838.24,,Mears Ltd,MEA003,Corporate Resources and S151,Balance Sheet,Repairs And Mtce Holding A/C,Construction-Repair And Maint,
http://statistics.data.gov.uk/search?search=E07000114,Thanet District Council,28/06/2017,434485,6260.93,,Mears Ltd,MEA003,Corporate Resources and S151,Balance Sheet,Repairs And Mtce Holding A/C,Construction-Repair And Maint,
http://statistics.data.gov.uk/search?search=E07000114,Thanet District Council,28/06/2017,434540,36108.52,,Mears Ltd,MEA003,Corporate Resources and S151,Balance Sheet,Repairs And Mtce Holding A/C,Construction-Repair And Maint,
http://statistics.data.gov.uk/search?search=E07000114,Thanet District Council,28/06/2017,434247,5962.60,,Med Clean South Ltd,MED015,Operational Services,Revenue,Cleaning & Domestic Supplies,Cleaning And Janitorial,
http://statistics.data.gov.uk/search?search=E07000114,Thanet District Council,28/06/2017,434646,273.85,,Nat West Bank,NWE001,Corporate Resources and S151,Revenue,Services,Various Categories,
http://statistics.data.gov.uk/search?search=E07000114,Thanet District Council,28/06/2017,433734,2437.50,,Ntm-Gb Limited,NTM001,Operational Services,Revenue,Direct Transport Costs,Vehicle Management,
http://statistics.data.gov.uk/search?search=E07000114,Thanet District Council,28/06/2017,432957,489.84,,Ocs Group Uk Ltd T/A Fountains,OCS005,Operational Services,Revenue,Fixtures & Fittings,Cleaning And Janitorial,
http://statistics.data.gov.uk/search?search=E07000114,Thanet District Council,28/06/2017,434135,3954.92,,Ohuk Limited,OHU001,Operational Services,Revenue,Agency Staff,Human Resources,
http://statistics.data.gov.uk/search?search=E07000114,Thanet District Council,28/06/2017,434630,71428.57,,Public Works Loan Board,PWL001,Corporate Resources and S151,Balance Sheet,Borrowing Repayable>1 Yr,Investments And Loans,
http://statistics.data.gov.uk/search?search=E07000114,Thanet District Council,28/06/2017,434630,5942.86,,Public Works Loan Board,PWL001,Corporate Resources and S151,Balance Sheet,Debit Interest And Expenses,Investments And Loans,
http://statistics.data.gov.uk/search?search=E07000114,Thanet District Council,28/06/2017,433892,875.00,,R Cannon,CAN007,Operational Services,Revenue,Services,Maritime Services,
http://statistics.data.gov.uk/search?search=E07000114,Thanet District Council,28/06/2017,433916,927.50,,R Cannon,CAN007,Operational Services,Revenue,Services,Maritime Services,
http://statistics.data.gov.uk/search?search=E07000114,Thanet District Council,28/06/2017,434126,420.00,,R Cannon,CAN007,Operational Services,Revenue,Services,Maritime Services,
http://statistics.data.gov.uk/search?search=E07000114,Thanet District Council,28/06/2017,434087,2661.18,,Rexel Uk Limited,REX003,Operational Services,Revenue,"Repairs,  Alter & Mtce - Build",Building Construction Material,
http://statistics.data.gov.uk/search?search=E07000114,Thanet District Council,28/06/2017,433195,1225.00,,Riverside Environmental Services Ltd,RIV006,Operational Services,Revenue,Services,Health And Safety,
http://statistics.data.gov.uk/search?search=E07000114,Thanet District Council,28/06/2017,434657,1795.87,,Santander,SAN017,Corporate Resources and S151,Revenue,Services,Various Categories,
http://statistics.data.gov.uk/search?search=E07000114,Thanet District Council,28/06/2017,434657,598.62,,Santander,SAN017,Community Services,Revenue,Services,Various Categories,
http://statistics.data.gov.uk/search?search=E07000114,Thanet District Council,28/06/2017,433961,299.00,,Screwfix Direct Ltd,SCR001,Operational Services,Revenue,"Repairs,  Alter & Mtce - Build",Building Construction Material,
http://statistics.data.gov.uk/search?search=E07000114,Thanet District Council,28/06/2017,433964,354.72,,Screwfix Direct Ltd,SCR001,Operational Services,Revenue,"Repairs,  Alter & Mtce - Build",Building Construction Material,
http://statistics.data.gov.uk/search?search=E07000114,Thanet District Council,28/06/2017,433965,220.81,,Screwfix Direct Ltd,SCR001,Operational Services,Revenue,"Repairs,  Alter & Mtce - Build",Building Construction Material,
http://statistics.data.gov.uk/search?search=E07000114,Thanet District Council,28/06/2017,434850,-130120.00,,Secretary Of State,SEC003,Corporate Resources and S151,Revenue,Revenue Financing,Government Agencies,
http://statistics.data.gov.uk/search?search=E07000114,Thanet District Council,28/06/2017,434850,1578164.00,,Secretary Of State,SEC003,Corporate Resources and S151,Balance Sheet,Collection Fund,Government Agencies,
http://statistics.data.gov.uk/search?search=E07000114,Thanet District Council,28/06/2017,433876,415.83,,Securitas Security Services (Uk) Ltd,SEC019,Corporate Governance,Revenue,Services,Facilities And Management Serv,
http://statistics.data.gov.uk/search?search=E07000114,Thanet District Council,28/06/2017,434095,1950.00,,Silgo Lubricants Ltd,SIL007,Operational Services,Revenue,Direct Transport Costs,Vehicle Management,
http://statistics.data.gov.uk/search?search=E07000114,Thanet District Council,28/06/2017,434193,538.52,,Sparshatts Of Kent Ltd,SPA008,Operational Services,Revenue,Direct Transport Costs,Vehicle Management,
http://statistics.data.gov.uk/search?search=E07000114,Thanet District Council,28/06/2017,434854,319.50,,St Philips Church P P C,STP007,Corporate Governance,Revenue,Rents,Facilities And Management Serv,
http://statistics.data.gov.uk/search?search=E07000114,Thanet District Council,28/06/2017,434189,437.10,,Stokes Bros,STO001,Operational Services,Revenue,"Repairs,  Alter & Mtce - Build",Building Construction Material,
http://statistics.data.gov.uk/search?search=E07000114,Thanet District Council,28/06/2017,434192,2563.05,,Stokes Bros,STO001,Operational Services,Revenue,"Repairs,  Alter & Mtce - Build",Building Construction Material,
http://statistics.data.gov.uk/search?search=E07000114,Thanet District Council,28/06/2017,434169,16.70,,Tfa Fuel Services Ltd,TFA003,Operational Services,Revenue,Direct Transport Costs,Utilities,
http://statistics.data.gov.uk/search?search=E07000114,Thanet District Council,28/06/2017,434169,1827.27,,Tfa Fuel Services Ltd,TFA003,Operational Services,Revenue,"Equip, Furniture And Materials",Utilities,
http://statistics.data.gov.uk/search?search=E07000114,Thanet District Council,28/06/2017,433568,349.36,,Thanet Waste Services Ltd,TWA001,Operational Services,Revenue,Cleaning & Domestic Supplies,Environmental Services,
http://statistics.data.gov.uk/search?search=E07000114,Thanet District Council,28/06/2017,433873,3143.80,,Thanet Waste Services Ltd,TWA001,Operational Services,Revenue,Cleaning & Domestic Supplies,Environmental Services,
